Workbook

Sheet Notes
A1: DeviationScaledMA.xlsm; Traders Tip spreadsheet created for the July 2018 Issue
A2: Coded beginning 2018-May-08 by Ronald McAllister (rpmac_xltt@sprynet.com)
A4: This Workbook demonstrates an EXCEL version of the ideas presented
A5: by John Ehlers in an article titled "The Deviation-Scaled Moving Average"
A6: which originally appeared in the July 2018 issue of
A7: "Technical Analysis of Stocks and Commodities" magazine.
A9: General Construction Notes
A11: CalculationsAndCharts construction Notes:
B12: Mr. Ehlers' Figure 1 may be replicated using symbol SPY and setting the chart for dates of 12/23/2016 thru 12/29/2017.
A14: Development Notes:
C15: This workbook contains and uses VBA macros and may use VBA Class structures.
C16: Input Data
C17: The data in this workbook is sorted date descending (most recent date at the top). All formulas and
C18: VBA routines are built accordingly.
A20: Reported Error 5 and FIX. Note: The spreadsheet you currently have open already incorporates this fix.
B22: In response to privacy issues encountered by other web service providers, on or about May 13, 2018 Yahoo modified their web page
B23: layouts to incorporate privacy policy notices. These changes do not dramatically change the appearance of the web pages in a browser.
B24: However, these changes did alter the landmarks I was using to capture market state and time from the raw HTML for these pages.
B26: This Error 5 problem exists in each of the 7 Traders Tips spreadsheets from December 2017 through June 2018.
B28: This fix requires changes to 2 VBA procedures in each of those 7 workbooks.
B29: If you are comfortable with the EXCEL builtin VBA editor then you can make the required changes as follows:
B31: Open the VBA editor. Alt-F11 will do the trick
B33: In the VBA editor, open the FIND dialog. CTRL-F will do this.
B35: Replace whatever is in the "FindWhat" box with: Sub DriveFormatPriceHistory
B36: In the Search box, click the radio button next to Current Procedure
B37: Then click the "Find Next" button. Then close the find dialog to get it out of your way.
B39: Scroll down within the DriveFormatPriceHistory procedure to find the following 15 lines of code.
B41: mNdx = InStrRev(MarketState, ":", -1, vbTextCompare)
B42: If IsNumeric(Mid(MarketState, mNdx - 1, 1)) And IsNumeric(Mid(MarketState, mNdx + 1, 1)) Then
B43: ' have a time stamp in MarketState
B44: mNdx1 = InStrRev(MarketState, " ", mNdx, vbTextCompare) ' prior blank
B45: mNdx2 = InStr(mNdx, MarketState, " ", vbTextCompare) ' trailing blank
B46: Chunk1 = Trim(Left(MarketState, mNdx1))
B47: Chunk2 = Trim(Mid(MarketState, mNdx1 + 1, mNdx2 - 1 - mNdx1))
B48: Chunk2 = Left(Chunk2, Len(Chunk2) - 2) & " " & Right(Chunk2, 2) ' put a blank in it
B49: Chunk3 = Trim(Mid(MarketState, mNdx2))
B50: Else
B51: ' have no time stamp
B52: Chunk1 = Trim(Left(MarketState, mNdx))
B53: Chunk2 = WorksheetFunction.Text(Now(), "H:MM AM/PM")
B54: Chunk3 = Trim(Mid(MarketState, mNdx + 1))
B55: End If
B57: Delete those 15 lines and replace them with the following 21 lines of code.
B58: Copy and paste of the entire replacement 21 line block can save a bit of typing.
B60: mNdx = InStrRev(MarketState, ":", -1, vbTextCompare)
B61: If mNdx = 0 Then
B62: ' have no full colon so no timestamp
B63: Chunk1 = "LocalTime"
B64: Chunk2 = WorksheetFunction.Text(Now(), "H:MM AM/PM")
B65: Chunk3 = "Found """ & MarketState & """ to be in error!"
B66: ElseIf IsNumeric(Mid(MarketState, mNdx - 1, 1)) And IsNumeric(Mid(MarketState, mNdx + 1, 1)) Then
B67: ' have a reasonable time stamp in MarketState text string
B68: ' parse out the pieces to make pretty
B69: mNdx1 = InStrRev(MarketState, " ", mNdx, vbTextCompare) ' prior blank
B70: mNdx2 = InStr(mNdx, MarketState, " ", vbTextCompare) ' trailing blank
B71: Chunk1 = Trim(Left(MarketState, mNdx1))
B72: Chunk2 = Trim(Mid(MarketState, mNdx1 + 1, mNdx2 - 1 - mNdx1))
B73: Chunk2 = Left(Chunk2, Len(Chunk2) - 2) & " " & Right(Chunk2, 2) ' put a blank in it
B74: Chunk3 = Trim(Mid(MarketState, mNdx2))
B75: Else
B76: ' have ":" but rest does not look like a time stamp (not in expected format)
B77: Chunk1 = "LocalTime"
B78: Chunk2 = WorksheetFunction.Text(Now(), "H:MM AM/PM")
B79: Chunk3 = "Found """ & MarketState & """ not in expected format!"
B80: End If
B82: Once again, open the FIND dialog. (CTRL-F)
B84: Replace whatever is in the "FindWhat" box with: Sub ExtractCompanyIdFromSummaryText
B85: Verify that the radio button next to Current Procedure is still selected.
B86: Then click the "Find Next" button. Then close the find dialog to get it out of your way.
B88: Scroll down within the ExtractCompanyIdFromSummaryText procedure to find the following 20 lines of code.
B90: ' forward space to <div id="quote-market-notice" land mark
B91: ' This will be found just before the particular instance
B92: ' of data-reactid="40" or 41 that we would like to use
B93: firstpos = InStr(LastPos, StockSummaryPage_Html_txt, "<div id=""quote-market-notice""", vbTextCompare)
B95: ' THEN for the market state and timestamp
B96: ' forward space to data-reactid="40"> or if that is a null value then
B97: ' forward space to data-reactid="41"> (not sure why it moves between these two)
B98: firstpos = InStr(LastPos, StockSummaryPage_Html_txt, "data-reactid=""40"">", vbTextCompare)
B99: firstpos = firstpos + 18 ' bump over eyecatcher text to first char of market state text
B100: LastPos = InStr(firstpos, StockSummaryPage_Html_txt, "<", vbTextCompare)
B101: TextLen = LastPos - firstpos
B102: If TextLen = 0 Then
B103: ' null string at id = 40 so lets try id = 41
B104: firstpos = InStr(LastPos, StockSummaryPage_Html_txt, "data-reactid=""41"">", vbTextCompare)
B105: firstpos = firstpos + 18 ' bump over eyecatcher text to first char of market state text
B106: LastPos = InStr(firstpos, StockSummaryPage_Html_txt, "<", vbTextCompare)
B107: TextLen = LastPos - firstpos
B108: End If
B109: TimeAndState = Mid(StockSummaryPage_Html_txt, firstpos, TextLen)
B111: Delete those 21 lines and replace them with the following 32 lines of code.
B112: Again, copy and paste of the entire replacement 32 line block will work to save a bit of typing.
B114: ' Forward space to <div id="quote-market-notice" land mark
B115: firstpos = InStr(LastPos, StockSummaryPage_Html_txt, "<div id=""quote-market-notice""", vbTextCompare)
B116: ' My eyeball scan of the raw HTML says no inner Divs at this time.
B117: ' So we can use a simple search for the end of this div
B118: LastPos = InStr(firstpos, StockSummaryPage_Html_txt, "</div>", vbTextCompare)
B119: ' Now back space to char just in front of an expected </span> tag
B120: ' which should be jambed up tight in front of the </div> we just found.
B121: LastPos = LastPos - 8
B122: If Mid(StockSummaryPage_Html_txt, LastPos + 1, 7) <> "</span>" Then
B123: ' Not a "</span>" tag at this exact location!!
B124: ' Construction is not as we have been expecting!
B125: Stop ' to let the world know where we found this problem.
B126: '
B127: ' NOTE: At this time, you may use PF5 (function key 5) to resume processing.
B128: '
B129: TimeAndState = "Error, end span tag ""</span>"" not found as expected."
B130: Exit Sub
B131: End If
B132: TimeAndState = ""
B133: ' now scan backwards to locate the ">" character that
B134: ' immediately preceeds the market Status and Time text
B135: Dim ndx as long
B136: For ndx = LastPos To firstpos Step -1
B137: If Mid(StockSummaryPage_Html_txt, ndx, 1) = ">" Then
B138: ' found it!
B139: ' grab the text we want
B140: TextLen = LastPos - ndx
B141: TimeAndState = Mid(StockSummaryPage_Html_txt, ndx + 1, TextLen)
B142: ' and then get out of Dodge City
B143: Exit For
B144: End If
B145: Next ndx
B147: Close the VBA editor window.
B148: Save your freshly editied work book.
B150: Now go test the work book as you see fit
A152: Reported Data Download Error and FIX. Note: The spreadsheet you currently have open already incorporates this fix.
A153: For T-Tips spreadsheets since December 2017, my first spreadsheet to support for the new Yahoo Finance interface,
A154: through March 2018, several readers have reported the following failure message:
A156: “User Defined Type Not Defined”
A158: If the user selects the “Debug” option, the following statement is highlighted in the VBA code
A160: Dim MSXML2Object As MSXML2.XMLHTTP
A162: For anyone encountering this failure who is comfortable with the VBA editor, two simple edits have proven to fix the problem.
A163: First, find
A164: Dim MSXML2Object As MSXML2.XMLHTTP (which is failing for you and others)
A165: And change it to
A166: Dim MSXML2Object As MSXML2.XMLHTTP60
A168: And then later in the code find and make a necessary mirroring change from
A169: Set MSXML2Object = New MSXML2.XMLHTTP
A170: to
A171: Set MSXML2Object = New MSXML2.XMLHTTP60
A173: This spreadsheet incorporates my first cut at retrieving historical data from the "New", and not necessarily "Improved", Yahoo Finance History Download interface.
B175: My sincere apologies to our Macintosh based readers: MSXML is not supported in your environment. So as it stands this version of the spreadsheet will not work for you.
B176: See "Why this approach does not work for Macintosh" below.
B177: I am investigating cURL as a non-Querytable based approach for the Macintosh environment.
A179: The new Yahoo Finance history download interface has changed rather radically. The biggest hurdle being a pseudo-security requirement of adding a
B180: crumb character string to any URL requesting any type of history download. That crumb must match up (by way of some sort of hash algorithm) with
B181: the Yahoo Finance cookie that must also be sent with any request to the new Yahoo History down load interface.
B183: A crumb value is returned, buried in the HTML for any of what I call the "entry level" Yahoo Finance web pages (no crumb security requirement for entry level pages).
B184: A crumb may come with other Yahoo Finance pages. A crumb may even accompany some of the secured pages as well. I have not checked.
B186: Entry level pages are the top level pages of the various Yahoo Finance dialogs and include: Quote Lookup, Stock Summary Quote, and any of the pages
B187: with links in the horizontal row with the "Summary" link on the quote summary page such as Options, Historical Data, and the rest.
B189: To date I have found no way to get at this crumb value using any native EXCEL capabilities.
B191: So this crumb requirement effectively shuts out any solution that attempts to exclusively use built-in facilities of EXCEL, which is to say a purely Querytables solution.
B193: The approach built for this Traders Tip spreadsheet uses a combination of MSXML and EXCEL QueryTable calls to Load the InputPriceData worksheet.
B195: First I call MSXML to get the HTML text for the Yahoo Summary Quote page using the requested symbol. From this HTML text I extract the full company name,
B196: the market it trades, the market status and time stamp, and finally the associated crumb string. There is a bunch of other useful bits buried in this HTML
B197: text that do not necessarily appear on the web page your browser presents. Perhaps some day I will go after and build a worksheet with these other bits.
B199: Next I add the freshly extracted crumb string to the URLs I use in three separate Querytable calls to retrieve Price history, Split history, and Dividend history respectively.
B201: From there VBA code proceeds as in the past to fill in the cell formulas and formatting that make the "prettied up" InputPriceData sheet.
A203: Why this approach works for Windows:
B204: First, MSXML shares the permanent Internet Explorer web cache where cookies are maintained. Both IE and MSXML automatically
B205: update this cache when a "set cookie" header accompanies a web response. And they both automatically search this shared cache for
B206: cookies and add any "appropriate" cookies to the headers of any web requests they send out.
B207: This cookie handling automation means that even if the response to our MSXML call for the Summary web page includes a new version of
B208: the Yahoo Finance cookie, the imbedded Crumb value will always match the cookie newly installed in the cache!
B210: Second, in the Windows environment the EXCEL Querytable mechanism leans heavily on bits from Internet Explorer. This means that cookie
B211: handling is also automated from the shared cache for Querytable calls. We can count on any appropriate cookies being added to any Querytable call.
B212: We only need to do our part by adding the corresponding Crumb value to complete the security for the Querytable to access Yahoo History downloads.
A214: Why this approach does not work for Macintosh:
B215: For what it is worth, the Macintosh version of the MS Office suite of products do in fact maintain a special, shared amongst themselves only, cookie cache.
B216: They automate cookie handling into and from this cache JUST for the Office products and any Querytable activity they might originate.
B218: This cache is not tied to, nor shared with, any browser that might be installed on the MAC. And I have not found anything with HTTP capabilities similar to
B219: MSXML that can work with that Office product cookie cache.
B221: When working in the MAC EXCEL environment, without that MSXML like capability against the office shared cache, l have no mechanism
B222: to obtain a crumb value that would be a valid match to the Yahoo Finance cookie that will be automatically attached to a Querytable call.
B223: This missing facility pretty much eliminates the use of Mac environment Querytables to access the new Yahoo Finance history download interface.
A225: One very low probability potential "Gottcha" for any Querytables approach.
B226: Yahoo Finance cookies typically have an assigned expiration that is a year out (to the second) from the time they are issued.
B227: Further, these cookies are unique. Yours will not match mine.
B229: If for testing purposes, instead of MSXML, you use a fresh instance of Winhttp (Fresh instance = empty cache = no cookie to automatically send)
B230: every time you call an entry level page, the Yahoo server says "What? Entry level page? With no inbound cookie? Get them a cookie!!"
B231: and will send you a new, unique cookie and will imbed the matching crumb value in the response text for each of these "no cookie attached" calls.
B233: The Gottcha: Lets say that the Yahoo Finance cookie presently in the IE cache has an expiration date and time that just happens
B234: to fall between our MSXML call to the summary page to fetch our crumb and our first (or second, or third) Querytable call.
B235: The Querytable call after the cookie expiration may fail with a cookie and crumb validation error.
B237: Querytable error reporting is atrocious. So we will not get any sort of helpful message here. Just a very generalized message like "failed to connect".
B239: The workaround is to simply go to the InputPriceData tab and click the download button.
B240: This second time through the retrieval process should not fail on a mismatch.
B241: After all, you now have a year before the new cookie that just got put into the cache expires!
A243: Calculation and Chart Worksheet Usage Comments:
C244: In General, Items in Bolded BLUE are items you may freely change to play what-if games.
C245: Be sure to have a backup copy of the spreadsheet before you alter anything else.
A247: Features carried forward from the June 2016 version of my T-Tips Template
A248: Added a pair of buttons near cell F12 that will allow the user to step the charting window forward or backward one bar for each click.
A249: I find this to be a good way to test my understanding of the author's ideas as I step through the evolution of the price behavior and the indicators.
B251: First: In the "Help! I would like to plot data" area.
B252: Added button to resolve #NA problems by locating the bar in the input data with a slightly more recent date than what the user actually requested.
B253: I find this particularly useful when I have a general idea of where I want to be date wise. Now I can pick a set of dates "out of the air".
B254: If either (or both) of my date specifications fall between dates that are available in the price history,
... 15 more rows

Sheet InputPriceData
A1: SPDR S&P 500 ETF (SPY) -NYSEArca (Daily) | B1: NVIDIA Corporation (NVDA)
F2: Market State == > | G2: As of | H2: 15:01:00 | I2: EDT. Market open. | IJ2: 241.79
A3: Request Online Yahoo History for:
A4: Symbol | B4: SPY | D4: Valid | I4: =OFFSET(I4,-2,0,1,1) -> EDT. Market open.
A5: From | B5: 1950-01-01 | D5: Data | AF5: Trailing 12 Div return (Cur Close)
A6: To | B6: =NOW() -> 2018-05-14T17:20:29.010 | D6: Types | E6: =VLOOKUP(B7,D7:E10,2,FALSE) -> d
A7: Data Type | B7: Daily | D7: Daily | E7: d
B8: dbtX2VDkalH | D8: Weekly | E8: w
A9: Available Data | D9: Monthly | E9: m
A10: Bar Count: | B10: 6369 | AF10: =OFFSET(AC15,1,0,1,1)/OFFSET(N15,1,0,1,1) -> 0.01782744092
A11: From: | B11: =IF(B10<=0,"",OFFSET(B15,B10,IF(HistReqDataType="v",1,0),1,1)) -> 1993-01-29 | W11: Trailing 12 Month Dividend Returns
A12: To: | B12: =IF(B10<=0,"",IF(HistReqDataType="v",OFFSET(B15,2,1,1,1),OFFSET(B15,1,0,1,1))) -> 2018-05-14 | W12: Raw Close price on Dividend date | X12: Div Year and Month | Y12: Looking for year ago Div Year and Month | Z12: Year ago Div Date we found | AA12: row offset to year ago div Date | AB12: Same month flag | AC12: Trailing 12 Div Total | AD12: Trailing 12 Div return
Q13: Split History | S13: 0 | T13: Running | U13: Dividend History
B14: Raw Data Values | H14: Adjusted | I14: Price Adjust | J14: Vol Adjust | K14: Adjusted Values | P14: Last | Q14: Effective | R14: Shares | T14: Vol Adjust | V14: 105
A15: RelRow | B15: Date | C15: Open | D15: High | E15: Low | F15: Close | G15: Volume | H15: Close | I15: Factor | J15: Factor | K15: Open | L15: High | M15: Low | N15: Close | O15: Volume | P15: Trade | Q15: 43235 | R15: New | S15: Old | T15: 1 | U15: Date | V15: $ / Share
A16: 1 | B16: 2018-05-14 | C16: 273.339996 | D16: 274.079987 | E16: 272.369995 | F16: 272.950012 | G16: 30754165 | H16: 272.950012 | I16: =IF(F16=0,1,H16/F16) -> 1 | J16: =INDEX(OFFSET($T$15,0,0,$S$13+1,1),MATCH(B16,OFFSET($Q$15,0,0,$S$13+1,1),-1)) -> 1 | K16: =ROUND($I16*C16,2) -> 273.34 | L16: =ROUND($I16*D16,2) -> 274.08 | M16: 272.37 | N16: 272.95 | O16: =G16*J16 -> 30754165 | U16: 2018-03-16 | V16: 1.097 | W16: =(INDEX(OFFSET($F$15,1,0,$B$10,1),MATCH(U16,OFFSET($B$15,1,0,$B$10,1),-1))) -> 274.200012 | X16: =YEAR(U16)&RIGHT("0"&MONTH(U16),2) -> 201803 | Y16: =YEAR(U16)-1&RIGHT("0"&MONTH(U16),2) -> 201703 | Z16: =OFFSET(U15,AA16,0,1,1) -> 2017-03-17 | AA16: =MATCH(Y16,OFFSET($X$15,A16,0,$V$14+1-A16,1),-1) -> 5 | AB16: =IF(OR(AND(YEAR(U16)=YEAR(Z16),MONTH(U16)=MONTH(Z16)),MONTH(U16)=MONTH(Z16)),1,0) -> 1 | AC16: =(V16+IF(AA16-AB16=0,0,IFERROR(SUM(OFFSET(V16,1,0,AA16-AB16-1,1)),0))) -> 4.866 | AD16: =AC16/(INDEX(OFFSET($F$15,1,0,$B$10,1),MATCH(U16,OFFSET($B$15,1,0,$B$10,1),-1))) -> 0.0177461699
A17: 2 | B17: 2018-05-11 | C17: 272.160004 | D17: 273.149994 | E17: 271.579987 | F17: 272.850006 | G17: 58250000 | H17: 272.850006 | I17: =IF(F17=0,1,H17/F17) -> 1 | J17: =INDEX(OFFSET($T$15,0,0,$S$13+1,1),MATCH(B17,OFFSET($Q$15,0,0,$S$13+1,1),-1)) -> 1 | K17: =ROUND($I17*C17,2) -> 272.16 | L17: =ROUND($I17*D17,2) -> 273.15 | M17: =ROUND($I17*E17,2) -> 271.58 | N17: =ROUND($I17*F17,2) -> 272.85 | O17: =G17*J17 -> 58250000 | U17: 2017-12-15 | V17: 1.351 | W17: =(INDEX(OFFSET($F$15,1,0,$B$10,1),MATCH(U17,OFFSET($B$15,1,0,$B$10,1),-1))) -> 266.51001 | X17: =YEAR(U17)&RIGHT("0"&MONTH(U17),2) -> 201712 | Y17: =YEAR(U17)-1&RIGHT("0"&MONTH(U17),2) -> 201612 | Z17: =OFFSET(U16,AA17,0,1,1) -> 2016-12-16 | AA17: =MATCH(Y17,OFFSET($X$15,A17,0,$V$14+1-A17,1),-1) -> 5 | AB17: =IF(OR(AND(YEAR(U17)=YEAR(Z17),MONTH(U17)=MONTH(Z17)),MONTH(U17)=MONTH(Z17)),1,0) -> 1 | AC17: =(V17+IF(AA17-AB17=0,0,IFERROR(SUM(OFFSET(V17,1,0,AA17-AB17-1,1)),0))) -> 4.802 | AD17: =AC17/(INDEX(OFFSET($F$15,1,0,$B$10,1),MATCH(U17,OFFSET($B$15,1,0,$B$10,1),-1))) -> 0.01801808495
A18: 3 | B18: 2018-05-10 | C18: 270.339996 | D18: 272.390015 | E18: 270.220001 | F18: 272.019989 | G18: 72063900 | H18: 272.019989 | I18: 1 | J18: 1 | K18: 270.34 | L18: 272.39 | M18: 270.22 | N18: 272.02 | O18: 72063900 | U18: 2017-09-15 | V18: 1.235 | W18: 249.190002 | X18: 201709 | Y18: 201609 | Z18: 2016-09-16 | AA18: 5 | AB18: 1 | AC18: 4.77993 | AD18: 0.0191818691
A19: 4 | B19: 2018-05-09 | C19: 267.679993 | D19: 269.869995 | E19: 267.089996 | F19: 269.5 | G19: 59666100 | H19: 269.5 | I19: 1 | J19: 1 | K19: 267.68 | L19: 269.87 | M19: 267.09 | N19: 269.5 | O19: 59666100 | U19: 2017-06-16 | V19: 1.183 | W19: 242.639999 | X19: 201706 | Y19: 201606 | Z19: 2016-06-17 | AA19: 5 | AB19: 1 | AC19: 4.627 | AD19: 0.01906940331
A20: 5 | B20: 2018-05-08 | C20: 266.5 | D20: 267.329987 | E20: 265.149994 | F20: 266.920013 | G20: 67499200 | H20: 266.920013 | I20: 1 | J20: 1 | K20: 266.5 | L20: 267.33 | M20: 265.15 | N20: 266.92 | O20: 67499200 | U20: 2017-03-17 | V20: 1.033 | W20: 237.029999 | X20: 201703 | Y20: 201603 | Z20: 2016-03-18 | AA20: 5 | AB20: 1 | AC20: 4.52244 | AD20: 0.01907961026
A21: 6 | B21: 2018-05-07 | C21: 266.890015 | D21: 268.019989 | E21: 266.109985 | F21: 266.920013 | G21: 55304900 | H21: 266.920013 | I21: 1 | J21: 1 | K21: 266.89 | L21: 268.02 | M21: 266.11 | N21: 266.92 | O21: 55304900 | U21: 2016-12-16 | V21: 1.32893 | W21: 225.039993 | X21: 201612 | Y21: 201512 | Z21: 2015-12-18 | AA21: 5 | AB21: 1 | AC21: 4.53904 | AD21: 0.02016992597
A22: 7 | B22: 2018-05-04 | C22: 261.519989 | D22: 266.790009 | E22: 261.149994 | F22: 266.019989 | G22: 91222100 | H22: 266.019989 | I22: 1 | J22: 1 | K22: 261.52 | L22: 266.79 | M22: 261.15 | N22: 266.02 | O22: 91222100 | U22: 2016-09-16 | V22: 1.08207 | W22: 213.369995 | X22: 201609 | Y22: 201509 | Z22: 2015-09-18 | AA22: 5 | AB22: 1 | AC22: 4.42166 | AD22: 0.02072296998
A23: 8 | B23: 2018-05-03 | C23: 262.26001 | D23: 263.359985 | E23: 259.049988 | F23: 262.619995 | G23: 136311500 | H23: 262.619995 | I23: 1 | J23: 1 | K23: 262.26 | L23: 263.36 | M23: 259.05 | N23: 262.62 | O23: 136311500 | U23: 2016-06-17 | V23: 1.07844 | W23: 206.520004 | X23: 201606 | Y23: 201506 | Z23: 2015-06-19 | AA23: 5 | AB23: 1 | AC23: 4.37302 | AD23: 0.02117480106
A24: 9 | B24: 2018-05-02 | C24: 264.76001 | D24: 265.679993 | E24: 262.76001 | F24: 263.200012 | G24: 86368900 | H24: 263.200012 | I24: 1 | J24: 1 | K24: 264.76 | L24: 265.68 | M24: 262.76 | N24: 263.2 | O24: 86368900 | U24: 2016-03-18 | V24: 1.0496 | W24: 204.380005 | X24: 201603 | Y24: 201503 | Z24: 2015-03-20 | AA24: 5 | AB24: 1 | AC24: 4.32465 | AD24: 0.02115984878
A25: 10 | B25: 2018-05-01 | C25: 263.869995 | D25: 265.100006 | E25: 262.109985 | F25: 264.980011 | G25: 74203400 | H25: 264.980011 | I25: 1 | J25: 1 | K25: 263.87 | L25: 265.1 | M25: 262.11 | N25: 264.98 | O25: 74203400 | U25: 2015-12-18 | V25: 1.21155 | W25: 200.020004 | X25: 201512 | Y25: 201412 | Z25: 2014-12-19 | AA25: 5 | AB25: 1 | AC25: 4.20586 | AD25: 0.02102719686
A26: 11 | B26: 2018-04-30 | C26: 267.26001 | D26: 267.890015 | E26: 264.429993 | F26: 264.51001 | G26: 82182300 | H26: 264.51001 | I26: 1 | J26: 1 | K26: 267.26 | L26: 267.89 | M26: 264.43 | N26: 264.51 | O26: 82182300 | U26: 2015-09-18 | V26: 1.03343 | W26: 195.360001 | X26: 201509 | Y26: 201409 | Z26: 2014-09-19 | AA26: 5 | AB26: 1 | AC26: 4.12923 | AD26: 0.02113651709
A27: 12 | B27: 2018-04-27 | C27: 267 | D27: 267.339996 | E27: 265.5 | F27: 266.559998 | G27: 57053600 | H27: 266.559998 | I27: 1 | J27: 1 | K27: 267 | L27: 267.34 | M27: 265.5 | N27: 266.56 | O27: 57053600 | U27: 2015-06-19 | V27: 1.03007 | W27: 210.809998 | X27: 201506 | Y27: 201406 | Z27: 2014-06-20 | AA27: 5 | AB27: 1 | AC27: 4.03499 | AD27: 0.01914041098
A28: 13 | B28: 2018-04-26 | C28: 264.790009 | D28: 267.25 | E28: 264.290009 | F28: 266.309998 | G28: 67731900 | H28: 266.309998 | I28: 1 | J28: 1 | K28: 264.79 | L28: 267.25 | M28: 264.29 | N28: 266.31 | O28: 67731900 | U28: 2015-03-20 | V28: 0.93081 | W28: 210.410004 | X28: 201503 | Y28: 201403 | Z28: 2014-03-21 | AA28: 5 | AB28: 1 | AC28: 3.94161 | AD28: 0.01873299712
A29: 14 | B29: 2018-04-25 | C29: 262.910004 | D29: 264.130005 | E29: 260.850006 | F29: 263.630005 | G29: 103840900 | H29: 263.630005 | I29: 1 | J29: 1 | K29: 262.91 | L29: 264.13 | M29: 260.85 | N29: 263.63 | O29: 103840900 | U29: 2014-12-19 | V29: 1.13492 | W29: 206.520004 | X29: 201412 | Y29: 201312 | Z29: 2013-12-20 | AA29: 5 | AB29: 1 | AC29: 3.83541 | AD29: 0.01857161498
A30: 15 | B30: 2018-04-24 | C30: 267.730011 | D30: 267.980011 | E30: 261.279999 | F30: 262.980011 | G30: 112885500 | H30: 262.980011 | I30: 1 | J30: 1 | K30: 267.73 | L30: 267.98 | M30: 261.28 | N30: 262.98 | O30: 112885500 | U30: 2014-09-19 | V30: 0.93919 | W30: 200.699997 | X30: 201409 | Y30: 201309 | Z30: 2013-09-20 | AA30: 5 | AB30: 1 | AC30: 3.68074 | AD30: 0.01833951198
A31: 16 | B31: 2018-04-23 | C31: 267.26001 | D31: 267.890015 | E31: 265.350006 | F31: 266.570007 | G31: 65558000 | H31: 266.570007 | I31: 1 | J31: 1 | K31: 267.26 | L31: 267.89 | M31: 265.35 | N31: 266.57 | O31: 65558000 | U31: 2014-06-20 | V31: 0.93669 | W31: 195.940002 | X31: 201406 | Y31: 201306 | Z31: 2013-06-21 | AA31: 5 | AB31: 1 | AC31: 3.5795 | AD31: 0.01826834727
A32: 17 | B32: 2018-04-20 | C32: 268.809998 | D32: 269.059998 | E32: 265.609985 | F32: 266.609985 | G32: 99953100 | H32: 266.609985 | I32: 1 | J32: 1 | K32: 268.81 | L32: 269.06 | M32: 265.61 | N32: 266.61 | O32: 99953100 | U32: 2014-03-21 | V32: 0.82461 | W32: 186.199997 | X32: 201403 | Y32: 201303 | Z32: 2013-03-15 | AA32: 5 | AB32: 1 | AC32: 3.48181 | AD32: 0.01869930213
A33: 18 | B33: 2018-04-19 | C33: 269.649994 | D33: 269.880005 | E33: 267.720001 | F33: 268.890015 | G33: 77655900 | H33: 268.890015 | I33: 1 | J33: 1 | K33: 269.65 | L33: 269.88 | M33: 267.72 | N33: 268.89 | O33: 77655900 | U33: 2013-12-20 | V33: 0.98025 | W33: 181.559998 | X33: 201312 | Y33: 201212 | Z33: 2012-12-21 | AA33: 5 | AB33: 1 | AC33: 3.3512 | AD33: 0.01845781029
A34: 19 | B34: 2018-04-18 | C34: 270.690002 | D34: 271.299988 | E34: 269.869995 | F34: 270.390015 | G34: 57303900 | H34: 270.390015 | I34: 1 | J34: 1 | K34: 270.69 | L34: 271.3 | M34: 269.87 | N34: 270.39 | O34: 57303900 | U34: 2013-09-20 | V34: 0.83795 | W34: 170.720001 | X34: 201309 | Y34: 201209 | Z34: 2012-09-21 | AA34: 5 | AB34: 1 | AC34: 3.39295 | AD34: 0.01987435555
A35: 20 | B35: 2018-04-17 | C35: 269.329987 | D35: 270.869995 | E35: 268.75 | F35: 270.190002 | G35: 64682000 | H35: 270.190002 | I35: 1 | J35: 1 | K35: 269.33 | L35: 270.87 | M35: 268.75 | N35: 270.19 | O35: 64682000 | U35: 2013-06-21 | V35: 0.839 | W35: 159.070007 | X35: 201306 | Y35: 201206 | Z35: 2012-06-15 | AA35: 5 | AB35: 1 | AC35: 3.334 | AD35: 0.02095932516
A36: 21 | B36: 2018-04-16 | C36: 267 | D36: 268.200012 | E36: 266.070007 | F36: 267.329987 | G36: 63405300 | H36: 267.329987 | I36: 1 | J36: 1 | K36: 267 | L36: 268.2 | M36: 266.07 | N36: 267.33 | O36: 63405300 | U36: 2013-03-15 | V36: 0.694 | W36: 155.830002 | X36: 201303 | Y36: 201203 | Z36: 2012-03-16 | AA36: 5 | AB36: 1 | AC36: 3.183 | AD36: 0.02042610511
A37: 22 | B37: 2018-04-13 | C37: 267.410004 | D37: 267.540009 | E37: 264.01001 | F37: 265.149994 | G37: 85079200 | H37: 265.149994 | I37: 1 | J37: 1 | K37: 267.41 | L37: 267.54 | M37: 264.01 | N37: 265.15 | O37: 85079200 | U37: 2012-12-21 | V37: 1.022 | W37: 142.789993 | X37: 201212 | Y37: 201112 | Z37: 2011-12-16 | AA37: 5 | AB37: 1 | AC37: 3.103 | AD37: 0.02173121474
A38: 23 | B38: 2018-04-12 | C38: 265.26001 | D38: 267 | E38: 265.059998 | F38: 265.929993 | G38: 68890500 | H38: 265.929993 | I38: 1 | J38: 1 | K38: 265.26 | L38: 267 | M38: 265.06 | N38: 265.93 | O38: 68890500 | U38: 2012-09-21 | V38: 0.779 | W38: 145.869995 | X38: 201209 | Y38: 201109 | Z38: 2011-09-16 | AA38: 5 | AB38: 1 | AC38: 2.851 | AD38: 0.01954480083
A39: 24 | B39: 2018-04-11 | C39: 263.470001 | D39: 265.640015 | E39: 263.390015 | F39: 263.76001 | G39: 91140200 | H39: 263.76001 | I39: 1 | J39: 1 | K39: 263.47 | L39: 265.64 | M39: 263.39 | N39: 263.76 | O39: 91140200 | U39: 2012-06-15 | V39: 0.688 | W39: 134.139999 | X39: 201206 | Y39: 201106 | Z39: 2011-06-17 | AA39: 5 | AB39: 1 | AC39: 2.697 | AD39: 0.0201058597
A40: 25 | B40: 2018-04-10 | C40: 264.269989 | D40: 266.040009 | E40: 262.980011 | F40: 265.149994 | G40: 103529000 | H40: 265.149994 | I40: 1 | J40: 1 | K40: 264.27 | L40: 266.04 | M40: 262.98 | N40: 265.15 | O40: 103529000 | U40: 2012-03-16 | V40: 0.614 | W40: 140.300003 | X40: 201203 | Y40: 201103 | Z40: 2011-03-18 | AA40: 5 | AB40: 1 | AC40: 2.637 | AD40: 0.01879543794
A41: 26 | B41: 2018-04-09 | C41: 261.369995 | D41: 264.839996 | E41: 259.940002 | F41: 261 | G41: 105442900 | H41: 261 | I41: 1 | J41: 1 | K41: 261.37 | L41: 264.84 | M41: 259.94 | N41: 261 | O41: 105442900 | U41: 2011-12-16 | V41: 0.77 | W41: 121.589996 | X41: 201112 | Y41: 201012 | Z41: 2010-12-17 | AA41: 5 | AB41: 1 | AC41: 2.576 | AD41: 0.02118595349
A42: 27 | B42: 2018-04-06 | C42: 263.420013 | D42: 265.109985 | E42: 258 | F42: 259.720001 | G42: 179521200 | H42: 259.720001 | I42: 1 | J42: 1 | K42: 263.42 | L42: 265.11 | M42: 258 | N42: 259.72 | O42: 179521200 | U42: 2011-09-16 | V42: 0.625 | W42: 121.519997 | X42: 201109 | Y42: 201009 | Z42: 2010-09-17 | AA42: 5 | AB42: 1 | AC42: 2.459 | AD42: 0.0202353527
A43: 28 | B43: 2018-04-05 | C43: 265.549988 | D43: 266.640015 | E43: 264.320007 | F43: 265.640015 | G43: 82652600 | H43: 265.640015 | I43: 1 | J43: 1 | K43: 265.55 | L43: 266.64 | M43: 264.32 | N43: 265.64 | O43: 82652600 | U43: 2011-06-17 | V43: 0.628 | W43: 127.050003 | X43: 201106 | Y43: 201006 | Z43: 2010-06-18 | AA43: 5 | AB43: 1 | AC43: 2.436 | AD43: 0.01917355327
A44: 29 | B44: 2018-04-04 | C44: 256.75 | D44: 264.359985 | E44: 256.600006 | F44: 263.559998 | G44: 123715300 | H44: 263.559998 | I44: 1 | J44: 1 | K44: 256.75 | L44: 264.36 | M44: 256.6 | N44: 263.56 | O44: 123715300 | U44: 2011-03-18 | V44: 0.553 | W44: 127.760002 | X44: 201103 | Y44: 201003 | Z44: 2010-03-19 | AA44: 5 | AB44: 1 | AC44: 2.339 | AD44: 0.01830776427
A45: 30 | B45: 2018-04-03 | C45: 258.869995 | D45: 261.309998 | E45: 256.839996 | F45: 260.769989 | G45: 119956900 | H45: 260.769989 | I45: 1 | J45: 1 | K45: 258.87 | L45: 261.31 | M45: 256.84 | N45: 260.77 | O45: 119956900 | U45: 2010-12-17 | V45: 0.653 | W45: 124.300003 | X45: 201012 | Y45: 200912 | Z45: 2009-12-18 | AA45: 5 | AB45: 1 | AC45: 2.266 | AD45: 0.01823008806
A46: 31 | B46: 2018-04-02 | C46: 262.549988 | D46: 263.130005 | E46: 254.669998 | F46: 257.470001 | G46: 186286300 | H46: 257.470001 | I46: 1 | J46: 1 | K46: 262.55 | L46: 263.13 | M46: 254.67 | N46: 257.47 | O46: 186286300 | U46: 2010-09-17 | V46: 0.602 | W46: 112.489998 | X46: 201009 | Y46: 200909 | Z46: 2009-09-18 | AA46: 5 | AB46: 1 | AC46: 2.203 | AD46: 0.01958396337
A47: 32 | B47: 2018-03-29 | C47: 261.119995 | D47: 265.26001 | E47: 259.839996 | F47: 263.149994 | G47: 111601600 | H47: 263.149994 | I47: 1 | J47: 1 | K47: 261.12 | L47: 265.26 | M47: 259.84 | N47: 263.15 | O47: 111601600 | U47: 2010-06-18 | V47: 0.531 | W47: 111.730003 | X47: 201006 | Y47: 200906 | Z47: 2009-06-19 | AA47: 5 | AB47: 1 | AC47: 2.109 | AD47: 0.01887586094
A48: 33 | B48: 2018-03-28 | C48: 260.75 | D48: 262.640015 | E48: 258.579987 | F48: 259.829987 | G48: 146452300 | H48: 259.829987 | I48: 1 | J48: 1 | K48: 260.75 | L48: 262.64 | M48: 258.58 | N48: 259.83 | O48: 146452300 | U48: 2010-03-19 | V48: 0.48 | W48: 115.970001 | X48: 201003 | Y48: 200903 | Z48: 2009-03-20 | AA48: 5 | AB48: 1 | AC48: 2.096 | AD48: 0.01807363958
A49: 34 | B49: 2018-03-27 | C49: 266.170013 | D49: 266.769989 | E49: 258.839996 | F49: 260.600006 | G49: 129941400 | H49: 260.600006 | I49: 1 | J49: 1 | K49: 266.17 | L49: 266.77 | M49: 258.84 | N49: 260.6 | O49: 129941400 | U49: 2009-12-18 | V49: 0.59 | W49: 110.209999 | X49: 200912 | Y49: 200812 | Z49: 2008-12-19 | AA49: 5 | AB49: 1 | AC49: 2.177 | AD49: 0.01975319862
A50: 35 | B50: 2018-03-26 | C50: 262.130005 | D50: 265.429993 | E50: 259.410004 | F50: 265.109985 | G50: 141956100 | H50: 265.109985 | I50: 1 | J50: 1 | K50: 262.13 | L50: 265.43 | M50: 259.41 | N50: 265.11 | O50: 141956100 | U50: 2009-09-18 | V50: 0.508 | W50: 106.720001 | X50: 200909 | Y50: 200809 | Z50: 2008-09-19 | AA50: 5 | AB50: 1 | AC50: 2.306 | AD50: 0.02160794582
A51: 36 | B51: 2018-03-23 | C51: 264.170013 | D51: 264.540009 | E51: 257.829987 | F51: 258.049988 | G51: 183534800 | H51: 258.049988 | I51: 1 | J51: 1 | K51: 264.17 | L51: 264.54 | M51: 257.83 | N51: 258.05 | O51: 183534800 | U51: 2009-06-19 | V51: 0.518 | W51: 92.040001 | X51: 200906 | Y51: 200806 | Z51: 2008-06-20 | AA51: 5 | AB51: 1 | AC51: 2.489 | AD51: 0.02704258988
A52: 37 | B52: 2018-03-22 | C52: 267.910004 | D52: 268.869995 | E52: 263.359985 | F52: 263.670013 | G52: 148785900 | H52: 263.670013 | I52: 1 | J52: 1 | K52: 267.91 | L52: 268.87 | M52: 263.36 | N52: 263.67 | O52: 148785900 | U52: 2009-03-20 | V52: 0.561 | W52: 76.709999 | X52: 200903 | Y52: 200803 | Z52: 2008-03-20 | AA52: 5 | AB52: 1 | AC52: 2.64 | AD52: 0.03441533091
A53: 38 | B53: 2018-03-21 | C53: 270.899994 | D53: 273.269989 | E53: 270.190002 | F53: 270.429993 | G53: 78709600 | H53: 270.429993 | I53: 1 | J53: 1 | K53: 270.9 | L53: 273.27 | M53: 270.19 | N53: 270.43 | O53: 78709600 | U53: 2008-12-19 | V53: 0.719 | W53: 88.190002 | X53: 200812 | Y53: 200712 | Z53: 2007-12-21 | AA53: 5 | AB53: 1 | AC53: 2.721 | AD53: 0.0308538376
A54: 39 | B54: 2018-03-20 | C54: 270.940002 | D54: 271.670013 | E54: 270.179993 | F54: 270.950012 | G54: 59757300 | H54: 270.950012 | I54: 1 | J54: 1 | K54: 270.94 | L54: 271.67 | M54: 270.18 | N54: 270.95 | O54: 59757300 | U54: 2008-09-19 | V54: 0.691 | W54: 124.120003 | X54: 200809 | Y54: 200709 | Z54: 2007-09-21 | AA54: 5 | AB54: 1 | AC54: 2.777 | AD54: 0.02237350897
A55: 40 | B55: 2018-03-19 | C55: 273.350006 | D55: 274.399994 | E55: 268.619995 | F55: 270.48999 | G55: 109208400 | H55: 270.48999 | I55: 1 | J55: 1 | K55: 273.35 | L55: 274.4 | M55: 268.62 | N55: 270.49 | O55: 109208400 | U55: 2008-06-20 | V55: 0.669 | W55: 131.580002 | X55: 200806 | Y55: 200706 | Z55: 2007-06-15 | AA55: 5 | AB55: 1 | AC55: 2.805 | AD55: 0.02131782913
A56: 41 | B56: 2018-03-16 | C56: 274.5 | D56: 275.390015 | E56: 274.140015 | F56: 274.200012 | G56: 100343700 | H56: 274.200012 | I56: 1 | J56: 1 | K56: 274.5 | L56: 275.39 | M56: 274.14 | N56: 274.2 | O56: 100343700 | U56: 2008-03-20 | V56: 0.642 | W56: 132.080002 | X56: 200803 | Y56: 200703 | Z56: 2007-03-16 | AA56: 5 | AB56: 1 | AC56: 2.792 | AD56: 0.0211387035
A57: 42 | B57: 2018-03-15 | C57: 275.880005 | D57: 276.609985 | E57: 274.429993 | F57: 275 | G57: 83433000 | H57: 273.902985 | I57: 0.9960108545 | J57: 1 | K57: 274.78 | L57: 275.51 | M57: 273.34 | N57: 273.9 | O57: 83433000 | U57: 2007-12-21 | V57: 0.775 | W57: 148.130005 | X57: 200712 | Y57: 200612 | Z57: 2006-12-15 | AA57: 5 | AB57: 1 | AC57: 2.701 | AD57: 0.01823398305
A58: 43 | B58: 2018-03-14 | C58: 277.809998 | D58: 278.019989 | E58: 274.670013 | F58: 275.299988 | G58: 105895100 | H58: 274.201782 | I58: 0.9960108752 | J58: 1 | K58: 276.7 | L58: 276.91 | M58: 273.57 | N58: 274.2 | O58: 105895100 | U58: 2007-09-21 | V58: 0.719 | W58: 151.970001 | X58: 200709 | Y58: 200609 | Z58: 2006-09-15 | AA58: 5 | AB58: 1 | AC58: 2.719 | AD58: 0.01789168903
A59: 44 | B59: 2018-03-13 | C59: 279.839996 | D59: 280.410004 | E59: 276.029999 | F59: 276.720001 | G59: 91968900 | H59: 275.61615 | I59: 0.9960109461 | J59: 1 | K59: 278.72 | L59: 279.29 | M59: 274.93 | N59: 275.62 | O59: 91968900 | U59: 2007-06-15 | V59: 0.656 | W59: 153.070007 | X59: 200706 | Y59: 200606 | Z59: 2006-06-16 | AA59: 5 | AB59: 1 | AC59: 2.579 | AD59: 0.01684849992
A60: 45 | B60: 2018-03-12 | C60: 279.200012 | D60: 279.910004 | E60: 278.079987 | F60: 278.519989 | G60: 71924800 | H60: 277.408936 | I60: 0.996010868 | J60: 1 | K60: 278.09 | L60: 278.79 | M60: 276.97 | N60: 277.41 | O60: 71924800 | U60: 2007-03-16 | V60: 0.551 | W60: 138.529999 | X60: 200703 | Y60: 200603 | Z60: 2006-03-17 | AA60: 5 | AB60: 1 | AC60: 2.478 | AD60: 0.01788782226
A61: 46 | B61: 2018-03-09 | C61: 275.700012 | D61: 278.869995 | E61: 275.339996 | F61: 278.869995 | G61: 113625300 | H61: 277.757568 | I61: 0.9960109477 | J61: 1 | K61: 274.6 | L61: 277.76 | M61: 274.24 | N61: 277.76 | O61: 113625300 | U61: 2006-12-15 | V61: 0.793 | W61: 142.339996 | X61: 200612 | Y61: 200512 | Z61: 2005-12-16 | AA61: 5 | AB61: 1 | AC61: 2.446 | AD61: 0.01718420731
A62: 47 | B62: 2018-03-08 | C62: 273.549988 | D62: 274.23999 | E62: 272.420013 | F62: 274.100006 | G62: 66901200 | H62: 273.006592 | I62: 0.9960108939 | J62: 1 | K62: 272.46 | L62: 273.15 | M62: 271.33 | N62: 273.01 | O62: 66901200 | U62: 2006-09-15 | V62: 0.579 | W62: 131.960007 | X62: 200609 | Y62: 200509 | Z62: 2005-09-16 | AA62: 5 | AB62: 1 | AC62: 2.325 | AD62: 0.01761897451
A63: 48 | B63: 2018-03-07 | C63: 270.420013 | D63: 273.179993 | E63: 270.200012 | F63: 272.779999 | G63: 87063500 | H63: 271.691864 | I63: 0.9960109429 | J63: 1 | K63: 269.34 | L63: 272.09 | M63: 269.12 | N63: 271.69 | O63: 87063500 | U63: 2006-06-16 | V63: 0.555 | W63: 124.650002 | X63: 200606 | Y63: 200506 | Z63: 2005-06-17 | AA63: 5 | AB63: 1 | AC63: 2.268 | AD63: 0.01819494556
A64: 49 | B64: 2018-03-06 | C64: 273.299988 | D64: 273.390015 | E64: 271.179993 | F64: 272.880005 | G64: 79213200 | H64: 271.791473 | I64: 0.9960109499 | J64: 1 | K64: 272.21 | L64: 272.3 | M64: 270.1 | N64: 271.79 | O64: 79213200 | U64: 2006-03-17 | V64: 0.519 | W64: 130.619995 | X64: 200603 | Y64: 200503 | Z64: 2005-03-18 | AA64: 5 | AB64: 1 | AC64: 2.201 | AD64: 0.0168504064
A65: 50 | B65: 2018-03-05 | C65: 267.730011 | D65: 272.890015 | E65: 267.609985 | F65: 272.190002 | G65: 97307400 | H65: 271.104218 | I65: 0.9960109336 | J65: 1 | K65: 266.66 | L65: 271.8 | M65: 266.54 | N65: 271.1 | O65: 97307400 | U65: 2005-12-16 | V65: 0.672 | W65: 126.360001 | X65: 200512 | Y65: 200412 | Z65: 2004-12-17 | AA65: 5 | AB65: 1 | AC65: 2.149 | AD65: 0.01700696409
A66: 51 | B66: 2018-03-02 | C66: 265.799988 | D66: 269.720001 | E66: 264.820007 | F66: 269.079987 | G66: 139083200 | H66: 268.006592 | I66: 0.9960108702 | J66: 1 | K66: 264.74 | L66: 268.64 | M66: 263.76 | N66: 268.01 | O66: 139083200 | U66: 2005-09-16 | V66: 0.522 | W66: 123.5 | X66: 200509 | Y66: 200409 | Z66: 2004-09-17 | AA66: 6 | AB66: 1 | AC66: 2.396 | AD66: 0.01940080972
A67: 52 | B67: 2018-03-01 | C67: 271.410004 | D67: 273.170013 | E67: 266 | F67: 267.700012 | G67: 176855100 | H67: 266.632141 | I67: 0.9960109415 | J67: 1 | K67: 270.33 | L67: 272.08 | M67: 264.94 | N67: 266.63 | O67: 176855100 | U67: 2005-06-17 | V67: 0.488 | W67: 121.360001 | X67: 200506 | Y67: 200406 | Z67: 2004-06-18 | AA67: 6 | AB67: 1 | AC67: 2.343 | AD67: 0.01930619628
A68: 53 | B68: 2018-02-28 | C68: 275.679993 | D68: 276.190002 | E68: 271.290009 | F68: 271.649994 | G68: 121907800 | H68: 270.566345 | I68: 0.9960108632 | J68: 1 | K68: 274.58 | L68: 275.09 | M68: 270.21 | N68: 270.57 | O68: 121907800 | U68: 2005-03-18 | V68: 0.467 | W68: 118.540001 | X68: 200503 | Y68: 200403 | Z68: 2004-03-19 | AA68: 6 | AB68: 1 | AC68: 2.269 | AD68: 0.01914121799
A69: 54 | B69: 2018-02-27 | C69: 278.109985 | D69: 278.920013 | E69: 274.359985 | F69: 274.429993 | G69: 99099200 | H69: 273.335266 | I69: 0.9960109061 | J69: 1 | K69: 277 | L69: 277.81 | M69: 273.27 | N69: 273.34 | O69: 99099200 | U69: 2004-12-17 | V69: 0.568 | W69: 119.440002 | X69: 200412 | Y69: 200312 | Z69: 2003-12-19 | AA69: 6 | AB69: 1 | AC69: 2.197 | AD69: 0.0183941725
A70: 55 | B70: 2018-02-26 | C70: 275.929993 | D70: 278.01001 | E70: 275.26001 | F70: 277.899994 | G70: 86491400 | H70: 276.791412 | I70: 0.9960108599 | J70: 1 | K70: 274.83 | L70: 276.9 | M70: 274.16 | N70: 276.79 | O70: 86491400 | U70: 2004-11-15 | V70: 0.351 | W70: 118.730003 | X70: 200411 | Y70: 200311 | Z70: 2003-12-19 | AA70: 5 | AB70: 0 | AC70: 2.145 | AD70: 0.01806620017
A71: 56 | B71: 2018-02-23 | C71: 271.790009 | D71: 274.709991 | E71: 271.25 | F71: 274.709991 | G71: 92766400 | H71: 273.614136 | I71: 0.9960108659 | J71: 1 | K71: 270.71 | L71: 273.61 | M71: 270.17 | N71: 273.61 | O71: 92766400 | U71: 2004-09-17 | V71: 0.469 | W71: 113.150002 | X71: 200409 | Y71: 200309 | Z71: 2003-09-19 | AA71: 5 | AB71: 1 | AC71: 1.794 | AD71: 0.01585505938
A72: 57 | B72: 2018-02-22 | C72: 271.100006 | D72: 273.049988 | E72: 269.640015 | F72: 270.399994 | G72: 110511300 | H72: 269.32135 | I72: 0.9960109319 | J72: 1 | K72: 270.02 | L72: 271.96 | M72: 268.56 | N72: 269.32 | O72: 110511300 | U72: 2004-06-18 | V72: 0.414 | W72: 113.629997 | X72: 200406 | Y72: 200306 | Z72: 2003-06-20 | AA72: 5 | AB72: 1 | AC72: 1.725 | AD72: 0.01518085053
A73: 58 | B73: 2018-02-21 | C73: 271.899994 | D73: 274.720001 | E73: 269.940002 | F73: 270.049988 | G73: 98883700 | H73: 268.972717 | I73: 0.996010846 | J73: 1 | K73: 270.82 | L73: 273.62 | M73: 268.86 | N73: 268.97 | O73: 98883700 | U73: 2004-03-19 | V73: 0.395 | W73: 111.059998 | X73: 200403 | Y73: 200303 | Z73: 2003-03-21 | AA73: 5 | AB73: 1 | AC73: 1.671 | AD73: 0.01504592139
A74: 59 | B74: 2018-02-20 | C74: 272.029999 | D74: 273.670013 | E74: 270.5 | F74: 271.399994 | G74: 86369700 | H74: 270.317352 | I74: 0.996010899 | J74: 1 | K74: 270.94 | L74: 272.58 | M74: 269.42 | N74: 270.32 | O74: 86369700 | U74: 2003-12-19 | V74: 0.516 | W74: 108.900002 | X74: 200312 | Y74: 200212 | Z74: 2002-12-20 | AA74: 5 | AB74: 1 | AC74: 1.63 | AD74: 0.01496786015
A75: 60 | B75: 2018-02-16 | C75: 272.320007 | D75: 275.320007 | E75: 272.269989 | F75: 273.109985 | G75: 160420100 | H75: 272.020508 | I75: 0.9960108489 | J75: 1 | K75: 271.23 | L75: 274.22 | M75: 271.18 | N75: 272.02 | O75: 160420100 | U75: 2003-09-19 | V75: 0.4 | W75: 103.669998 | X75: 200309 | Y75: 200209 | Z75: 2002-09-20 | AA75: 5 | AB75: 1 | AC75: 1.55 | AD75: 0.01495128803
A76: 61 | B76: 2018-02-15 | C76: 271.570007 | D76: 273.040009 | E76: 268.769989 | F76: 273.029999 | G76: 111200300 | H76: 271.940857 | I76: 0.9960109072 | J76: 1 | K76: 270.49 | L76: 271.95 | M76: 267.7 | N76: 271.94 | O76: 111200300 | U76: 2003-06-20 | V76: 0.36 | W76: 99.440002 | X76: 200306 | Y76: 200206 | Z76: 2002-06-21 | AA76: 5 | AB76: 1 | AC76: 1.528 | AD76: 0.01536604957
A77: 62 | B77: 2018-02-14 | C77: 264.309998 | D77: 270 | E77: 264.299988 | F77: 269.589996 | G77: 120735700 | H77: 268.514587 | I77: 0.9960109462 | J77: 1 | K77: 263.26 | L77: 268.92 | M77: 263.25 | N77: 268.51 | O77: 120735700 | U77: 2003-03-21 | V77: 0.354 | W77: 89.669998 | X77: 200303 | Y77: 200203 | Z77: 2002-03-15 | AA77: 5 | AB77: 1 | AC77: 1.521 | AD77: 0.01696219509
A78: 63 | B78: 2018-02-13 | C78: 263.970001 | D78: 266.619995 | E78: 263.309998 | F78: 266 | G78: 81223600 | H78: 264.938904 | I78: 0.9960109173 | J78: 1 | K78: 262.92 | L78: 265.56 | M78: 262.26 | N78: 264.94 | O78: 81223600 | U78: 2002-12-20 | V78: 0.436 | W78: 89.989998 | X78: 200212 | Y78: 200112 | Z78: 2001-12-21 | AA78: 5 | AB78: 1 | AC78: 1.498 | AD78: 0.0166462944
A79: 64 | B79: 2018-02-12 | C79: 263.829987 | D79: 267.01001 | E79: 261.660004 | F79: 265.339996 | G79: 143736000 | H79: 264.281525 | I79: 0.9960108879 | J79: 1 | K79: 262.78 | L79: 265.94 | M79: 260.62 | N79: 264.28 | O79: 143736000 | U79: 2002-09-20 | V79: 0.378 | W79: 84.349998 | X79: 200209 | Y79: 200109 | Z79: 2001-09-21 | AA79: 5 | AB79: 1 | AC79: 1.455 | AD79: 0.01724955583
A80: 65 | B80: 2018-02-09 | C80: 260.799988 | D80: 263.609985 | E80: 252.919998 | F80: 261.5 | G80: 283565300 | H80: 260.456848 | I80: 0.996010891 | J80: 1 | K80: 259.76 | L80: 262.56 | M80: 251.91 | N80: 260.46 | O80: 283565300 | U80: 2002-06-21 | V80: 0.353 | W80: 99.279999 | X80: 200206 | Y80: 200106 | Z80: 2001-06-15 | AA80: 5 | AB80: 1 | AC80: 1.446 | AD80: 0.01456486719
A81: 66 | B81: 2018-02-08 | C81: 268.01001 | D81: 268.170013 | E81: 257.589996 | F81: 257.630005 | G81: 246449500 | H81: 256.602295 | I81: =IF(F81=0,1,H81/F81) -> 0.9960109072 | J81: =INDEX(OFFSET($T$15,0,0,$S$13+1,1),MATCH(B81,OFFSET($Q$15,0,0,$S$13+1,1),-1)) -> 1 | K81: =ROUND($I81*C81,2) -> 266.94 | L81: =ROUND($I81*D81,2) -> 267.1 | M81: =ROUND($I81*E81,2) -> 256.56 | N81: =ROUND($I81*F81,2) -> 256.6 | O81: =G81*J81 -> 246449500 | U81: 2002-03-15 | V81: 0.331 | W81: =(INDEX(OFFSET($F$15,1,0,$B$10,1),MATCH(U81,OFFSET($B$15,1,0,$B$10,1),-1))) -> 116.650002 | X81: =YEAR(U81)&RIGHT("0"&MONTH(U81),2) -> 200203 | Y81: =YEAR(U81)-1&RIGHT("0"&MONTH(U81),2) -> 200103 | Z81: =OFFSET(U80,AA81,0,1,1) -> 2001-03-16 | AA81: =MATCH(Y81,OFFSET($X$15,A81,0,$V$14+1-A81,1),-1) -> 5 | AB81: =IF(OR(AND(YEAR(U81)=YEAR(Z81),MONTH(U81)=MONTH(Z81)),MONTH(U81)=MONTH(Z81)),1,0) -> 1 | AC81: =(V81+IF(AA81-AB81=0,0,IFERROR(SUM(OFFSET(V81,1,0,AA81-AB81-1,1)),0))) -> 1.439 | AD81: =AC81/(INDEX(OFFSET($F$15,1,0,$B$10,1),MATCH(U81,OFFSET($B$15,1,0,$B$10,1),-1))) -> 0.0123360478
A82: 67 | B82: 2018-02-07 | C82: 268.5 | D82: 272.359985 | E82: 267.579987 | F82: 267.670013 | G82: 167376100 | H82: 266.602264 | I82: 0.9960109502 | J82: 1 | K82: 267.43 | L82: 271.27 | M82: 266.51 | N82: 266.6 | O82: 167376100 | U82: 2001-12-21 | V82: 0.393 | W82: 114.949997 | X82: 200112 | Y82: 200012 | Z82: 2000-12-27 | AA82: 5 | AB82: 1 | AC82: 1.424 | AD82: 0.0123879951
A83: 68 | B83: 2018-02-06 | C83: 259.940002 | D83: 269.700012 | E83: 258.700012 | F83: 269.130005 | G83: 355026800 | H83: 268.056427 | I83: 0.9960109316 | J83: 1 | K83: 258.9 | L83: 268.62 | M83: 257.67 | N83: 268.06 | O83: 355026800 | U83: 2001-09-21 | V83: 0.369 | W83: 97.279999 | X83: 200109 | Y83: 200009 | Z83: 2000-09-15 | AA83: 6 | AB83: 1 | AC83: 1.442 | AD83: 0.01482319094
A84: 69 | B84: 2018-02-05 | C84: 273.450012 | D84: 275.850006 | E84: 263.309998 | F84: 263.929993 | G84: 294681800 | H84: 262.877136 | I84: 0.9960108475 | J84: 1 | K84: 272.36 | L84: 274.75 | M84: 262.26 | N84: 262.88 | O84: 294681800 | U84: 2001-06-15 | V84: 0.346 | W84: 121.849998 | X84: 200106 | Y84: 200006 | Z84: 2000-06-16 | AA84: 7 | AB84: 1 | AC84: 1.448 | AD84: 0.01188346347
A85: 70 | B85: 2018-02-02 | C85: 280.079987 | D85: 280.230011 | E85: 275.410004 | F85: 275.450012 | G85: 173174800 | H85: 274.351227 | I85: 0.9960109459 | J85: 1 | K85: 278.96 | L85: 279.11 | M85: 274.31 | N85: 274.35 | O85: 173174800 | U85: 2001-03-16 | V85: 0.316 | W85: 115.010002 | X85: 200103 | Y85: 200003 | Z85: 2000-03-17 | AA85: 7 | AB85: 1 | AC85: 1.45 | AD85: 0.01260759912
A86: 71 | B86: 2018-02-01 | C86: 281.070007 | D86: 283.059998 | E86: 280.679993 | F86: 281.579987 | G86: 90102500 | H86: 280.456726 | I86: 0.9960108635 | J86: 1 | K86: 279.95 | L86: 281.93 | M86: 279.56 | N86: 280.46 | O86: 90102500 | U86: 2000-12-27 | V86: 0 | W86: 133.3125 | X86: 200012 | Y86: 199912 | Z86: 1999-12-17 | AA86: 7 | AB86: 1 | AC86: 1.505 | AD86: 0.01128926395
A87: 72 | B87: 2018-01-31 | C87: 282.730011 | D87: 283.299988 | E87: 280.679993 | F87: 281.899994 | G87: 108364800 | H87: 280.775452 | I87: 0.9960108477 | J87: 1 | K87: 281.6 | L87: 282.17 | M87: 279.56 | N87: 280.78 | O87: 108364800 | U87: 2000-12-15 | V87: 0.411 | W87: 130.968704 | X87: 200012 | Y87: 199912 | Z87: 1999-12-17 | AA87: 6 | AB87: 1 | AC87: 1.505 | AD87: 0.0114912949
A88: 73 | B88: 2018-01-30 | C88: 282.600006 | D88: 284.73999 | E88: 281.220001 | F88: 281.76001 | G88: 131796400 | H88: 280.636047 | I88: 0.9960109208 | J88: 1 | K88: 281.47 | L88: 283.6 | M88: 280.1 | N88: 280.64 | O88: 131796400 | U88: 2000-09-15 | V88: 0.375 | W88: 146 | X88: 200009 | Y88: 199909 | Z88: 1999-09-17 | AA88: 6 | AB88: 1 | AC88: 1.442 | AD88: 0.009876712329
A89: 74 | B89: 2018-01-29 | C89: 285.929993 | D89: 286.429993 | E89: 284.5 | F89: 284.679993 | G89: 90118300 | H89: 283.544373 | I89: 0.9960108893 | J89: 1 | K89: 284.79 | L89: 285.29 | M89: 283.37 | N89: 283.54 | O89: 90118300 | U89: 2000-09-14 | V89: 0 | W89: 149.640594 | X89: 200009 | Y89: 199909 | Z89: 1999-09-17 | AA89: 5 | AB89: 1 | AC89: 1.067 | AD89: 0.0071304181
A90: 75 | B90: 2018-01-26 | C90: 284.25 | D90: 286.579987 | E90: 283.959991 | F90: 286.579987 | G90: 107743100 | H90: 285.436798 | I90: 0.9960109252 | J90: 1 | K90: 283.12 | L90: 285.44 | M90: 282.83 | N90: 285.44 | O90: 107743100 | U90: 2000-06-16 | V90: 0.348 | W90: 146.593704 | X90: 200006 | Y90: 199906 | Z90: 1999-06-18 | AA90: 5 | AB90: 1 | AC90: 1.439 | AD90: 0.009816246952
A91: 76 | B91: 2018-01-25 | C91: 284.160004 | D91: 284.269989 | E91: 282.399994 | F91: 283.299988 | G91: 84587300 | H91: 282.169861 | I91: 0.996010847 | J91: 1 | K91: 283.03 | L91: 283.14 | M91: 281.27 | N91: 282.17 | O91: 84587300 | U91: 2000-03-17 | V91: 0.371 | W91: 146.9375 | X91: 200003 | Y91: 199903 | Z91: 1999-03-19 | AA91: 5 | AB91: 1 | AC91: 1.496 | AD91: 0.01018119949
A92: 77 | B92: 2018-01-24 | C92: 284.019989 | D92: 284.700012 | E92: 281.839996 | F92: 283.179993 | G92: 134816100 | H92: 282.050354 | I92: 0.9960108799 | J92: 1 | K92: 282.89 | L92: 283.56 | M92: 280.72 | N92: 282.05 | O92: 134816100 | U92: 1999-12-17 | V92: 0.348 | W92: 142.6875 | X92: 199912 | Y92: 199812 | Z92: 1998-12-18 | AA92: 5 | AB92: 1 | AC92: 1.445 | AD92: 0.01012702584
A93: 78 | B93: 2018-01-23 | C93: 282.73999 | D93: 283.619995 | E93: 282.369995 | F93: 283.290009 | G93: 97084700 | H93: 282.159943 | I93: 0.9960109218 | J93: 1 | K93: 281.61 | L93: 282.49 | M93: 281.24 | N93: 282.16 | O93: 97084700 | U93: 1999-09-17 | V93: 0.372 | W93: 133.75 | X93: 199909 | Y93: 199809 | Z93: 1998-09-18 | AA93: 5 | AB93: 1 | AC93: 1.489 | AD93: 0.01113271028
A94: 79 | B94: 2018-01-22 | C94: 280.170013 | D94: 282.690002 | E94: 280.109985 | F94: 282.690002 | G94: 91322400 | H94: 281.562317 | I94: 0.9960108777 | J94: 1 | K94: 279.05 | L94: 281.56 | M94: 278.99 | N94: 281.56 | O94: 91322400 | U94: 1999-06-18 | V94: 0.405 | W94: 134.3125 | X94: 199906 | Y94: 199806 | Z94: 1998-06-19 | AA94: 5 | AB94: 1 | AC94: 1.476 | AD94: 0.01098929735
A95: 80 | B95: 2018-01-19 | C95: 279.799988 | D95: 280.410004 | E95: 279.140015 | F95: 280.410004 | G95: 140920100 | H95: 279.291412 | I95: 0.9960108699 | J95: 1 | K95: 278.68 | L95: 279.29 | M95: 278.03 | N95: 279.29 | O95: 140920100 | U95: 1999-03-19 | V95: 0.32 | W95: 129.6875 | X95: 199903 | Y95: 199803 | Z95: 1998-03-20 | AA95: 5 | AB95: 1 | AC95: 1.423 | AD95: 0.01097253012
A96: 81 | B96: 2018-01-18 | C96: 279.480011 | D96: 279.959991 | E96: 278.579987 | F96: 279.140015 | G96: 100728000 | H96: 278.026489 | I96: 0.9960108693 | J96: 1 | K96: 278.37 | L96: 278.84 | M96: 277.47 | N96: 278.03 | O96: 100728000 | U96: 1998-12-18 | V96: 0.392 | W96: 118.5 | X96: 199812 | Y96: 199712 | Z96: 1997-12-19 | AA96: 5 | AB96: 1 | AC96: 1.416 | AD96: 0.01194936709
A97: 82 | B97: 2018-01-17 | C97: 278.029999 | D97: 280.049988 | E97: 276.970001 | F97: 279.609985 | G97: 113258800 | H97: 278.494598 | I97: 0.9960109186 | J97: 1 | K97: 276.92 | L97: 278.93 | M97: 275.87 | N97: 278.49 | O97: 113258800 | U97: 1998-09-18 | V97: 0.359 | W97: 102.093697 | X97: 199809 | Y97: 199709 | Z97: 1997-09-19 | AA97: 5 | AB97: 1 | AC97: 1.404 | AD97: 0.01375207325
A98: 83 | B98: 2018-01-16 | C98: 279.350006 | D98: 280.089996 | E98: 276.179993 | F98: 276.970001 | G98: 106555100 | H98: 275.865143 | I98: 0.9960109109 | J98: 1 | K98: 278.24 | L98: 278.97 | M98: 275.08 | N98: 275.87 | O98: 106555100 | U98: 1998-06-19 | V98: 0.352 | W98: 110.0625 | X98: 199806 | Y98: 199706 | Z98: 1997-06-20 | AA98: 5 | AB98: 1 | AC98: 1.393 | AD98: 0.0126564452
A99: 84 | B99: 2018-01-12 | C99: 276.420013 | D99: 278.109985 | E99: 276.079987 | F99: 277.920013 | G99: 90816100 | H99: 276.811371 | I99: 0.9960109314 | J99: 1 | K99: 275.32 | L99: 277 | M99: 274.98 | N99: 276.81 | O99: 90816100 | U99: 1998-03-20 | V99: 0.313 | W99: 109.875 | X99: 199803 | Y99: 199703 | Z99: 1997-03-21 | AA99: 5 | AB99: 1 | AC99: 1.391 | AD99: 0.01265984073
A100: 85 | B100: 2018-01-11 | C100: 274.75 | D100: 276.119995 | E100: 274.559998 | F100: 276.119995 | G100: 62361500 | H100: 275.018524 | I100: 0.9960108974 | J100: 1 | K100: 273.65 | L100: 275.02 | M100: 273.46 | N100: 275.02 | O100: 62361500 | U100: 1997-12-19 | V100: 0.38 | W100: 94.781197 | X100: 199712 | Y100: 199612 | Z100: 1996-12-20 | AA100: 5 | AB100: 1 | AC100: 1.377 | AD100: 0.01452819803
A101: 86 | B101: 2018-01-10 | C101: 273.679993 | D101: 274.420013 | E101: 272.920013 | F101: 274.119995 | G101: 69574300 | H101: 273.026489 | I101: 0.9960108492 | J101: 1 | K101: 272.59 | L101: 273.33 | M101: 271.83 | N101: 273.03 | O101: 69574300 | U101: 1997-09-19 | V101: 0.348 | W101: 95.031197 | X101: 199709 | Y101: 199609 | Z101: 1996-09-20 | AA101: 5 | AB101: 1 | AC101: 1.364 | AD101: 0.0143531813
A102: 87 | B102: 2018-01-09 | C102: 274.399994 | D102: 275.25 | E102: 274.079987 | F102: 274.540009 | G102: 57254000 | H102: 273.444855 | I102: 0.9960109494 | J102: 1 | K102: 273.31 | L102: 274.15 | M102: 272.99 | N102: 273.44 | O102: 57254000 | U102: 1997-06-20 | V102: 0.35 | W102: 89.578102 | X102: 199706 | Y102: 199606 | Z102: 1996-06-21 | AA102: 5 | AB102: 1 | AC102: 1.368 | AD102: 0.01527158948
A103: 88 | B103: 2018-01-08 | C103: 273.309998 | D103: 274.100006 | E103: 272.980011 | F103: 273.920013 | G103: 57319200 | H103: 272.827332 | I103: 0.9960109486 | J103: 1 | K103: 272.22 | L103: 273.01 | M103: 271.89 | N103: 272.83 | O103: 57319200 | U103: 1997-03-21 | V103: 0.299 | W103: 78.4375 | X103: 199703 | Y103: 199603 | Z103: 1996-03-15 | AA103: 5 | AB103: 1 | AC103: 1.369 | AD103: 0.01745338645
A104: 89 | B104: 2018-01-05 | C104: 272.51001 | D104: 273.559998 | E104: 271.950012 | F104: 273.420013 | G104: 83524000 | H104: 272.329315 | I104: 0.9960109065 | J104: 1 | K104: 271.42 | L104: 272.47 | M104: 270.87 | N104: 272.33 | O104: 83524000 | U104: 1996-12-20 | V104: 0.367 | W104: 74.843697 | X104: 199612 | Y104: 199512 | Z104: 1995-12-15 | AA104: 5 | AB104: 1 | AC104: 1.355 | AD104: 0.01810439695
A105: 90 | B105: 2018-01-04 | C105: 271.200012 | D105: 272.160004 | E105: 270.540009 | F105: 271.609985 | G105: 80636400 | H105: 270.52652 | I105: 0.996010953 | J105: 1 | K105: 270.12 | L105: 271.07 | M105: 269.46 | N105: 270.53 | O105: 80636400 | U105: 1996-09-20 | V105: 0.352 | W105: 68.640602 | X105: 199609 | Y105: 199509 | Z105: 1995-09-15 | AA105: 5 | AB105: 1 | AC105: 1.37 | AD105: 0.01995903241
A106: 91 | B106: 2018-01-03 | C106: 268.959991 | D106: 270.640015 | E106: 268.959991 | F106: 270.470001 | G106: 90070400 | H106: 269.391083 | I106: 0.9960109513 | J106: 1 | K106: 267.89 | L106: 269.56 | M106: 267.89 | N106: 269.39 | O106: 90070400 | U106: 1996-06-21 | V106: 0.351 | W106: 66.8125 | X106: 199606 | Y106: 199506 | Z106: 1995-06-16 | AA106: 5 | AB106: 1 | AC106: 1.33 | AD106: 0.01990645463
A107: 92 | B107: 2018-01-02 | C107: 267.839996 | D107: 268.809998 | E107: 267.399994 | F107: 268.769989 | G107: 86655700 | H107: 267.697845 | I107: 0.9960109237 | J107: 1 | K107: 266.77 | L107: 267.74 | M107: 266.33 | N107: 267.7 | O107: 86655700 | U107: 1996-03-15 | V107: 0.285 | W107: 64.125 | X107: 199603 | Y107: 199503 | Z107: 1995-03-17 | AA107: 5 | AB107: 1 | AC107: 1.295 | AD107: 0.02019493177
A108: 93 | B108: 2017-12-29 | C108: 268.529999 | D108: 268.549988 | E108: 266.640015 | F108: 266.859985 | G108: 96007400 | H108: 265.795441 | I108: 0.9960108519 | J108: 1 | K108: 267.46 | L108: 267.48 | M108: 265.58 | N108: 265.8 | O108: 96007400 | U108: 1995-12-15 | V108: 0.382 | W108: 61.8125 | X108: 199512 | Y108: 199412 | Z108: 1994-12-16 | AA108: 5 | AB108: 1 | AC108: 1.278 | AD108: 0.02067542973
A109: 94 | B109: 2017-12-28 | C109: 267.890015 | D109: 267.920013 | E109: 267.450012 | F109: 267.869995 | G109: 45116100 | H109: 266.801422 | I109: 0.9960108522 | J109: 1 | K109: 266.82 | L109: 266.85 | M109: 266.38 | N109: 266.8 | O109: 45116100 | U109: 1995-09-15 | V109: 0.312 | W109: 58.4375 | X109: 199509 | Y109: 199409 | Z109: 1994-09-19 | AA109: 5 | AB109: 1 | AC109: 1.259 | AD109: 0.02154438503
A110: 95 | B110: 2017-12-27 | C110: 267.380005 | D110: 267.730011 | E110: 267.01001 | F110: 267.320007 | G110: 57751000 | H110: 266.253632 | I110: 0.9960108672 | J110: 1 | K110: 266.31 | L110: 266.66 | M110: 265.94 | N110: 266.25 | O110: 57751000 | U110: 1995-06-16 | V110: 0.316 | W110: 53.9687 | X110: 199506 | Y110: 199406 | Z110: 1994-06-17 | AA110: 6 | AB110: 1 | AC110: 1.235 | AD110: 0.0228836344
A111: 96 | B111: 2017-12-26 | C111: 267.049988 | D111: 267.440002 | E111: 266.890015 | F111: 267.190002 | G111: 45244400 | H111: 266.124146 | I111: 0.9960108687 | J111: 1 | K111: 265.98 | L111: 266.37 | M111: 265.83 | N111: 266.12 | O111: 45244400 | U111: 1995-03-17 | V111: 0.268 | W111: 49.5625 | X111: 199503 | Y111: 199403 | Z111: 1994-03-18 | AA111: 6 | AB111: 1 | AC111: 1.224 | AD111: 0.02469609079
A112: 97 | B112: 2017-12-22 | C112: 267.600006 | D112: 267.640015 | E112: 266.899994 | F112: 267.51001 | G112: 78720900 | H112: 266.442871 | I112: 0.9960108446 | J112: 1 | K112: 266.53 | L112: 266.57 | M112: 265.84 | N112: 266.44 | O112: 78720900 | U112: 1994-12-16 | V112: 0.363 | W112: 45.75 | X112: 199412 | Y112: 199312 | Z112: 1993-12-17 | AA112: 6 | AB112: 1 | AC112: 1.227 | AD112: 0.02681967213
A113: 98 | B113: 2017-12-21 | C113: 267.73999 | D113: 268.390015 | E113: 267.299988 | F113: 267.579987 | G113: 67032300 | H113: 266.512573 | I113: 0.9960108601 | J113: 1 | K113: 266.67 | L113: 267.32 | M113: 266.23 | N113: 266.51 | O113: 67032300 | U113: 1994-09-19 | V113: 0 | W113: 47.0625 | X113: 199409 | Y113: 199309 | Z113: 1993-09-17 | AA113: 6 | AB113: 1 | AC113: 1.181 | AD113: 0.02509428951
A114: 99 | B114: 2017-12-20 | C114: 268.269989 | D114: 268.329987 | E114: 266.690002 | F114: 267.029999 | G114: 76751500 | H114: 265.964783 | I114: 0.9960108752 | J114: 1 | K114: 267.2 | L114: 267.26 | M114: 265.63 | N114: 265.96 | O114: 76751500 | U114: 1994-09-16 | V114: 0.288 | W114: 47.015598 | X114: 199409 | Y114: 199309 | Z114: 1993-09-17 | AA114: 5 | AB114: 1 | AC114: 1.181 | AD114: 0.02511932317
A115: 100 | B115: 2017-12-19 | C115: 268.480011 | D115: 268.529999 | E115: 267.089996 | F115: 267.170013 | G115: 82382900 | H115: 266.104248 | I115: 0.9960109109 | J115: 1 | K115: 267.41 | L115: 267.46 | M115: 266.02 | N115: 266.1 | O115: 82382900 | U115: 1994-06-17 | V115: 0.305 | W115: 45.875 | X115: 199406 | Y115: 199306 | Z115: 1993-06-18 | AA115: 5 | AB115: 1 | AC115: 1.179 | AD115: 0.02570027248
A116: 101 | B116: 2017-12-18 | C116: 268.100006 | D116: 268.600006 | E116: 267.980011 | F116: 268.200012 | G116: 83653600 | H116: 267.130127 | I116: 0.9960108689 | J116: 1 | K116: 267.03 | L116: 267.53 | M116: 266.91 | N116: 267.13 | O116: 83653600 | U116: 1994-03-18 | V116: 0.271 | W116: 46.9687 | X116: 199403 | Y116: 199303 | Z116: 1993-03-19 | AA116: 5 | AB116: 1 | AC116: 1.192 | AD116: 0.0253786032
A117: 102 | B117: 2017-12-15 | C117: 265.450012 | D117: 267.040009 | E117: 265.390015 | F117: 266.51001 | G117: 144610300 | H117: 265.446869 | I117: 0.9960108778 | J117: 1 | K117: 264.39 | L117: 265.97 | M117: 264.33 | N117: 265.45 | O117: 144610300 | U117: 1993-12-17 | V117: 0.317 | W117: 46.5625 | X117: 199312 | Y117: 199212 | Z117: 1993-03-19 | AA117: 4 | AB117: 0 | AC117: 1.134 | AD117: 0.02435436242
A118: 103 | B118: 2017-12-14 | C118: 267.089996 | D118: 267.220001 | E118: 265.600006 | F118: 265.660004 | G118: 100666700 | H118: 263.254639 | I118: 0.9909457014 | J118: 1 | K118: 264.67 | L118: 264.8 | M118: 263.2 | N118: 263.25 | O118: 100666700 | U118: 1993-09-17 | V118: 0.286 | W118: 45.8125 | X118: 199309 | Y118: 199209 | Z118: 1993-03-19 | AA118: 3 | AB118: 0 | AC118: 0.817 | AD118: 0.01783356071
A119: 104 | B119: 2017-12-13 | C119: 267.059998 | D119: 267.559998 | E119: 266.649994 | F119: 266.75 | G119: 102905400 | H119: 264.334778 | I119: 0.990945747 | J119: 1 | K119: 264.64 | L119: 265.14 | M119: 264.24 | N119: 264.33 | O119: 102905400 | U119: 1993-06-18 | V119: 0.318 | W119: 44.5 | X119: 199306 | Y119: 199206 | Z119: 1993-03-19 | AA119: 2 | AB119: 0 | AC119: 0.531 | AD119: 0.01193258427
A120: 105 | B120: 2017-12-12 | C120: 267.209991 | D120: 267.320007 | E120: 266.350006 | F120: 266.779999 | G120: 85195800 | H120: 264.364502 | I120: 0.9909457343 | J120: 1 | K120: 264.79 | L120: 264.9 | M120: 263.94 | N120: 264.36 | O120: 85195800 | U120: 1993-03-19 | V120: 0.213 | W120: 45.0312 | X120: 199303 | Y120: 199203 | Z120: 1993-03-19 | AA120: 1 | AB120: 1 | AC120: 0.213 | AD120: 0.004730053829
A121: 106 | B121: 2017-12-11 | C121: 266.309998 | D121: 266.380005 | E121: 265.480011 | F121: 266.309998 | G121: 83077500 | H121: 263.898743 | I121: 0.9909456835 | J121: 1 | K121: 263.9 | L121: 263.97 | M121: 263.08 | N121: 263.9 | O121: 83077500
A122: 107 | B122: 2017-12-08 | C122: 265.160004 | D122: 265.519989 | E122: 264.029999 | F122: 265.51001 | G122: 76563900 | H122: 263.106018 | I122: 0.9909457576 | J122: 1 | K122: 262.76 | L122: 263.12 | M122: 261.64 | N122: 263.11 | O122: 76563900
A123: 108 | B123: 2017-12-07 | C123: 264.070007 | D123: 264.429993 | E123: 262.940002 | F123: 264.070007 | G123: 77218600 | H123: 261.679047 | I123: 0.9909457343 | J123: 1 | K123: 261.68 | L123: 262.04 | M123: 260.56 | N123: 261.68 | O123: 77218600
A124: 109 | B124: 2017-12-06 | C124: 263.299988 | D124: 263.730011 | E124: 262.709991 | F124: 263.23999 | G124: 75898600 | H124: 260.856567 | I124: 0.9909458172 | J124: 1 | K124: 260.92 | L124: 261.34 | M124: 260.33 | N124: 260.86 | O124: 75898600
A125: 110 | B125: 2017-12-05 | C125: 263.190002 | D125: 265.149994 | E125: 263.040009 | F125: 263.190002 | G125: 77994500 | H125: 260.807007 | I125: 0.9909457237 | J125: 1 | K125: 260.81 | L125: 262.75 | M125: 260.66 | N125: 260.81 | O125: 77994500
A126: 111 | B126: 2017-12-04 | C126: 266.309998 | D126: 266.799988 | E126: 264.079987 | F126: 264.140015 | G126: 94040600 | H126: 261.748413 | I126: 0.9909457036 | J126: 1 | K126: 263.9 | L126: 264.38 | M126: 261.69 | N126: 261.75 | O126: 94040600
A127: 112 | B127: 2017-12-01 | C127: 264.76001 | D127: 265.309998 | E127: 260.76001 | F127: 264.459991 | G127: 164390900 | H127: 262.065491 | I127: 0.9909457004 | J127: 1 | K127: 262.36 | L127: 262.91 | M127: 258.4 | N127: 262.07 | O127: 164390900
A128: 113 | B128: 2017-11-30 | C128: 263.76001 | D128: 266.049988 | E128: 263.670013 | F128: 265.01001 | G128: 127894400 | H128: 262.610535 | I128: 0.9909457194 | J128: 1 | K128: 261.37 | L128: 263.64 | M128: 261.28 | N128: 262.61 | O128: 127894400
A129: 114 | B129: 2017-11-29 | C129: 263.019989 | D129: 263.630005 | E129: 262.200012 | F129: 262.709991 | G129: 77512100 | H129: 260.331329 | I129: 0.9909456736 | J129: 1 | K129: 260.64 | L129: 261.24 | M129: 259.83 | N129: 260.33 | O129: 77512100
A130: 115 | B130: 2017-11-28 | C130: 260.76001 | D130: 262.899994 | E130: 260.649994 | F130: 262.869995 | G130: 98971700 | H130: 260.489899 | I130: 0.9909457297 | J130: 1 | K130: 258.4 | L130: 260.52 | M130: 258.29 | N130: 260.49 | O130: 98971700
A131: 116 | B131: 2017-11-27 | C131: 260.410004 | D131: 260.75 | E131: 260 | F131: 260.230011 | G131: 52274900 | H131: 257.87381 | I131: 0.9909456984 | J131: 1 | K131: 258.05 | L131: 258.39 | M131: 257.65 | N131: 257.87 | O131: 52274900
A132: 117 | B132: 2017-11-24 | C132: 260.320007 | D132: 260.480011 | E132: 260.160004 | F132: 260.359985 | G132: 27856500 | H132: 258.002625 | I132: 0.9909457669 | J132: 1 | K132: 257.96 | L132: 258.12 | M132: 257.8 | N132: 258 | O132: 27856500
A133: 118 | B133: 2017-11-22 | C133: 260 | D133: 260.149994 | E133: 259.570007 | F133: 259.76001 | G133: 45033400 | H133: 257.408081 | I133: 0.9909457618 | J133: 1 | K133: 257.65 | L133: 257.79 | M133: 257.22 | N133: 257.41 | O133: 45033400
A134: 119 | B134: 2017-11-21 | C134: 259.179993 | D134: 260.200012 | E134: 258.26001 | F134: 259.98999 | G134: 69176800 | H134: 257.635956 | I134: 0.9909456745 | J134: 1 | K134: 256.83 | L134: 257.84 | M134: 255.92 | N134: 257.64 | O134: 69176800
A135: 120 | B135: 2017-11-20 | C135: 258.140015 | D135: 258.519989 | E135: 257.859985 | F135: 258.299988 | G135: 48075500 | H135: 255.961258 | I135: 0.9909456829 | J135: 1 | K135: 255.8 | L135: 256.18 | M135: 255.53 | N135: 255.96 | O135: 48075500
A136: 121 | B136: 2017-11-17 | C136: 258.220001 | D136: 258.589996 | E136: 257.769989 | F136: 257.859985 | G136: 75756800 | H136: 255.525253 | I136: 0.9909457375 | J136: 1 | K136: 255.88 | L136: 256.25 | M136: 255.44 | N136: 255.53 | O136: 75756800
A137: 122 | B137: 2017-11-16 | C137: 257.519989 | D137: 259.040009 | E137: 257.470001 | F137: 258.619995 | G137: 67777000 | H137: 256.278381 | I137: 0.9909457349 | J137: 1 | K137: 255.19 | L137: 256.69 | M137: 255.14 | N137: 256.28 | O137: 67777000
A138: 123 | B138: 2017-11-15 | C138: 256.619995 | D138: 257.220001 | E138: 255.630005 | F138: 256.440002 | G138: 80811500 | H138: 254.118118 | I138: 0.9909457028 | J138: 1 | K138: 254.3 | L138: 254.89 | M138: 253.32 | N138: 254.12 | O138: 80811500
A139: 124 | B139: 2017-11-14 | C139: 257.410004 | D139: 257.850006 | E139: 256.519989 | F139: 257.730011 | G139: 61315200 | H139: 255.396454 | I139: 0.9909457304 | J139: 1 | K139: 255.08 | L139: 255.52 | M139: 254.2 | N139: 255.4 | O139: 61315200
A140: 125 | B140: 2017-11-13 | C140: 257.309998 | D140: 258.589996 | E140: 257.269989 | F140: 258.329987 | G140: 50228600 | H140: 255.990982 | I140: 0.9909456698 | J140: 1 | K140: 254.98 | L140: 256.25 | M140: 254.94 | N140: 255.99 | O140: 50228600
A141: 126 | B141: 2017-11-10 | C141: 257.730011 | D141: 258.290009 | E141: 257.369995 | F141: 258.089996 | G141: 59984700 | H141: 255.753189 | I141: 0.9909457668 | J141: 1 | K141: 255.4 | L141: 255.95 | M141: 255.04 | N141: 255.75 | O141: 59984700
A142: 127 | B142: 2017-11-09 | C142: 257.730011 | D142: 258.390015 | E142: 256.359985 | F142: 258.170013 | G142: 95085500 | H142: 255.832458 | I142: 0.9909456758 | J142: 1 | K142: 255.4 | L142: 256.05 | M142: 254.04 | N142: 255.83 | O142: 95085500
A143: 128 | B143: 2017-11-08 | C143: 258.470001 | D143: 259.220001 | E143: 258.149994 | F143: 259.109985 | G143: 50469600 | H143: 256.763916 | I143: 0.9909456635 | J143: 1 | K143: 256.13 | L143: 256.87 | M143: 255.81 | N143: 256.76 | O143: 50469600
A144: 129 | B144: 2017-11-07 | C144: 258.970001 | D144: 259.350006 | E144: 258.089996 | F144: 258.670013 | G144: 57502200 | H144: 256.327942 | I144: 0.9909457189 | J144: 1 | K144: 256.63 | L144: 257 | M144: 255.75 | N144: 256.33 | O144: 57502200
A145: 130 | B145: 2017-11-06 | C145: 258.299988 | D145: 259 | E145: 258.220001 | F145: 258.850006 | G145: 49652600 | H145: 256.506287 | I145: =IF(F145=0,1,H145/F145) -> 0.9909456483 | J145: =INDEX(OFFSET($T$15,0,0,$S$13+1,1),MATCH(B145,OFFSET($Q$15,0,0,$S$13+1,1),-1)) -> 1 | K145: =ROUND($I145*C145,2) -> 255.96 | L145: =ROUND($I145*D145,2) -> 256.65 | M145: =ROUND($I145*E145,2) -> 255.88 | N145: =ROUND($I145*F145,2) -> 256.51 | O145: =G145*J145 -> 49652600
A146: 131 | B146: 2017-11-03 | C146: 257.769989 | D146: 258.5 | E146: 257.299988 | F146: 258.450012 | G146: 59589700 | H146: 256.109955 | I146: 0.9909458043 | J146: 1 | K146: 255.44 | L146: 256.16 | M146: 254.97 | N146: 256.11 | O146: 59589700
A147: 132 | B147: 2017-11-02 | C147: 257.410004 | D147: 257.75 | E147: 256.190002 | F147: 257.589996 | G147: 56449500 | H147: 255.257706 | I147: 0.9909457276 | J147: 1 | K147: 255.08 | L147: 255.42 | M147: 253.87 | N147: 255.26 | O147: 56449500
A148: 133 | B148: 2017-11-01 | C148: 258.040009 | D148: 258.429993 | E148: 257.070007 | F148: 257.48999 | G148: 54202700 | H148: 255.1586 | I148: 0.9909457063 | J148: 1 | K148: 255.7 | L148: 256.09 | M148: 254.74 | N148: 255.16 | O148: 54202700
A149: 134 | B149: 2017-10-31 | C149: 257.179993 | D149: 257.440002 | E149: 256.809998 | F149: 257.149994 | G149: 60304800 | H149: 254.821701 | I149: 0.9909457785 | J149: 1 | K149: 254.85 | L149: 255.11 | M149: 254.48 | N149: 254.82 | O149: 60304800
A150: 135 | B150: 2017-10-30 | C150: 256.470001 | D150: 257.600006 | E150: 256.410004 | F150: 256.75 | G150: 54285700 | H150: 254.425308 | I150: 0.9909456981 | J150: 1 | K150: 254.15 | L150: 255.27 | M150: 254.09 | N150: 254.43 | O150: 54285700
A151: 136 | B151: 2017-10-27 | C151: 256.470001 | D151: 257.890015 | E151: 255.630005 | F151: 257.709991 | G151: 85562500 | H151: 255.376602 | I151: 0.9909456789 | J151: 1 | K151: 254.15 | L151: 255.55 | M151: 253.32 | N151: 255.38 | O151: 85562500
A152: 137 | B152: 2017-10-26 | C152: 255.990005 | D152: 256.299988 | E152: 255.479996 | F152: 255.619995 | G152: 69798000 | H152: 253.305527 | I152: 0.9909456692 | J152: 1 | K152: 253.67 | L152: 253.98 | M152: 253.17 | N152: 253.31 | O152: 69798000
A153: 138 | B153: 2017-10-25 | C153: 256.179993 | D153: 256.309998 | E153: 254 | F153: 255.289993 | G153: 103715300 | H153: 252.978531 | I153: 0.9909457399 | J153: 1 | K153: 253.86 | L153: 253.99 | M153: 251.7 | N153: 252.98 | O153: 103715300
A154: 139 | B154: 2017-10-24 | C154: 256.600006 | D154: 256.829987 | E154: 256.149994 | F154: 256.559998 | G154: 66935900 | H154: 254.23703 | I154: 0.9909457124 | J154: 1 | K154: 254.28 | L154: 254.5 | M154: 253.83 | N154: 254.24 | O154: 66935900
A155: 140 | B155: 2017-10-23 | C155: 257.480011 | D155: 257.51001 | E155: 256.019989 | F155: 256.109985 | G155: 63915300 | H155: 253.791092 | I155: 0.9909457142 | J155: 1 | K155: 255.15 | L155: 255.18 | M155: 253.7 | N155: 253.79 | O155: 63915300
A156: 141 | B156: 2017-10-20 | C156: 256.700012 | D156: 257.140015 | E156: 255.770004 | F156: 257.109985 | G156: 89176400 | H156: 254.782043 | I156: 0.9909457348 | J156: 1 | K156: 254.38 | L156: 254.81 | M156: 253.45 | N156: 254.78 | O156: 89176400
A157: 142 | B157: 2017-10-19 | C157: 254.830002 | D157: 255.830002 | E157: 254.350006 | F157: 255.789993 | G157: 61903800 | H157: 253.473999 | I157: 0.9909457209 | J157: 1 | K157: 252.52 | L157: 253.51 | M157: 252.05 | N157: 253.47 | O157: 61903800
A158: 143 | B158: 2017-10-18 | C158: 255.899994 | D158: 255.949997 | E158: 255.5 | F158: 255.720001 | G158: 40888300 | H158: 253.404633 | I158: 0.9909456906 | J158: 1 | K158: 253.58 | L158: 253.63 | M158: 253.19 | N158: 253.4 | O158: 40888300
A159: 144 | B159: 2017-10-17 | C159: 255.229996 | D159: 255.520004 | E159: 254.979996 | F159: 255.470001 | G159: 31561000 | H159: 253.156906 | I159: 0.9909457275 | J159: 1 | K159: 252.92 | L159: 253.21 | M159: 252.67 | N159: 253.16 | O159: 31561000
A160: 145 | B160: 2017-10-16 | C160: 255.210007 | D160: 255.509995 | E160: 254.820007 | F160: 255.289993 | G160: 38221700 | H160: 252.978531 | I160: 0.9909457399 | J160: 1 | K160: 252.9 | L160: 253.2 | M160: 252.51 | N160: 252.98 | O160: 38221700
A161: 146 | B161: 2017-10-13 | C161: 255.139999 | D161: 255.270004 | E161: 254.639999 | F161: 254.949997 | G161: 54800400 | H161: 252.641617 | I161: 0.990945754 | J161: 1 | K161: 252.83 | L161: 252.96 | M161: 252.33 | N161: 252.64 | O161: 54800400
A162: 147 | B162: 2017-10-12 | C162: 254.660004 | D162: 255.059998 | E162: 254.369995 | F162: 254.639999 | G162: 47065100 | H162: 252.334427 | I162: 0.9909457587 | J162: 1 | K162: 252.35 | L162: 252.75 | M162: 252.07 | N162: 252.33 | O162: 47065100
A163: 148 | B163: 2017-10-11 | C163: 254.509995 | D163: 255.020004 | E163: 254.320007 | F163: 255.020004 | G163: 47674300 | H163: 252.710983 | I163: 0.990945726 | J163: 1 | K163: 252.21 | L163: 252.71 | M163: 252.02 | N163: 252.71 | O163: 47674300
A164: 149 | B164: 2017-10-10 | C164: 254.600006 | D164: 255.050003 | E164: 253.979996 | F164: 254.619995 | G164: 43057400 | H164: 252.31459 | I164: 0.9909457032 | J164: 1 | K164: 252.29 | L164: 252.74 | M164: 251.68 | N164: 252.31 | O164: 43057400
A165: 150 | B165: 2017-10-09 | C165: 254.630005 | D165: 254.699997 | E165: 253.649994 | F165: 253.949997 | G165: 35803100 | H165: 251.650665 | I165: 0.9909457294 | J165: 1 | K165: 252.32 | L165: 252.39 | M165: 251.35 | N165: 251.65 | O165: 35803100
A166: 151 | B166: 2017-10-06 | C166: 254.149994 | D166: 254.699997 | E166: 253.850006 | F166: 254.369995 | G166: 80646000 | H166: 252.066849 | I166: 0.9909456852 | J166: 1 | K166: 251.85 | L166: 252.39 | M166: 251.55 | N166: 252.07 | O166: 80646000
A167: 152 | B167: 2017-10-05 | C167: 253.539993 | D167: 254.679993 | E167: 253.199997 | F167: 254.660004 | G167: 63522800 | H167: 252.354233 | I167: 0.9909456885 | J167: 1 | K167: 251.24 | L167: 252.37 | M167: 250.91 | N167: 252.35 | O167: 63522800
A168: 153 | B168: 2017-10-04 | C168: 252.690002 | D168: 253.440002 | E168: 252.559998 | F168: 253.160004 | G168: 55953600 | H168: 250.867813 | I168: 0.9909456827 | J168: 1 | K168: 250.4 | L168: 251.15 | M168: 250.27 | N168: 250.87 | O168: 55953600
A169: 154 | B169: 2017-10-03 | C169: 252.320007 | D169: 252.889999 | E169: 252.229996 | F169: 252.860001 | G169: 66810200 | H169: 250.570541 | I169: 0.9909457408 | J169: 1 | K169: 250.04 | L169: 250.6 | M169: 249.95 | N169: 250.57 | O169: 66810200
A170: 155 | B170: 2017-10-02 | C170: 251.490005 | D170: 252.320007 | E170: 251.289993 | F170: 252.320007 | G170: 59023000 | H170: 250.035431 | I170: 0.99094572 | J170: 1 | K170: 249.21 | L170: 250.04 | M170: 249.01 | N170: 250.04 | O170: 59023000
A171: 156 | B171: 2017-09-29 | C171: 250.339996 | D171: 251.320007 | E171: 250.130005 | F171: 251.229996 | G171: 85578000 | H171: 248.955292 | I171: 0.9909457309 | J171: 1 | K171: 248.07 | L171: 249.04 | M171: 247.87 | N171: 248.96 | O171: 85578000
A172: 157 | B172: 2017-09-28 | C172: 249.729996 | D172: 250.440002 | E172: 249.630005 | F172: 250.350006 | G172: 44778800 | H172: 248.083267 | I172: 0.9909457202 | J172: 1 | K172: 247.47 | L172: 248.17 | M172: 247.37 | N172: 248.08 | O172: 44778800
A173: 158 | B173: 2017-09-27 | C173: 249.880005 | D173: 250.490005 | E173: 248.869995 | F173: 250.050003 | G173: 81001400 | H173: 247.78598 | I173: 0.990945719 | J173: 1 | K173: 247.62 | L173: 248.22 | M173: 246.62 | N173: 247.79 | O173: 81001400
A174: 159 | B174: 2017-09-26 | C174: 249.419998 | D174: 249.699997 | E174: 248.809998 | F174: 249.080002 | G174: 54082000 | H174: 246.824753 | I174: 0.9909456842 | J174: 1 | K174: 247.16 | L174: 247.44 | M174: 246.56 | N174: 246.82 | O174: 54082000
A175: 160 | B175: 2017-09-25 | C175: 249.149994 | D175: 249.550003 | E175: 248.080002 | F175: 248.929993 | G175: 57064400 | H175: 246.676102 | I175: 0.9909456833 | J175: 1 | K175: 246.89 | L175: 247.29 | M175: 245.83 | N175: 246.68 | O175: 57064400
A176: 161 | B176: 2017-09-22 | C176: 249.050003 | D176: 249.630005 | E176: 249.020004 | F176: 249.440002 | G176: 51214000 | H176: 247.181503 | I176: 0.9909457225 | J176: 1 | K176: 246.8 | L176: 247.37 | M176: 246.77 | N176: 247.18 | O176: 51214000
A177: 162 | B177: 2017-09-21 | C177: 249.880005 | D177: 249.979996 | E177: 249.190002 | F177: 249.389999 | G177: 48211400 | H177: 247.131958 | I177: 0.9909457436 | J177: 1 | K177: 247.62 | L177: 247.72 | M177: 246.93 | N177: 247.13 | O177: 48211400
A178: 163 | B178: 2017-09-20 | C178: 250.070007 | D178: 250.190002 | E178: 248.919998 | F178: 250.059998 | G178: 59574100 | H178: 247.795883 | I178: 0.990945713 | J178: 1 | K178: 247.81 | L178: 247.92 | M178: 246.67 | N178: 247.8 | O178: 59574100
A179: 164 | B179: 2017-09-19 | C179: 250 | D179: 250.070007 | E179: 249.600006 | F179: 249.970001 | G179: 47108100 | H179: 247.706696 | I179: 0.9909456935 | J179: 1 | K179: 247.74 | L179: 247.81 | M179: 247.34 | N179: 247.71 | O179: 47108100
A180: 165 | B180: 2017-09-18 | C180: 249.610001 | D180: 250.119995 | E180: 249.279999 | F180: 249.720001 | G180: 46235200 | H180: 247.458969 | I180: 0.9909457313 | J180: 1 | K180: 247.35 | L180: 247.86 | M180: 247.02 | N180: 247.46 | O180: 46235200
A181: 166 | B181: 2017-09-15 | C181: 248.690002 | D181: 249.289993 | E181: 248.570007 | F181: 249.190002 | G181: 95432400 | H181: 246.933762 | I181: 0.9909457042 | J181: 1 | K181: 246.44 | L181: 247.03 | M181: 246.32 | N181: 246.93 | O181: 95432400
A182: 167 | B182: 2017-09-14 | C182: 249.800003 | D182: 250.320007 | E182: 249.600006 | F182: 250.089996 | G182: 95446300 | H182: 246.601791 | I182: 0.986052201 | J182: 1 | K182: 246.32 | L182: 246.83 | M182: 246.12 | N182: 246.6 | O182: 95446300
A183: 168 | B183: 2017-09-13 | C183: 249.720001 | D183: 250.210007 | E183: 249.589996 | F183: 250.169998 | G183: 59228000 | H183: 246.680679 | I183: 0.9860522084 | J183: 1 | K183: 246.24 | L183: 246.72 | M183: 246.11 | N183: 246.68 | O183: 59228000
A184: 169 | B184: 2017-09-12 | C184: 249.630005 | D184: 250.089996 | E184: 249.419998 | F184: 250.050003 | G184: 56896000 | H184: 246.562347 | I184: 0.9860521657 | J184: 1 | K184: 246.15 | L184: 246.6 | M184: 245.94 | N184: 246.56 | O184: 56896000
A185: 170 | B185: 2017-09-11 | C185: 248.039993 | D185: 249.300003 | E185: 248.020004 | F185: 249.210007 | G185: 71364800 | H185: 245.73407 | I185: 0.9860521773 | J185: 1 | K185: 244.58 | L185: 245.82 | M185: 244.56 | N185: 245.73 | O185: 71364800
A186: 171 | B186: 2017-09-08 | C186: 246.539993 | D186: 247.110001 | E186: 246.300003 | F186: 246.580002 | G186: 63832800 | H186: 243.140762 | I186: 0.9860522347 | J186: 1 | K186: 243.1 | L186: 243.66 | M186: 242.86 | N186: 243.14 | O186: 63832800
A187: 172 | B187: 2017-09-07 | C187: 247.25 | D187: 247.270004 | E187: 246.399994 | F187: 246.869995 | G187: 58034700 | H187: 243.426712 | I187: 0.9860522418 | J187: 1 | K187: 243.8 | L187: 243.82 | M187: 242.96 | N187: 243.43 | O187: 58034700
A188: 173 | B188: 2017-09-06 | C188: 246.839996 | D188: 247.279999 | E188: 246.229996 | F188: 246.899994 | G188: 57916900 | H188: 243.456284 | I188: 0.986052207 | J188: 1 | K188: 243.4 | L188: 243.83 | M188: 242.8 | N188: 243.46 | O188: 57916900
A189: 174 | B189: 2017-09-05 | C189: 247.259995 | D189: 247.520004 | E189: 244.949997 | F189: 246.059998 | G189: 91398800 | H189: 242.627991 | I189: 0.9860521538 | J189: 1 | K189: 243.81 | L189: 244.07 | M189: 241.53 | N189: 242.63 | O189: 91398800
A190: 175 | B190: 2017-09-01 | C190: 247.919998 | D190: 248.330002 | E190: 247.669998 | F190: 247.839996 | G190: 62007000 | H190: 244.383163 | I190: 0.9860521584 | J190: 1 | K190: 244.46 | L190: 244.87 | M190: 244.22 | N190: 244.38 | O190: 62007000
A191: 176 | B191: 2017-08-31 | C191: 246.720001 | D191: 247.770004 | E191: 246.050003 | F191: 247.490005 | G191: 103803900 | H191: 244.038055 | I191: 0.986052164 | J191: 1 | K191: 243.28 | L191: 244.31 | M191: 242.62 | N191: 244.04 | O191: 103803900
A192: 177 | B192: 2017-08-30 | C192: 244.830002 | D192: 246.320007 | E192: 244.619995 | F192: 246.009995 | G192: 62030800 | H192: 242.57869 | I192: 0.9860521724 | J192: 1 | K192: 241.42 | L192: 242.88 | M192: 241.21 | N192: 242.58 | O192: 62030800
A193: 178 | B193: 2017-08-29 | C193: 243.059998 | D193: 245.149994 | E193: 242.929993 | F193: 244.850006 | G193: 51135700 | H193: 241.434891 | I193: 0.986052216 | J193: 1 | K193: 239.67 | L193: 241.73 | M193: 239.54 | N193: 241.43 | O193: 51135700
A194: 179 | B194: 2017-08-28 | C194: 245.169998 | D194: 245.199997 | E194: 244.089996 | F194: 244.570007 | G194: 40565600 | H194: 241.158783 | I194: 0.9860521572 | J194: 1 | K194: 241.75 | L194: 241.78 | M194: 240.69 | N194: 241.16 | O194: 40565600
A195: 180 | B195: 2017-08-25 | C195: 244.899994 | D195: 245.610001 | E195: 244.389999 | F195: 244.559998 | G195: 64445900 | H195: 241.148911 | I195: 0.9860521466 | J195: 1 | K195: 241.48 | L195: 242.18 | M195: 240.98 | N195: 241.15 | O195: 64445900
A196: 181 | B196: 2017-08-24 | C196: 245 | D196: 245.179993 | E196: 243.75 | F196: 243.990005 | G196: 49730500 | H196: 240.586884 | I196: 0.9860522114 | J196: 1 | K196: 241.58 | L196: 241.76 | M196: 240.35 | N196: 240.59 | O196: 49730500
A197: 182 | B197: 2017-08-23 | C197: 244.330002 | D197: 245.050003 | E197: 244.160004 | F197: 244.559998 | G197: 50203800 | H197: 241.148911 | I197: 0.9860521466 | J197: 1 | K197: 240.92 | L197: 241.63 | M197: 240.75 | N197: 241.15 | O197: 50203800
A198: 183 | B198: 2017-08-22 | C198: 243.570007 | D198: 245.619995 | E198: 243.550003 | F198: 245.440002 | G198: 63140100 | H198: 242.016663 | I198: 0.9860522369 | J198: 1 | K198: 240.17 | L198: 242.19 | M198: 240.15 | N198: 242.02 | O198: 63140100
A199: 184 | B199: 2017-08-21 | C199: 242.639999 | D199: 243.199997 | E199: 241.830002 | F199: 242.899994 | G199: 65469700 | H199: 239.51207 | I199: 0.9860521857 | J199: 1 | K199: 239.26 | L199: 239.81 | M199: 238.46 | N199: 239.51 | O199: 65469700
A200: 185 | B200: 2017-08-18 | C200: 242.899994 | D200: 244.190002 | E200: 242.199997 | F200: 242.710007 | G200: 136748000 | H200: 239.324738 | I200: 0.9860522067 | J200: 1 | K200: 239.51 | L200: 240.78 | M200: 238.82 | N200: 239.32 | O200: 136748000
... 6184 more rows

Sheet CalculationsAndCharts
A1: Deviation-Scaled Moving Average
A2: =InputPriceData!A1 -> SPDR S&P 500 ETF (SPY) -NYSEArca (Daily)
A4: User Charting Controls | E4: Click to Shift Chart One Bar:
A5: Data Control
A6: =InputPriceData!$B$10 -> 6369 | B6: Available Input Data Rows | E6: Earliest: | F6: =OFFSET(InputPriceData!B15,CalculationsAndCharts!A6,0,1,1) -> 1993-01-29
B7: Use Close Adjusted: | C7: TRUE | E7: Latest: | F7: =OFFSET(InputPriceData!B15,1,0,1,1) -> 2018-05-14
A8: =MIN(A6-A11,LOOKUP(2,1/(B:B<>0),ROW(A:A))-32) -> 1000 | B8: Logically Available for Calc / Plot | E8: $ Change: | F8: =G33-G34 -> -1
F10: Y-axis Range
A11: 92 | B11: Input Data Offset (Pan) | E11: Max High+ | F11: =CEILING(MAX(MAX(OFFSET($E$33,0,0,$A$12,1)))+2*F14,0.1) -> 272.7
A12: 256 | B12: Data Points to Plot (Zoom) | E12: Min Low- | F12: =FLOOR(MIN(MIN(OFFSET($F$33,0,0,$A$12,1)))-2*F14,0.1) -> 212.5
B13: First: | C13: =OFFSET(B32,A12,0,1,1) -> 2016-12-23 | E13: White space %: | F13: 0.05
B14: ="Last: " & IF(OFFSET(InputPriceData!P15,1+A11,0,1,1)="","",TEXT(OFFSET(InputPriceData!P15,1+A11,0,1,1),"H:MM AM/PM")) -> Last: | C14: =B33 -> 2017-12-29 | E14: Allowance: | F14: =FLOOR((CEILING(MAX(MAX(OFFSET($E$33,0,0,$A$12,1))),1)-FLOOR(MIN(MIN(OFFSET($F$33,0,0,$A$12,1))),1))*F13,0.01) -> 2.55
A15: User Controls | E15: Calculated Super Smoother Values
A17: 40 | B17: Period | E17: a1 | F17: =EXP(-1.414*3.14159/(0.5*$A$17)) -> 0.8008269377
E18: b1 | F18: =2*$F$17*COS(RADIANS(1.414*180/(0.5*$A$17))) -> 1.562308736
E19: c2 | F19: =F18 -> 1.562308736
E20: c3 | F20: =-$F$17*$F$17 -> -0.6413237842
E21: c1 | F21: =1-$F$19-$F$20 -> 0.07901504796 | G21: Alpha: | H21: =2/(F21+1) -> 1.853542269
G22: 1-Alpha | H22: =1-H21 -> -0.8535422687
A25: Help! I would like to plot data
A26: From | B26: 2016-12-23 | C26: =OFFSET(InputPriceData!$A$15,MATCH(B26,OFFSET(InputPriceData!B15,1,0,InputPriceData!$B$10,1),0),0,1,1)-C27 -> 256 | E26: 1
A27: To | B27: 2017-12-29 | C27: =OFFSET(InputPriceData!$A$15,MATCH(B27,OFFSET(InputPriceData!$B$15,1,0,InputPriceData!$B$10,1),0),0,1,1)-1 -> 92 | E27: =$A$12-$E$26+1 -> 256
H28: @ Cursor => | I28: =OFFSET(A32,$E$27,0,1,1)&"(RR)" -> 256(RR) | J28: =OFFSET($B$32,E27,0,1,1) -> 2016-12-23 | K28: =TEXT(OFFSET(D32,$E$27,0,1,1),"#,##0.00")&"(o)" -> 220.25(o) | L28: =TEXT(OFFSET(E32,$E$27,0,1,1),"#,##0.00")&"(h)" -> 220.53(h) | M28: =TEXT(OFFSET(F32,$E$27,0,1,1),"#,##0.00")&"(l)" -> 220.03(l) | N28: =TEXT(OFFSET(G32,$E$27,0,1,1),"#,##0.00")&"(c)" -> 220.52(c)
E29: Cursor ==> | AT29: Chart Cursor work area
A31: Rel Row | AO31: Used To Color Vol Bars
B32: Date | C32: Volume | D32: Open | E32: High | F32: Low | G32: Close | H32: Zeros | I32: Filt | J32: RMS | K32: Scaled Filt | L32: Alpha1 | M32: 1-Alpha1 | N32: DSMA | AO32: Up Vol | AP32: Dn Vol | AT32: Volume Cursor | AV32: =MAX(OFFSET(C33,0,0,A12,1)) -> 172174100 | AW32: Score Chart Cursor | AY32: Price Chart Cursor
A33: 1 | B33: =OFFSET(InputPriceData!B$15,CalculationsAndCharts!$A33+$A$11,0,1,1) -> 2017-12-29 | C33: =OFFSET(InputPriceData!G$15,CalculationsAndCharts!$A33+$A$11,IF($C$7,8,0),1,1) -> 96007400 | D33: =OFFSET(InputPriceData!C$15,CalculationsAndCharts!$A33+$A$11,IF($C$7,8,0),1,1) -> 267.46 | E33: =OFFSET(InputPriceData!D$15,CalculationsAndCharts!$A33+$A$11,IF($C$7,8,0),1,1) -> 267.48 | F33: =OFFSET(InputPriceData!E$15,CalculationsAndCharts!$A33+$A$11,IF($C$7,8,0),1,1) -> 265.58 | G33: =OFFSET(InputPriceData!F$15,CalculationsAndCharts!$A33+$A$11,IF($C$7,8,0),1,1) -> 265.8 | H33: =G33-G35 -> -0.45 | I33: =$F$21*(H33+H34)/2+$F$19*I34+$F$20*I35 -> 0.2879974077 | J33: =SQRT(SUMSQ(OFFSET(I33,0,0,$A$17,1))/$A$17) -> 0.7317846095 | K33: =I33/J33 -> 0.3935548849 | L33: =ABS(K33)*5/$A$17 -> 0.04919436061 | M33: =1-L33 -> 0.9508056394 | N33: =L33*G33+M33*N34 -> 265.2980874 | AO33: =IF(G33>=D33,C33,NA()) ->  | AP33: =IF(G33<D33,C33,NA()) -> 96007400 | AT33: =$E$27 -> 256 | AV33: 0 | AW33: =$E$27 -> 256 | AX33: 0 | AY33: =$E$27 -> 256 | AZ33: 212.16975
A34: 2 | B34: =OFFSET(InputPriceData!B$15,CalculationsAndCharts!$A34+$A$11,0,1,1) -> 2017-12-28 | C34: =OFFSET(InputPriceData!G$15,CalculationsAndCharts!$A34+$A$11,IF($C$7,8,0),1,1) -> 45116100 | D34: =OFFSET(InputPriceData!C$15,CalculationsAndCharts!$A34+$A$11,IF($C$7,8,0),1,1) -> 266.82 | E34: =OFFSET(InputPriceData!D$15,CalculationsAndCharts!$A34+$A$11,IF($C$7,8,0),1,1) -> 266.85 | F34: =OFFSET(InputPriceData!E$15,CalculationsAndCharts!$A34+$A$11,IF($C$7,8,0),1,1) -> 266.38 | G34: =OFFSET(InputPriceData!F$15,CalculationsAndCharts!$A34+$A$11,IF($C$7,8,0),1,1) -> 266.8 | H34: =G34-G36 -> 0.68 | I34: =$F$21*(H34+H35)/2+$F$19*I35+$F$20*I36 -> 0.3864158661 | J34: =SQRT(SUMSQ(OFFSET(I34,0,0,$A$17,1))/$A$17) -> 0.7319220721 | K34: =I34/J34 -> 0.5279467321 | L34: =ABS(K34)*5/$A$17 -> 0.06599334151 | M34: =1-L34 -> 0.9340066585 | N34: =L34*G34+M34*N35 -> 265.2721186 | AP34: 45116100 | AT34: =$E$27 -> 256 | AV34: =CEILING(AV32,10^INT(LOG10(AV32))) -> 200000000 | AW34: =$E$27 -> 256 | AX34: 6 | AY34: =$E$27 -> 256 | AZ34: 274.21825
A35: 3 | B35: =OFFSET(InputPriceData!B$15,CalculationsAndCharts!$A35+$A$11,0,1,1) -> 2017-12-27 | C35: =OFFSET(InputPriceData!G$15,CalculationsAndCharts!$A35+$A$11,IF($C$7,8,0),1,1) -> 57751000 | D35: =OFFSET(InputPriceData!C$15,CalculationsAndCharts!$A35+$A$11,IF($C$7,8,0),1,1) -> 266.31 | E35: =OFFSET(InputPriceData!D$15,CalculationsAndCharts!$A35+$A$11,IF($C$7,8,0),1,1) -> 266.66 | F35: =OFFSET(InputPriceData!E$15,CalculationsAndCharts!$A35+$A$11,IF($C$7,8,0),1,1) -> 265.94 | G35: =OFFSET(InputPriceData!F$15,CalculationsAndCharts!$A35+$A$11,IF($C$7,8,0),1,1) -> 266.25 | H35: -0.19 | I35: 0.5064371761 | J35: 0.7306758606 | K35: 0.6931078518 | L35: 0.08663848148 | M35: 0.9133615185 | N35: 265.1641644 | AP35: 57751000
A36: 4 | B36: =OFFSET(InputPriceData!B$15,CalculationsAndCharts!$A36+$A$11,0,1,1) -> 2017-12-26 | C36: =OFFSET(InputPriceData!G$15,CalculationsAndCharts!$A36+$A$11,IF($C$7,8,0),1,1) -> 45244400 | D36: =OFFSET(InputPriceData!C$15,CalculationsAndCharts!$A36+$A$11,IF($C$7,8,0),1,1) -> 265.98 | E36: =OFFSET(InputPriceData!D$15,CalculationsAndCharts!$A36+$A$11,IF($C$7,8,0),1,1) -> 266.37 | F36: =OFFSET(InputPriceData!E$15,CalculationsAndCharts!$A36+$A$11,IF($C$7,8,0),1,1) -> 265.83 | G36: =OFFSET(InputPriceData!F$15,CalculationsAndCharts!$A36+$A$11,IF($C$7,8,0),1,1) -> 266.12 | H36: -0.39 | I36: 0.6613727039 | J36: 0.727059045 | K36: 0.9096547363 | L36: 0.113706842 | M36: 0.886293158 | N36: 265.0611655 | AO36: 45244400
A37: 5 | B37: =OFFSET(InputPriceData!B$15,CalculationsAndCharts!$A37+$A$11,0,1,1) -> 2017-12-22 | C37: =OFFSET(InputPriceData!G$15,CalculationsAndCharts!$A37+$A$11,IF($C$7,8,0),1,1) -> 78720900 | D37: =OFFSET(InputPriceData!C$15,CalculationsAndCharts!$A37+$A$11,IF($C$7,8,0),1,1) -> 266.53 | E37: =OFFSET(InputPriceData!D$15,CalculationsAndCharts!$A37+$A$11,IF($C$7,8,0),1,1) -> 266.57 | F37: =OFFSET(InputPriceData!E$15,CalculationsAndCharts!$A37+$A$11,IF($C$7,8,0),1,1) -> 265.84 | G37: =OFFSET(InputPriceData!F$15,CalculationsAndCharts!$A37+$A$11,IF($C$7,8,0),1,1) -> 266.44 | H37: 0.48 | I37: 0.7857447759 | J37: 0.7197648134 | K37: 1.09166878 | L37: 0.1364585975 | M37: 0.8635414025 | N37: 264.9253225 | AP37: 78720900
A38: 6 | B38: =OFFSET(InputPriceData!B$15,CalculationsAndCharts!$A38+$A$11,0,1,1) -> 2017-12-21 | C38: =OFFSET(InputPriceData!G$15,CalculationsAndCharts!$A38+$A$11,IF($C$7,8,0),1,1) -> 67032300 | D38: =OFFSET(InputPriceData!C$15,CalculationsAndCharts!$A38+$A$11,IF($C$7,8,0),1,1) -> 266.67 | E38: =OFFSET(InputPriceData!D$15,CalculationsAndCharts!$A38+$A$11,IF($C$7,8,0),1,1) -> 267.32 | F38: =OFFSET(InputPriceData!E$15,CalculationsAndCharts!$A38+$A$11,IF($C$7,8,0),1,1) -> 266.23 | G38: =OFFSET(InputPriceData!F$15,CalculationsAndCharts!$A38+$A$11,IF($C$7,8,0),1,1) -> 266.51 | H38: 0.41 | I38: 0.8884106831 | J38: =SQRT(SUMSQ(OFFSET(I38,0,0,$A$17,1))/$A$17) -> 0.7095648209 | K38: 1.252050069 | L38: 0.1565062587 | M38: 0.8434937413 | N38: 264.6859701 | AP38: 67032300
A39: 7 | B39: =OFFSET(InputPriceData!B$15,CalculationsAndCharts!$A39+$A$11,0,1,1) -> 2017-12-20 | C39: =OFFSET(InputPriceData!G$15,CalculationsAndCharts!$A39+$A$11,IF($C$7,8,0),1,1) -> 76751500 | D39: =OFFSET(InputPriceData!C$15,CalculationsAndCharts!$A39+$A$11,IF($C$7,8,0),1,1) -> 267.2 | E39: =OFFSET(InputPriceData!D$15,CalculationsAndCharts!$A39+$A$11,IF($C$7,8,0),1,1) -> 267.26 | F39: =OFFSET(InputPriceData!E$15,CalculationsAndCharts!$A39+$A$11,IF($C$7,8,0),1,1) -> 265.63 | G39: =OFFSET(InputPriceData!F$15,CalculationsAndCharts!$A39+$A$11,IF($C$7,8,0),1,1) -> 265.96 | H39: -1.17 | I39: 0.99386411 | J39: 0.6977015045 | K39: 1.424483255 | L39: 0.1780604068 | M39: 0.8219395932 | N39: 264.34753 | AP39: 76751500
A40: 8 | B40: =OFFSET(InputPriceData!B$15,CalculationsAndCharts!$A40+$A$11,0,1,1) -> 2017-12-19 | C40: =OFFSET(InputPriceData!G$15,CalculationsAndCharts!$A40+$A$11,IF($C$7,8,0),1,1) -> 82382900 | D40: =OFFSET(InputPriceData!C$15,CalculationsAndCharts!$A40+$A$11,IF($C$7,8,0),1,1) -> 267.41 | E40: =OFFSET(InputPriceData!D$15,CalculationsAndCharts!$A40+$A$11,IF($C$7,8,0),1,1) -> 267.46 | F40: =OFFSET(InputPriceData!E$15,CalculationsAndCharts!$A40+$A$11,IF($C$7,8,0),1,1) -> 266.02 | G40: =OFFSET(InputPriceData!F$15,CalculationsAndCharts!$A40+$A$11,IF($C$7,8,0),1,1) -> 266.1 | H40: 0.65 | I40: 0.9890264417 | J40: 0.6835440091 | K40: 1.446909678 | L40: 0.1808637097 | M40: 0.8191362903 | N40: 263.9982135 | AP40: 82382900
A41: 9 | B41: =OFFSET(InputPriceData!B$15,CalculationsAndCharts!$A41+$A$11,0,1,1) -> 2017-12-18 | C41: =OFFSET(InputPriceData!G$15,CalculationsAndCharts!$A41+$A$11,IF($C$7,8,0),1,1) -> 83653600 | D41: =OFFSET(InputPriceData!C$15,CalculationsAndCharts!$A41+$A$11,IF($C$7,8,0),1,1) -> 267.03 | E41: =OFFSET(InputPriceData!D$15,CalculationsAndCharts!$A41+$A$11,IF($C$7,8,0),1,1) -> 267.53 | F41: =OFFSET(InputPriceData!E$15,CalculationsAndCharts!$A41+$A$11,IF($C$7,8,0),1,1) -> 266.91 | G41: =OFFSET(InputPriceData!F$15,CalculationsAndCharts!$A41+$A$11,IF($C$7,8,0),1,1) -> 267.13 | H41: 3.88 | I41: 0.8275954221 | J41: 0.6696917358 | K41: 1.235785628 | L41: 0.1544732035 | M41: 0.8455267965 | N41: 263.5341431 | AO41: 83653600
A42: 10 | B42: =OFFSET(InputPriceData!B$15,CalculationsAndCharts!$A42+$A$11,0,1,1) -> 2017-12-15 | C42: =OFFSET(InputPriceData!G$15,CalculationsAndCharts!$A42+$A$11,IF($C$7,8,0),1,1) -> 144610300 | D42: =OFFSET(InputPriceData!C$15,CalculationsAndCharts!$A42+$A$11,IF($C$7,8,0),1,1) -> 264.39 | E42: =OFFSET(InputPriceData!D$15,CalculationsAndCharts!$A42+$A$11,IF($C$7,8,0),1,1) -> 265.97 | F42: =OFFSET(InputPriceData!E$15,CalculationsAndCharts!$A42+$A$11,IF($C$7,8,0),1,1) -> 264.33 | G42: =OFFSET(InputPriceData!F$15,CalculationsAndCharts!$A42+$A$11,IF($C$7,8,0),1,1) -> 265.45 | H42: 1.12 | I42: 0.7529772196 | J42: 0.6605177295 | K42: 1.13998033 | L42: 0.1424975413 | M42: 0.8575024587 | N42: 262.8771993 | AO42: 144610300
A43: 11 | B43: =OFFSET(InputPriceData!B$15,CalculationsAndCharts!$A43+$A$11,0,1,1) -> 2017-12-14 | C43: =OFFSET(InputPriceData!G$15,CalculationsAndCharts!$A43+$A$11,IF($C$7,8,0),1,1) -> 100666700 | D43: =OFFSET(InputPriceData!C$15,CalculationsAndCharts!$A43+$A$11,IF($C$7,8,0),1,1) -> 264.67 | E43: =OFFSET(InputPriceData!D$15,CalculationsAndCharts!$A43+$A$11,IF($C$7,8,0),1,1) -> 264.8 | F43: =OFFSET(InputPriceData!E$15,CalculationsAndCharts!$A43+$A$11,IF($C$7,8,0),1,1) -> 263.2 | G43: =OFFSET(InputPriceData!F$15,CalculationsAndCharts!$A43+$A$11,IF($C$7,8,0),1,1) -> 263.25 | H43: -1.11 | I43: 0.8518709264 | J43: 0.6534175505 | K43: 1.303716017 | L43: 0.1629645021 | M43: 0.8370354979 | N43: 262.449658 | AP43: 100666700
A44: 12 | B44: =OFFSET(InputPriceData!B$15,CalculationsAndCharts!$A44+$A$11,0,1,1) -> 2017-12-13 | C44: =OFFSET(InputPriceData!G$15,CalculationsAndCharts!$A44+$A$11,IF($C$7,8,0),1,1) -> 102905400 | D44: =OFFSET(InputPriceData!C$15,CalculationsAndCharts!$A44+$A$11,IF($C$7,8,0),1,1) -> 264.64 | E44: =OFFSET(InputPriceData!D$15,CalculationsAndCharts!$A44+$A$11,IF($C$7,8,0),1,1) -> 265.14 | F44: =OFFSET(InputPriceData!E$15,CalculationsAndCharts!$A44+$A$11,IF($C$7,8,0),1,1) -> 264.24 | G44: =OFFSET(InputPriceData!F$15,CalculationsAndCharts!$A44+$A$11,IF($C$7,8,0),1,1) -> 264.33 | H44: 0.43 | I44: 0.9017336646 | J44: 0.643964015 | K44: 1.400285798 | L44: 0.1750357248 | M44: 0.8249642752 | N44: 262.2938374 | AP44: 102905400
A45: 13 | B45: =OFFSET(InputPriceData!B$15,CalculationsAndCharts!$A45+$A$11,0,1,1) -> 2017-12-12 | C45: =OFFSET(InputPriceData!G$15,CalculationsAndCharts!$A45+$A$11,IF($C$7,8,0),1,1) -> 85195800 | D45: =OFFSET(InputPriceData!C$15,CalculationsAndCharts!$A45+$A$11,IF($C$7,8,0),1,1) -> 264.79 | E45: =OFFSET(InputPriceData!D$15,CalculationsAndCharts!$A45+$A$11,IF($C$7,8,0),1,1) -> 264.9 | F45: =OFFSET(InputPriceData!E$15,CalculationsAndCharts!$A45+$A$11,IF($C$7,8,0),1,1) -> 263.94 | G45: =OFFSET(InputPriceData!F$15,CalculationsAndCharts!$A45+$A$11,IF($C$7,8,0),1,1) -> 264.36 | H45: 1.25 | I45: 0.826494124 | J45: 0.633752975 | K45: =I45/J45 -> 1.304126618 | L45: 0.1630158273 | M45: 0.8369841727 | N45: 261.8618172 | AP45: 85195800
A46: 14 | B46: =OFFSET(InputPriceData!B$15,CalculationsAndCharts!$A46+$A$11,0,1,1) -> 2017-12-11 | C46: =OFFSET(InputPriceData!G$15,CalculationsAndCharts!$A46+$A$11,IF($C$7,8,0),1,1) -> 83077500 | D46: =OFFSET(InputPriceData!C$15,CalculationsAndCharts!$A46+$A$11,IF($C$7,8,0),1,1) -> 263.9 | E46: =OFFSET(InputPriceData!D$15,CalculationsAndCharts!$A46+$A$11,IF($C$7,8,0),1,1) -> 263.97 | F46: =OFFSET(InputPriceData!E$15,CalculationsAndCharts!$A46+$A$11,IF($C$7,8,0),1,1) -> 263.08 | G46: =OFFSET(InputPriceData!F$15,CalculationsAndCharts!$A46+$A$11,IF($C$7,8,0),1,1) -> 263.9 | H46: 2.22 | I46: 0.7108390136 | J46: 0.6277493995 | K46: 1.132361121 | L46: 0.1415451401 | M46: 0.8584548599 | N46: 261.3752569 | AO46: 83077500
A47: 15 | B47: =OFFSET(InputPriceData!B$15,CalculationsAndCharts!$A47+$A$11,0,1,1) -> 2017-12-08 | C47: =OFFSET(InputPriceData!G$15,CalculationsAndCharts!$A47+$A$11,IF($C$7,8,0),1,1) -> 76563900 | D47: =OFFSET(InputPriceData!C$15,CalculationsAndCharts!$A47+$A$11,IF($C$7,8,0),1,1) -> 262.76 | E47: =OFFSET(InputPriceData!D$15,CalculationsAndCharts!$A47+$A$11,IF($C$7,8,0),1,1) -> 263.12 | F47: =OFFSET(InputPriceData!E$15,CalculationsAndCharts!$A47+$A$11,IF($C$7,8,0),1,1) -> 261.64 | G47: =OFFSET(InputPriceData!F$15,CalculationsAndCharts!$A47+$A$11,IF($C$7,8,0),1,1) -> 263.11 | H47: 2.25 | I47: 0.6566838709 | J47: 0.6283735139 | K47: 1.04505339 | L47: 0.1306316738 | M47: 0.8693683262 | N47: 260.9589681 | AO47: 76563900
A48: 16 | B48: =OFFSET(InputPriceData!B$15,CalculationsAndCharts!$A48+$A$11,0,1,1) -> 2017-12-07 | C48: =OFFSET(InputPriceData!G$15,CalculationsAndCharts!$A48+$A$11,IF($C$7,8,0),1,1) -> 77218600 | D48: =OFFSET(InputPriceData!C$15,CalculationsAndCharts!$A48+$A$11,IF($C$7,8,0),1,1) -> 261.68 | E48: =OFFSET(InputPriceData!D$15,CalculationsAndCharts!$A48+$A$11,IF($C$7,8,0),1,1) -> 262.04 | F48: =OFFSET(InputPriceData!E$15,CalculationsAndCharts!$A48+$A$11,IF($C$7,8,0),1,1) -> 260.56 | G48: =OFFSET(InputPriceData!F$15,CalculationsAndCharts!$A48+$A$11,IF($C$7,8,0),1,1) -> 261.68 | H48: 0.87 | I48: 0.7666994102 | J48: 0.6344412951 | K48: 1.208463913 | L48: 0.1510579892 | M48: 0.8489420108 | N48: 260.6357531 | AO48: 77218600
A49: 17 | B49: =OFFSET(InputPriceData!B$15,CalculationsAndCharts!$A49+$A$11,0,1,1) -> 2017-12-06 | C49: =OFFSET(InputPriceData!G$15,CalculationsAndCharts!$A49+$A$11,IF($C$7,8,0),1,1) -> 75898600 | D49: =OFFSET(InputPriceData!C$15,CalculationsAndCharts!$A49+$A$11,IF($C$7,8,0),1,1) -> 260.92 | E49: =OFFSET(InputPriceData!D$15,CalculationsAndCharts!$A49+$A$11,IF($C$7,8,0),1,1) -> 261.34 | F49: =OFFSET(InputPriceData!E$15,CalculationsAndCharts!$A49+$A$11,IF($C$7,8,0),1,1) -> 260.33 | G49: =OFFSET(InputPriceData!F$15,CalculationsAndCharts!$A49+$A$11,IF($C$7,8,0),1,1) -> 260.86 | H49: -0.89 | I49: 1.035983394 | J49: 0.640500902 | K49: 1.617458134 | L49: 0.2021822668 | M49: 0.7978177332 | N49: 260.4499432 | AP49: 75898600
A50: 18 | B50: =OFFSET(InputPriceData!B$15,CalculationsAndCharts!$A50+$A$11,0,1,1) -> 2017-12-05 | C50: =OFFSET(InputPriceData!G$15,CalculationsAndCharts!$A50+$A$11,IF($C$7,8,0),1,1) -> 77994500 | D50: =OFFSET(InputPriceData!C$15,CalculationsAndCharts!$A50+$A$11,IF($C$7,8,0),1,1) -> 260.81 | E50: =OFFSET(InputPriceData!D$15,CalculationsAndCharts!$A50+$A$11,IF($C$7,8,0),1,1) -> 262.75 | F50: =OFFSET(InputPriceData!E$15,CalculationsAndCharts!$A50+$A$11,IF($C$7,8,0),1,1) -> 260.66 | G50: =OFFSET(InputPriceData!F$15,CalculationsAndCharts!$A50+$A$11,IF($C$7,8,0),1,1) -> 260.81 | H50: -1.26 | I50: 1.326999508 | J50: 0.6404314026 | K50: 2.072040039 | L50: 0.2590050048 | M50: 0.7409949952 | N50: 260.3460269 | AO50: 77994500
A51: 19 | B51: =OFFSET(InputPriceData!B$15,CalculationsAndCharts!$A51+$A$11,0,1,1) -> 2017-12-04 | C51: =OFFSET(InputPriceData!G$15,CalculationsAndCharts!$A51+$A$11,IF($C$7,8,0),1,1) -> 94040600 | D51: =OFFSET(InputPriceData!C$15,CalculationsAndCharts!$A51+$A$11,IF($C$7,8,0),1,1) -> 263.9 | E51: =OFFSET(InputPriceData!D$15,CalculationsAndCharts!$A51+$A$11,IF($C$7,8,0),1,1) -> 264.38 | F51: =OFFSET(InputPriceData!E$15,CalculationsAndCharts!$A51+$A$11,IF($C$7,8,0),1,1) -> 261.69 | G51: =OFFSET(InputPriceData!F$15,CalculationsAndCharts!$A51+$A$11,IF($C$7,8,0),1,1) -> 261.75 | H51: -0.86 | I51: 1.484832432 | J51: 0.6305986203 | K51: 2.354639519 | L51: 0.2943299398 | M51: 0.7056700602 | N51: 260.1838513 | AP51: 94040600
A52: 20 | B52: =OFFSET(InputPriceData!B$15,CalculationsAndCharts!$A52+$A$11,0,1,1) -> 2017-12-01 | C52: =OFFSET(InputPriceData!G$15,CalculationsAndCharts!$A52+$A$11,IF($C$7,8,0),1,1) -> 164390900 | D52: =OFFSET(InputPriceData!C$15,CalculationsAndCharts!$A52+$A$11,IF($C$7,8,0),1,1) -> 262.36 | E52: =OFFSET(InputPriceData!D$15,CalculationsAndCharts!$A52+$A$11,IF($C$7,8,0),1,1) -> 262.91 | F52: =OFFSET(InputPriceData!E$15,CalculationsAndCharts!$A52+$A$11,IF($C$7,8,0),1,1) -> 258.4 | G52: =OFFSET(InputPriceData!F$15,CalculationsAndCharts!$A52+$A$11,IF($C$7,8,0),1,1) -> 262.07 | H52: 1.74 | I52: 1.417398268 | J52: 0.6103172881 | K52: 2.322395737 | L52: 0.2902994672 | M52: 0.7097005328 | N52: 259.5306219 | AP52: 164390900
A53: 21 | B53: =OFFSET(InputPriceData!B$15,CalculationsAndCharts!$A53+$A$11,0,1,1) -> 2017-11-30 | C53: =OFFSET(InputPriceData!G$15,CalculationsAndCharts!$A53+$A$11,IF($C$7,8,0),1,1) -> 127894400 | D53: =OFFSET(InputPriceData!C$15,CalculationsAndCharts!$A53+$A$11,IF($C$7,8,0),1,1) -> 261.37 | E53: =OFFSET(InputPriceData!D$15,CalculationsAndCharts!$A53+$A$11,IF($C$7,8,0),1,1) -> 263.64 | F53: =OFFSET(InputPriceData!E$15,CalculationsAndCharts!$A53+$A$11,IF($C$7,8,0),1,1) -> 261.28 | G53: =OFFSET(InputPriceData!F$15,CalculationsAndCharts!$A53+$A$11,IF($C$7,8,0),1,1) -> 262.61 | H53: 2.12 | I53: 1.19182838 | J53: 0.5870640493 | K53: 2.030150511 | L53: 0.2537688139 | M53: 0.7462311861 | N53: 258.4919019 | AO53: 127894400
A54: 22 | B54: =OFFSET(InputPriceData!B$15,CalculationsAndCharts!$A54+$A$11,0,1,1) -> 2017-11-29 | C54: =OFFSET(InputPriceData!G$15,CalculationsAndCharts!$A54+$A$11,IF($C$7,8,0),1,1) -> 77512100 | D54: =OFFSET(InputPriceData!C$15,CalculationsAndCharts!$A54+$A$11,IF($C$7,8,0),1,1) -> 260.64 | E54: =OFFSET(InputPriceData!D$15,CalculationsAndCharts!$A54+$A$11,IF($C$7,8,0),1,1) -> 261.24 | F54: =OFFSET(InputPriceData!E$15,CalculationsAndCharts!$A54+$A$11,IF($C$7,8,0),1,1) -> 259.83 | G54: =OFFSET(InputPriceData!F$15,CalculationsAndCharts!$A54+$A$11,IF($C$7,8,0),1,1) -> 260.33 | H54: 2.46 | I54: 0.9310502411 | J54: 0.569575916 | K54: 1.634637658 | L54: 0.2043297072 | M54: 0.7956702928 | N54: 257.0914714 | AP54: 77512100
A55: 23 | B55: =OFFSET(InputPriceData!B$15,CalculationsAndCharts!$A55+$A$11,0,1,1) -> 2017-11-28 | C55: =OFFSET(InputPriceData!G$15,CalculationsAndCharts!$A55+$A$11,IF($C$7,8,0),1,1) -> 98971700 | D55: =OFFSET(InputPriceData!C$15,CalculationsAndCharts!$A55+$A$11,IF($C$7,8,0),1,1) -> 258.4 | E55: =OFFSET(InputPriceData!D$15,CalculationsAndCharts!$A55+$A$11,IF($C$7,8,0),1,1) -> 260.52 | F55: =OFFSET(InputPriceData!E$15,CalculationsAndCharts!$A55+$A$11,IF($C$7,8,0),1,1) -> 258.29 | G55: =OFFSET(InputPriceData!F$15,CalculationsAndCharts!$A55+$A$11,IF($C$7,8,0),1,1) -> 260.49 | H55: 2.49 | I55: 0.6918564642 | J55: 0.5580788155 | K55: 1.239711032 | L55: 0.154963879 | M55: 0.845036121 | N55: 256.2598109 | AO55: 98971700
A56: 24 | B56: =OFFSET(InputPriceData!B$15,CalculationsAndCharts!$A56+$A$11,0,1,1) -> 2017-11-27 | C56: =OFFSET(InputPriceData!G$15,CalculationsAndCharts!$A56+$A$11,IF($C$7,8,0),1,1) -> 52274900 | D56: =OFFSET(InputPriceData!C$15,CalculationsAndCharts!$A56+$A$11,IF($C$7,8,0),1,1) -> 258.05 | E56: =OFFSET(InputPriceData!D$15,CalculationsAndCharts!$A56+$A$11,IF($C$7,8,0),1,1) -> 258.39 | F56: =OFFSET(InputPriceData!E$15,CalculationsAndCharts!$A56+$A$11,IF($C$7,8,0),1,1) -> 257.65 | G56: =OFFSET(InputPriceData!F$15,CalculationsAndCharts!$A56+$A$11,IF($C$7,8,0),1,1) -> 257.87 | H56: 0.46 | I56: 0.538581929 | J56: 0.5503495823 | K56: 0.9786178573 | L56: 0.1223272322 | M56: 0.8776727678 | N56: 255.484073 | AP56: 52274900
A57: 25 | B57: =OFFSET(InputPriceData!B$15,CalculationsAndCharts!$A57+$A$11,0,1,1) -> 2017-11-24 | C57: =OFFSET(InputPriceData!G$15,CalculationsAndCharts!$A57+$A$11,IF($C$7,8,0),1,1) -> 27856500 | D57: =OFFSET(InputPriceData!C$15,CalculationsAndCharts!$A57+$A$11,IF($C$7,8,0),1,1) -> 257.96 | E57: =OFFSET(InputPriceData!D$15,CalculationsAndCharts!$A57+$A$11,IF($C$7,8,0),1,1) -> 258.12 | F57: =OFFSET(InputPriceData!E$15,CalculationsAndCharts!$A57+$A$11,IF($C$7,8,0),1,1) -> 257.8 | G57: =OFFSET(InputPriceData!F$15,CalculationsAndCharts!$A57+$A$11,IF($C$7,8,0),1,1) -> 258 | H57: 0.36 | I57: 0.4149572976 | J57: 0.5446221013 | K57: 0.7619178447 | L57: 0.09523973059 | M57: 0.9047602694 | N57: 255.1515301 | AO57: 27856500
A58: 26 | B58: =OFFSET(InputPriceData!B$15,CalculationsAndCharts!$A58+$A$11,0,1,1) -> 2017-11-22 | C58: =OFFSET(InputPriceData!G$15,CalculationsAndCharts!$A58+$A$11,IF($C$7,8,0),1,1) -> 45033400 | D58: =OFFSET(InputPriceData!C$15,CalculationsAndCharts!$A58+$A$11,IF($C$7,8,0),1,1) -> 257.65 | E58: =OFFSET(InputPriceData!D$15,CalculationsAndCharts!$A58+$A$11,IF($C$7,8,0),1,1) -> 257.79 | F58: =OFFSET(InputPriceData!E$15,CalculationsAndCharts!$A58+$A$11,IF($C$7,8,0),1,1) -> 257.22 | G58: =OFFSET(InputPriceData!F$15,CalculationsAndCharts!$A58+$A$11,IF($C$7,8,0),1,1) -> 257.41 | H58: 1.45 | I58: 0.2215817585 | J58: 0.5408878811 | K58: 0.409663012 | L58: 0.0512078765 | M58: 0.9487921235 | N58: 254.8516855 | AP58: 45033400
A59: 27 | B59: =OFFSET(InputPriceData!B$15,CalculationsAndCharts!$A59+$A$11,0,1,1) -> 2017-11-21 | C59: =OFFSET(InputPriceData!G$15,CalculationsAndCharts!$A59+$A$11,IF($C$7,8,0),1,1) -> 69176800 | D59: =OFFSET(InputPriceData!C$15,CalculationsAndCharts!$A59+$A$11,IF($C$7,8,0),1,1) -> 256.83 | E59: =OFFSET(InputPriceData!D$15,CalculationsAndCharts!$A59+$A$11,IF($C$7,8,0),1,1) -> 257.84 | F59: =OFFSET(InputPriceData!E$15,CalculationsAndCharts!$A59+$A$11,IF($C$7,8,0),1,1) -> 255.92 | G59: =OFFSET(InputPriceData!F$15,CalculationsAndCharts!$A59+$A$11,IF($C$7,8,0),1,1) -> 257.64 | H59: 2.11 | I59: 0.00425750302 | J59: 0.5399197685 | K59: 0.007885436445 | L59: 0.0009856795556 | M59: 0.9990143204 | N59: 254.713609 | AO59: 69176800
A60: 28 | B60: =OFFSET(InputPriceData!B$15,CalculationsAndCharts!$A60+$A$11,0,1,1) -> 2017-11-20 | C60: =OFFSET(InputPriceData!G$15,CalculationsAndCharts!$A60+$A$11,IF($C$7,8,0),1,1) -> 48075500 | D60: =OFFSET(InputPriceData!C$15,CalculationsAndCharts!$A60+$A$11,IF($C$7,8,0),1,1) -> 255.8 | E60: =OFFSET(InputPriceData!D$15,CalculationsAndCharts!$A60+$A$11,IF($C$7,8,0),1,1) -> 256.18 | F60: =OFFSET(InputPriceData!E$15,CalculationsAndCharts!$A60+$A$11,IF($C$7,8,0),1,1) -> 255.53 | G60: =OFFSET(InputPriceData!F$15,CalculationsAndCharts!$A60+$A$11,IF($C$7,8,0),1,1) -> 255.96 | H60: -0.32 | I60: -0.1158282927 | J60: 0.5408175007 | K60: -0.2141726045 | L60: 0.02677157556 | M60: 0.9732284244 | N60: 254.7107217 | AO60: 48075500
A61: 29 | B61: =OFFSET(InputPriceData!B$15,CalculationsAndCharts!$A61+$A$11,0,1,1) -> 2017-11-17 | C61: =OFFSET(InputPriceData!G$15,CalculationsAndCharts!$A61+$A$11,IF($C$7,8,0),1,1) -> 75756800 | D61: =OFFSET(InputPriceData!C$15,CalculationsAndCharts!$A61+$A$11,IF($C$7,8,0),1,1) -> 255.88 | E61: =OFFSET(InputPriceData!D$15,CalculationsAndCharts!$A61+$A$11,IF($C$7,8,0),1,1) -> 256.25 | F61: =OFFSET(InputPriceData!E$15,CalculationsAndCharts!$A61+$A$11,IF($C$7,8,0),1,1) -> 255.44 | G61: =OFFSET(InputPriceData!F$15,CalculationsAndCharts!$A61+$A$11,IF($C$7,8,0),1,1) -> 255.53 | H61: 1.41 | I61: -0.1785347612 | J61: 0.5440764398 | K61: -0.3281427904 | L61: 0.0410178488 | M61: 0.9589821512 | N61: 254.6763565 | AP61: 75756800
A62: 30 | B62: =OFFSET(InputPriceData!B$15,CalculationsAndCharts!$A62+$A$11,0,1,1) -> 2017-11-16 | C62: =OFFSET(InputPriceData!G$15,CalculationsAndCharts!$A62+$A$11,IF($C$7,8,0),1,1) -> 67777000 | D62: =OFFSET(InputPriceData!C$15,CalculationsAndCharts!$A62+$A$11,IF($C$7,8,0),1,1) -> 255.19 | E62: =OFFSET(InputPriceData!D$15,CalculationsAndCharts!$A62+$A$11,IF($C$7,8,0),1,1) -> 256.69 | F62: =OFFSET(InputPriceData!E$15,CalculationsAndCharts!$A62+$A$11,IF($C$7,8,0),1,1) -> 255.14 | G62: =OFFSET(InputPriceData!F$15,CalculationsAndCharts!$A62+$A$11,IF($C$7,8,0),1,1) -> 256.28 | H62: 0.88 | I62: -0.1871674281 | J62: 0.5516027623 | K62: -0.3393156106 | L62: 0.04241445133 | M62: 0.9575855487 | N62: 254.6398443 | AO62: 67777000
A63: 31 | B63: =OFFSET(InputPriceData!B$15,CalculationsAndCharts!$A63+$A$11,0,1,1) -> 2017-11-15 | C63: =OFFSET(InputPriceData!G$15,CalculationsAndCharts!$A63+$A$11,IF($C$7,8,0),1,1) -> 80811500 | D63: =OFFSET(InputPriceData!C$15,CalculationsAndCharts!$A63+$A$11,IF($C$7,8,0),1,1) -> 254.3 | E63: =OFFSET(InputPriceData!D$15,CalculationsAndCharts!$A63+$A$11,IF($C$7,8,0),1,1) -> 254.89 | F63: =OFFSET(InputPriceData!E$15,CalculationsAndCharts!$A63+$A$11,IF($C$7,8,0),1,1) -> 253.32 | G63: =OFFSET(InputPriceData!F$15,CalculationsAndCharts!$A63+$A$11,IF($C$7,8,0),1,1) -> 254.12 | H63: -1.87 | I63: -0.0364968797 | J63: 0.5646429248 | K63: -0.06463709735 | L63: 0.008079637168 | M63: 0.9919203628 | N63: 254.5671967 | AP63: 80811500
A64: 32 | B64: =OFFSET(InputPriceData!B$15,CalculationsAndCharts!$A64+$A$11,0,1,1) -> 2017-11-14 | C64: =OFFSET(InputPriceData!G$15,CalculationsAndCharts!$A64+$A$11,IF($C$7,8,0),1,1) -> 61315200 | D64: =OFFSET(InputPriceData!C$15,CalculationsAndCharts!$A64+$A$11,IF($C$7,8,0),1,1) -> 255.08 | E64: =OFFSET(InputPriceData!D$15,CalculationsAndCharts!$A64+$A$11,IF($C$7,8,0),1,1) -> 255.52 | F64: =OFFSET(InputPriceData!E$15,CalculationsAndCharts!$A64+$A$11,IF($C$7,8,0),1,1) -> 254.2 | G64: =OFFSET(InputPriceData!F$15,CalculationsAndCharts!$A64+$A$11,IF($C$7,8,0),1,1) -> 255.4 | H64: -0.35 | I64: 0.141949492 | J64: 0.5823551785 | K64: 0.2437507164 | L64: 0.03046883956 | M64: 0.9695311604 | N64: 254.5708393 | AO64: 61315200
A65: 33 | B65: =OFFSET(InputPriceData!B$15,CalculationsAndCharts!$A65+$A$11,0,1,1) -> 2017-11-13 | C65: =OFFSET(InputPriceData!G$15,CalculationsAndCharts!$A65+$A$11,IF($C$7,8,0),1,1) -> 50228600 | D65: =OFFSET(InputPriceData!C$15,CalculationsAndCharts!$A65+$A$11,IF($C$7,8,0),1,1) -> 254.98 | E65: =OFFSET(InputPriceData!D$15,CalculationsAndCharts!$A65+$A$11,IF($C$7,8,0),1,1) -> 256.25 | F65: =OFFSET(InputPriceData!E$15,CalculationsAndCharts!$A65+$A$11,IF($C$7,8,0),1,1) -> 254.94 | G65: =OFFSET(InputPriceData!F$15,CalculationsAndCharts!$A65+$A$11,IF($C$7,8,0),1,1) -> 255.99 | H65: 0.16 | I65: 0.2659485148 | J65: 0.6013123366 | K65: 0.4422801572 | L65: 0.05528501965 | M65: 0.9447149803 | N65: 254.5447818 | AO65: 50228600
A66: 34 | B66: =OFFSET(InputPriceData!B$15,CalculationsAndCharts!$A66+$A$11,0,1,1) -> 2017-11-10 | C66: =OFFSET(InputPriceData!G$15,CalculationsAndCharts!$A66+$A$11,IF($C$7,8,0),1,1) -> 59984700 | D66: =OFFSET(InputPriceData!C$15,CalculationsAndCharts!$A66+$A$11,IF($C$7,8,0),1,1) -> 255.4 | E66: =OFFSET(InputPriceData!D$15,CalculationsAndCharts!$A66+$A$11,IF($C$7,8,0),1,1) -> 255.95 | F66: =OFFSET(InputPriceData!E$15,CalculationsAndCharts!$A66+$A$11,IF($C$7,8,0),1,1) -> 255.04 | G66: =OFFSET(InputPriceData!F$15,CalculationsAndCharts!$A66+$A$11,IF($C$7,8,0),1,1) -> 255.75 | H66: -1.01 | I66: 0.4148259788 | J66: 0.6201641763 | K66: 0.668897035 | L66: 0.08361212938 | M66: 0.9163878706 | N66: 254.4602071 | AO66: 59984700
A67: 35 | B67: =OFFSET(InputPriceData!B$15,CalculationsAndCharts!$A67+$A$11,0,1,1) -> 2017-11-09 | C67: =OFFSET(InputPriceData!G$15,CalculationsAndCharts!$A67+$A$11,IF($C$7,8,0),1,1) -> 95085500 | D67: =OFFSET(InputPriceData!C$15,CalculationsAndCharts!$A67+$A$11,IF($C$7,8,0),1,1) -> 255.4 | E67: =OFFSET(InputPriceData!D$15,CalculationsAndCharts!$A67+$A$11,IF($C$7,8,0),1,1) -> 256.05 | F67: =OFFSET(InputPriceData!E$15,CalculationsAndCharts!$A67+$A$11,IF($C$7,8,0),1,1) -> 254.04 | G67: =OFFSET(InputPriceData!F$15,CalculationsAndCharts!$A67+$A$11,IF($C$7,8,0),1,1) -> 255.83 | H67: -0.5 | I67: 0.5434951097 | J67: 0.6379636319 | K67: 0.8519217751 | L67: 0.1064902219 | M67: 0.8935097781 | N67: 254.3425252 | AO67: 95085500
A68: 36 | B68: =OFFSET(InputPriceData!B$15,CalculationsAndCharts!$A68+$A$11,0,1,1) -> 2017-11-08 | C68: =OFFSET(InputPriceData!G$15,CalculationsAndCharts!$A68+$A$11,IF($C$7,8,0),1,1) -> 50469600 | D68: =OFFSET(InputPriceData!C$15,CalculationsAndCharts!$A68+$A$11,IF($C$7,8,0),1,1) -> 256.13 | E68: =OFFSET(InputPriceData!D$15,CalculationsAndCharts!$A68+$A$11,IF($C$7,8,0),1,1) -> 256.87 | F68: =OFFSET(InputPriceData!E$15,CalculationsAndCharts!$A68+$A$11,IF($C$7,8,0),1,1) -> 255.81 | G68: =OFFSET(InputPriceData!F$15,CalculationsAndCharts!$A68+$A$11,IF($C$7,8,0),1,1) -> 256.76 | H68: 0.25 | I68: 0.5841430293 | J68: 0.6529029005 | K68: 0.8946859155 | L68: 0.1118357394 | M68: 0.8881642606 | N68: 254.1652451 | AO68: 50469600
A69: 37 | B69: =OFFSET(InputPriceData!B$15,CalculationsAndCharts!$A69+$A$11,0,1,1) -> 2017-11-07 | C69: =OFFSET(InputPriceData!G$15,CalculationsAndCharts!$A69+$A$11,IF($C$7,8,0),1,1) -> 57502200 | D69: =OFFSET(InputPriceData!C$15,CalculationsAndCharts!$A69+$A$11,IF($C$7,8,0),1,1) -> 256.63 | E69: =OFFSET(InputPriceData!D$15,CalculationsAndCharts!$A69+$A$11,IF($C$7,8,0),1,1) -> 257 | F69: =OFFSET(InputPriceData!E$15,CalculationsAndCharts!$A69+$A$11,IF($C$7,8,0),1,1) -> 255.75 | G69: =OFFSET(InputPriceData!F$15,CalculationsAndCharts!$A69+$A$11,IF($C$7,8,0),1,1) -> 256.33 | H69: 0.22 | I69: 0.5601535074 | J69: 0.6625962167 | K69: 0.8453919496 | L69: 0.1056739937 | M69: 0.8943260063 | N69: 253.8385191 | AP69: 57502200
A70: 38 | B70: =OFFSET(InputPriceData!B$15,CalculationsAndCharts!$A70+$A$11,0,1,1) -> 2017-11-06 | C70: =OFFSET(InputPriceData!G$15,CalculationsAndCharts!$A70+$A$11,IF($C$7,8,0),1,1) -> 49652600 | D70: =OFFSET(InputPriceData!C$15,CalculationsAndCharts!$A70+$A$11,IF($C$7,8,0),1,1) -> 255.96 | E70: =OFFSET(InputPriceData!D$15,CalculationsAndCharts!$A70+$A$11,IF($C$7,8,0),1,1) -> 256.65 | F70: =OFFSET(InputPriceData!E$15,CalculationsAndCharts!$A70+$A$11,IF($C$7,8,0),1,1) -> 255.88 | G70: =OFFSET(InputPriceData!F$15,CalculationsAndCharts!$A70+$A$11,IF($C$7,8,0),1,1) -> 256.51 | H70: 1.25 | I70: 0.4826863324 | J70: 0.6658636119 | K70: 0.7249027035 | L70: 0.09061283794 | M70: 0.9093871621 | N70: 253.5441245 | AO70: 49652600
A71: 39 | B71: =OFFSET(InputPriceData!B$15,CalculationsAndCharts!$A71+$A$11,0,1,1) -> 2017-11-03 | C71: =OFFSET(InputPriceData!G$15,CalculationsAndCharts!$A71+$A$11,IF($C$7,8,0),1,1) -> 59589700 | D71: =OFFSET(InputPriceData!C$15,CalculationsAndCharts!$A71+$A$11,IF($C$7,8,0),1,1) -> 255.44 | E71: =OFFSET(InputPriceData!D$15,CalculationsAndCharts!$A71+$A$11,IF($C$7,8,0),1,1) -> 256.16 | F71: =OFFSET(InputPriceData!E$15,CalculationsAndCharts!$A71+$A$11,IF($C$7,8,0),1,1) -> 254.97 | G71: =OFFSET(InputPriceData!F$15,CalculationsAndCharts!$A71+$A$11,IF($C$7,8,0),1,1) -> 256.11 | H71: 0.95 | I71: 0.3929803214 | J71: 0.6667873425 | K71: 0.5893637992 | L71: 0.0736704749 | M71: 0.9263295251 | N71: 253.2485998 | AO71: 59589700
A72: 40 | B72: =OFFSET(InputPriceData!B$15,CalculationsAndCharts!$A72+$A$11,0,1,1) -> 2017-11-02 | C72: =OFFSET(InputPriceData!G$15,CalculationsAndCharts!$A72+$A$11,IF($C$7,8,0),1,1) -> 56449500 | D72: =OFFSET(InputPriceData!C$15,CalculationsAndCharts!$A72+$A$11,IF($C$7,8,0),1,1) -> 255.08 | E72: =OFFSET(InputPriceData!D$15,CalculationsAndCharts!$A72+$A$11,IF($C$7,8,0),1,1) -> 255.42 | F72: =OFFSET(InputPriceData!E$15,CalculationsAndCharts!$A72+$A$11,IF($C$7,8,0),1,1) -> 253.87 | G72: =OFFSET(InputPriceData!F$15,CalculationsAndCharts!$A72+$A$11,IF($C$7,8,0),1,1) -> 255.26 | H72: 0.44 | I72: 0.3402131888 | J72: 0.6697216006 | K72: 0.5079919604 | L72: 0.06349899505 | M72: 0.936501005 | N72: 253.0210342 | AO72: 56449500
A73: 41 | B73: =OFFSET(InputPriceData!B$15,CalculationsAndCharts!$A73+$A$11,0,1,1) -> 2017-11-01 | C73: =OFFSET(InputPriceData!G$15,CalculationsAndCharts!$A73+$A$11,IF($C$7,8,0),1,1) -> 54202700 | D73: =OFFSET(InputPriceData!C$15,CalculationsAndCharts!$A73+$A$11,IF($C$7,8,0),1,1) -> 255.7 | E73: =OFFSET(InputPriceData!D$15,CalculationsAndCharts!$A73+$A$11,IF($C$7,8,0),1,1) -> 256.09 | F73: =OFFSET(InputPriceData!E$15,CalculationsAndCharts!$A73+$A$11,IF($C$7,8,0),1,1) -> 254.74 | G73: =OFFSET(InputPriceData!F$15,CalculationsAndCharts!$A73+$A$11,IF($C$7,8,0),1,1) -> 255.16 | H73: 0.73 | I73: 0.3016466545 | J73: 0.6754901662 | K73: 0.4465596534 | L73: 0.05581995667 | M73: 0.9441800433 | N73: 252.8692222 | AP73: 54202700
A74: 42 | B74: =OFFSET(InputPriceData!B$15,CalculationsAndCharts!$A74+$A$11,0,1,1) -> 2017-10-31 | C74: =OFFSET(InputPriceData!G$15,CalculationsAndCharts!$A74+$A$11,IF($C$7,8,0),1,1) -> 60304800 | D74: =OFFSET(InputPriceData!C$15,CalculationsAndCharts!$A74+$A$11,IF($C$7,8,0),1,1) -> 254.85 | E74: =OFFSET(InputPriceData!D$15,CalculationsAndCharts!$A74+$A$11,IF($C$7,8,0),1,1) -> 255.11 | F74: =OFFSET(InputPriceData!E$15,CalculationsAndCharts!$A74+$A$11,IF($C$7,8,0),1,1) -> 254.48 | G74: =OFFSET(InputPriceData!F$15,CalculationsAndCharts!$A74+$A$11,IF($C$7,8,0),1,1) -> 254.82 | H74: -0.56 | I74: 0.2764217111 | J74: 0.6841554511 | K74: 0.4040334849 | L74: 0.05050418561 | M74: 0.9494958144 | N74: 252.7337913 | AP74: 60304800
A75: 43 | B75: =OFFSET(InputPriceData!B$15,CalculationsAndCharts!$A75+$A$11,0,1,1) -> 2017-10-30 | C75: =OFFSET(InputPriceData!G$15,CalculationsAndCharts!$A75+$A$11,IF($C$7,8,0),1,1) -> 54285700 | D75: =OFFSET(InputPriceData!C$15,CalculationsAndCharts!$A75+$A$11,IF($C$7,8,0),1,1) -> 254.15 | E75: =OFFSET(InputPriceData!D$15,CalculationsAndCharts!$A75+$A$11,IF($C$7,8,0),1,1) -> 255.27 | F75: =OFFSET(InputPriceData!E$15,CalculationsAndCharts!$A75+$A$11,IF($C$7,8,0),1,1) -> 254.09 | G75: =OFFSET(InputPriceData!F$15,CalculationsAndCharts!$A75+$A$11,IF($C$7,8,0),1,1) -> 254.43 | H75: 1.12 | I75: 0.213504757 | J75: 0.6944160834 | K75: 0.3074594068 | L75: 0.03843242585 | M75: 0.9615675742 | N75: 252.6228248 | AO75: 54285700
A76: 44 | B76: =OFFSET(InputPriceData!B$15,CalculationsAndCharts!$A76+$A$11,0,1,1) -> 2017-10-27 | C76: =OFFSET(InputPriceData!G$15,CalculationsAndCharts!$A76+$A$11,IF($C$7,8,0),1,1) -> 85562500 | D76: =OFFSET(InputPriceData!C$15,CalculationsAndCharts!$A76+$A$11,IF($C$7,8,0),1,1) -> 254.15 | E76: =OFFSET(InputPriceData!D$15,CalculationsAndCharts!$A76+$A$11,IF($C$7,8,0),1,1) -> 255.55 | F76: =OFFSET(InputPriceData!E$15,CalculationsAndCharts!$A76+$A$11,IF($C$7,8,0),1,1) -> 253.32 | G76: =OFFSET(InputPriceData!F$15,CalculationsAndCharts!$A76+$A$11,IF($C$7,8,0),1,1) -> 255.38 | H76: 2.4 | I76: 0.1235925619 | J76: 0.7009260296 | K76: 0.1763275391 | L76: 0.02204094239 | M76: 0.9779590576 | N76: 252.5505947 | AO76: 85562500
A77: 45 | B77: =OFFSET(InputPriceData!B$15,CalculationsAndCharts!$A77+$A$11,0,1,1) -> 2017-10-26 | C77: =OFFSET(InputPriceData!G$15,CalculationsAndCharts!$A77+$A$11,IF($C$7,8,0),1,1) -> 69798000 | D77: =OFFSET(InputPriceData!C$15,CalculationsAndCharts!$A77+$A$11,IF($C$7,8,0),1,1) -> 253.67 | E77: =OFFSET(InputPriceData!D$15,CalculationsAndCharts!$A77+$A$11,IF($C$7,8,0),1,1) -> 253.98 | F77: =OFFSET(InputPriceData!E$15,CalculationsAndCharts!$A77+$A$11,IF($C$7,8,0),1,1) -> 253.17 | G77: =OFFSET(InputPriceData!F$15,CalculationsAndCharts!$A77+$A$11,IF($C$7,8,0),1,1) -> 253.31 | H77: -0.93 | I77: 0.185010239 | J77: 0.7026203261 | K77: 0.2633146695 | L77: 0.03291433369 | M77: 0.9670856663 | N77: 252.4868264 | AP77: 69798000
A78: 46 | B78: =OFFSET(InputPriceData!B$15,CalculationsAndCharts!$A78+$A$11,0,1,1) -> 2017-10-25 | C78: =OFFSET(InputPriceData!G$15,CalculationsAndCharts!$A78+$A$11,IF($C$7,8,0),1,1) -> 103715300 | D78: =OFFSET(InputPriceData!C$15,CalculationsAndCharts!$A78+$A$11,IF($C$7,8,0),1,1) -> 253.86 | E78: =OFFSET(InputPriceData!D$15,CalculationsAndCharts!$A78+$A$11,IF($C$7,8,0),1,1) -> 253.99 | F78: =OFFSET(InputPriceData!E$15,CalculationsAndCharts!$A78+$A$11,IF($C$7,8,0),1,1) -> 251.7 | G78: =OFFSET(InputPriceData!F$15,CalculationsAndCharts!$A78+$A$11,IF($C$7,8,0),1,1) -> 252.98 | H78: -0.81 | I78: 0.3485394063 | J78: 0.7021366155 | K78: 0.4963982772 | L78: 0.06204978465 | M78: 0.9379502154 | N78: 252.45881 | AP78: 103715300
A79: 47 | B79: =OFFSET(InputPriceData!B$15,CalculationsAndCharts!$A79+$A$11,0,1,1) -> 2017-10-24 | C79: =OFFSET(InputPriceData!G$15,CalculationsAndCharts!$A79+$A$11,IF($C$7,8,0),1,1) -> 66935900 | D79: =OFFSET(InputPriceData!C$15,CalculationsAndCharts!$A79+$A$11,IF($C$7,8,0),1,1) -> 254.28 | E79: =OFFSET(InputPriceData!D$15,CalculationsAndCharts!$A79+$A$11,IF($C$7,8,0),1,1) -> 254.5 | F79: =OFFSET(InputPriceData!E$15,CalculationsAndCharts!$A79+$A$11,IF($C$7,8,0),1,1) -> 253.83 | G79: =OFFSET(InputPriceData!F$15,CalculationsAndCharts!$A79+$A$11,IF($C$7,8,0),1,1) -> 254.24 | H79: -0.54 | I79: 0.4533947373 | J79: 0.7000467271 | K79: 0.6476635341 | L79: 0.08095794176 | M79: 0.9190420582 | N79: 252.4243309 | AP79: 66935900
A80: 48 | B80: =OFFSET(InputPriceData!B$15,CalculationsAndCharts!$A80+$A$11,0,1,1) -> 2017-10-23 | C80: =OFFSET(InputPriceData!G$15,CalculationsAndCharts!$A80+$A$11,IF($C$7,8,0),1,1) -> 63915300 | D80: =OFFSET(InputPriceData!C$15,CalculationsAndCharts!$A80+$A$11,IF($C$7,8,0),1,1) -> 255.15 | E80: =OFFSET(InputPriceData!D$15,CalculationsAndCharts!$A80+$A$11,IF($C$7,8,0),1,1) -> 255.18 | F80: =OFFSET(InputPriceData!E$15,CalculationsAndCharts!$A80+$A$11,IF($C$7,8,0),1,1) -> 253.7 | G80: =OFFSET(InputPriceData!F$15,CalculationsAndCharts!$A80+$A$11,IF($C$7,8,0),1,1) -> 253.79 | H80: 0.32 | I80: 0.4778678149 | J80: 0.6969822134 | K80: 0.6856241173 | L80: 0.08570301467 | M80: 0.9142969853 | N80: 252.2643895 | AP80: 63915300
A81: 49 | B81: =OFFSET(InputPriceData!B$15,CalculationsAndCharts!$A81+$A$11,0,1,1) -> 2017-10-20 | C81: =OFFSET(InputPriceData!G$15,CalculationsAndCharts!$A81+$A$11,IF($C$7,8,0),1,1) -> 89176400 | D81: =OFFSET(InputPriceData!C$15,CalculationsAndCharts!$A81+$A$11,IF($C$7,8,0),1,1) -> 254.38 | E81: =OFFSET(InputPriceData!D$15,CalculationsAndCharts!$A81+$A$11,IF($C$7,8,0),1,1) -> 254.81 | F81: =OFFSET(InputPriceData!E$15,CalculationsAndCharts!$A81+$A$11,IF($C$7,8,0),1,1) -> 253.45 | G81: =OFFSET(InputPriceData!F$15,CalculationsAndCharts!$A81+$A$11,IF($C$7,8,0),1,1) -> 254.78 | H81: 1.38 | I81: 0.4435991248 | J81: 0.6944653551 | K81: 0.6387635057 | L81: 0.07984543821 | M81: 0.9201545618 | N81: 252.1213841 | AO81: 89176400
A82: 50 | B82: =OFFSET(InputPriceData!B$15,CalculationsAndCharts!$A82+$A$11,0,1,1) -> 2017-10-19 | C82: =OFFSET(InputPriceData!G$15,CalculationsAndCharts!$A82+$A$11,IF($C$7,8,0),1,1) -> 61903800 | D82: =OFFSET(InputPriceData!C$15,CalculationsAndCharts!$A82+$A$11,IF($C$7,8,0),1,1) -> 252.52 | E82: =OFFSET(InputPriceData!D$15,CalculationsAndCharts!$A82+$A$11,IF($C$7,8,0),1,1) -> 253.51 | F82: =OFFSET(InputPriceData!E$15,CalculationsAndCharts!$A82+$A$11,IF($C$7,8,0),1,1) -> 252.05 | G82: =OFFSET(InputPriceData!F$15,CalculationsAndCharts!$A82+$A$11,IF($C$7,8,0),1,1) -> 253.47 | H82: 0.31 | I82: 0.4402359165 | J82: 0.693800266 | K82: 0.6345283191 | L82: 0.07931603988 | M82: 0.9206839601 | N82: 251.8906855 | AO82: =IF(G82>=D82,C82,NA()) -> 61903800 | AP82: =IF(G82<D82,C82,NA()) -> 
A83: 51 | B83: =OFFSET(InputPriceData!B$15,CalculationsAndCharts!$A83+$A$11,0,1,1) -> 2017-10-18 | C83: =OFFSET(InputPriceData!G$15,CalculationsAndCharts!$A83+$A$11,IF($C$7,8,0),1,1) -> 40888300 | D83: =OFFSET(InputPriceData!C$15,CalculationsAndCharts!$A83+$A$11,IF($C$7,8,0),1,1) -> 253.58 | E83: =OFFSET(InputPriceData!D$15,CalculationsAndCharts!$A83+$A$11,IF($C$7,8,0),1,1) -> 253.63 | F83: =OFFSET(InputPriceData!E$15,CalculationsAndCharts!$A83+$A$11,IF($C$7,8,0),1,1) -> 253.19 | G83: =OFFSET(InputPriceData!F$15,CalculationsAndCharts!$A83+$A$11,IF($C$7,8,0),1,1) -> 253.4 | H83: 0.42 | I83: 0.4848611837 | J83: 0.6967617964 | K83: 0.6958779689 | L83: 0.08698474611 | M83: 0.9130152539 | N83: 251.7546291 | AP83: 40888300
A84: 52 | B84: =OFFSET(InputPriceData!B$15,CalculationsAndCharts!$A84+$A$11,0,1,1) -> 2017-10-17 | C84: =OFFSET(InputPriceData!G$15,CalculationsAndCharts!$A84+$A$11,IF($C$7,8,0),1,1) -> 31561000 | D84: =OFFSET(InputPriceData!C$15,CalculationsAndCharts!$A84+$A$11,IF($C$7,8,0),1,1) -> 252.92 | E84: =OFFSET(InputPriceData!D$15,CalculationsAndCharts!$A84+$A$11,IF($C$7,8,0),1,1) -> 253.21 | F84: =OFFSET(InputPriceData!E$15,CalculationsAndCharts!$A84+$A$11,IF($C$7,8,0),1,1) -> 252.67 | G84: =OFFSET(InputPriceData!F$15,CalculationsAndCharts!$A84+$A$11,IF($C$7,8,0),1,1) -> 253.16 | H84: 0.52 | I84: 0.5396765997 | J84: 0.7046309838 | K84: 0.7658996157 | L84: 0.09573745196 | M84: 0.904262548 | N84: 251.5978714 | AO84: 31561000
A85: 53 | B85: =OFFSET(InputPriceData!B$15,CalculationsAndCharts!$A85+$A$11,0,1,1) -> 2017-10-16 | C85: =OFFSET(InputPriceData!G$15,CalculationsAndCharts!$A85+$A$11,IF($C$7,8,0),1,1) -> 38221700 | D85: =OFFSET(InputPriceData!C$15,CalculationsAndCharts!$A85+$A$11,IF($C$7,8,0),1,1) -> 252.9 | E85: =OFFSET(InputPriceData!D$15,CalculationsAndCharts!$A85+$A$11,IF($C$7,8,0),1,1) -> 253.2 | F85: =OFFSET(InputPriceData!E$15,CalculationsAndCharts!$A85+$A$11,IF($C$7,8,0),1,1) -> 252.51 | G85: =OFFSET(InputPriceData!F$15,CalculationsAndCharts!$A85+$A$11,IF($C$7,8,0),1,1) -> 252.98 | H85: 0.65 | I85: 0.616564308 | J85: 0.7108527943 | K85: 0.8673586331 | L85: 0.1084198291 | M85: 0.8915801709 | N85: 251.4324834 | AO85: 38221700
A86: 54 | B86: =OFFSET(InputPriceData!B$15,CalculationsAndCharts!$A86+$A$11,0,1,1) -> 2017-10-13 | C86: =OFFSET(InputPriceData!G$15,CalculationsAndCharts!$A86+$A$11,IF($C$7,8,0),1,1) -> 54800400 | D86: =OFFSET(InputPriceData!C$15,CalculationsAndCharts!$A86+$A$11,IF($C$7,8,0),1,1) -> 252.83 | E86: =OFFSET(InputPriceData!D$15,CalculationsAndCharts!$A86+$A$11,IF($C$7,8,0),1,1) -> 252.96 | F86: =OFFSET(InputPriceData!E$15,CalculationsAndCharts!$A86+$A$11,IF($C$7,8,0),1,1) -> 252.33 | G86: =OFFSET(InputPriceData!F$15,CalculationsAndCharts!$A86+$A$11,IF($C$7,8,0),1,1) -> 252.64 | H86: -0.07 | I86: 0.7325644548 | J86: 0.708872233 | K86: 1.033422415 | L86: 0.1291778018 | M86: 0.8708221982 | N86: 251.244299 | AP86: 54800400
A87: 55 | B87: =OFFSET(InputPriceData!B$15,CalculationsAndCharts!$A87+$A$11,0,1,1) -> 2017-10-12 | C87: =OFFSET(InputPriceData!G$15,CalculationsAndCharts!$A87+$A$11,IF($C$7,8,0),1,1) -> 47065100 | D87: =OFFSET(InputPriceData!C$15,CalculationsAndCharts!$A87+$A$11,IF($C$7,8,0),1,1) -> 252.35 | E87: =OFFSET(InputPriceData!D$15,CalculationsAndCharts!$A87+$A$11,IF($C$7,8,0),1,1) -> 252.75 | F87: =OFFSET(InputPriceData!E$15,CalculationsAndCharts!$A87+$A$11,IF($C$7,8,0),1,1) -> 252.07 | G87: =OFFSET(InputPriceData!F$15,CalculationsAndCharts!$A87+$A$11,IF($C$7,8,0),1,1) -> 252.33 | H87: 0.02 | I87: 0.8589138856 | J87: 0.7007322248 | K87: 1.225737672 | L87: 0.1532172089 | M87: 0.8467827911 | N87: 251.0372606 | AP87: 47065100
A88: 56 | B88: =OFFSET(InputPriceData!B$15,CalculationsAndCharts!$A88+$A$11,0,1,1) -> 2017-10-11 | C88: =OFFSET(InputPriceData!G$15,CalculationsAndCharts!$A88+$A$11,IF($C$7,8,0),1,1) -> 47674300 | D88: =OFFSET(InputPriceData!C$15,CalculationsAndCharts!$A88+$A$11,IF($C$7,8,0),1,1) -> 252.21 | E88: =OFFSET(InputPriceData!D$15,CalculationsAndCharts!$A88+$A$11,IF($C$7,8,0),1,1) -> 252.71 | F88: =OFFSET(InputPriceData!E$15,CalculationsAndCharts!$A88+$A$11,IF($C$7,8,0),1,1) -> 252.02 | G88: =OFFSET(InputPriceData!F$15,CalculationsAndCharts!$A88+$A$11,IF($C$7,8,0),1,1) -> 252.71 | H88: 1.06 | I88: 0.9470237204 | J88: 0.6895124201 | K88: 1.37346869 | L88: 0.1716835863 | M88: 0.8283164137 | N88: 250.8033519 | AO88: 47674300
A89: 57 | B89: =OFFSET(InputPriceData!B$15,CalculationsAndCharts!$A89+$A$11,0,1,1) -> 2017-10-10 | C89: =OFFSET(InputPriceData!G$15,CalculationsAndCharts!$A89+$A$11,IF($C$7,8,0),1,1) -> 43057400 | D89: =OFFSET(InputPriceData!C$15,CalculationsAndCharts!$A89+$A$11,IF($C$7,8,0),1,1) -> 252.29 | E89: =OFFSET(InputPriceData!D$15,CalculationsAndCharts!$A89+$A$11,IF($C$7,8,0),1,1) -> 252.74 | F89: =OFFSET(InputPriceData!E$15,CalculationsAndCharts!$A89+$A$11,IF($C$7,8,0),1,1) -> 251.68 | G89: =OFFSET(InputPriceData!F$15,CalculationsAndCharts!$A89+$A$11,IF($C$7,8,0),1,1) -> 252.31 | H89: 0.24 | I89: 1.034263329 | J89: 0.6790678625 | K89: 1.523063285 | L89: 0.1903829106 | M89: 0.8096170894 | N89: 250.4081645 | AO89: 43057400
A90: 58 | B90: =OFFSET(InputPriceData!B$15,CalculationsAndCharts!$A90+$A$11,0,1,1) -> 2017-10-09 | C90: =OFFSET(InputPriceData!G$15,CalculationsAndCharts!$A90+$A$11,IF($C$7,8,0),1,1) -> 35803100 | D90: =OFFSET(InputPriceData!C$15,CalculationsAndCharts!$A90+$A$11,IF($C$7,8,0),1,1) -> 252.32 | E90: =OFFSET(InputPriceData!D$15,CalculationsAndCharts!$A90+$A$11,IF($C$7,8,0),1,1) -> 252.39 | F90: =OFFSET(InputPriceData!E$15,CalculationsAndCharts!$A90+$A$11,IF($C$7,8,0),1,1) -> 251.35 | G90: =OFFSET(InputPriceData!F$15,CalculationsAndCharts!$A90+$A$11,IF($C$7,8,0),1,1) -> 251.65 | H90: -0.7 | I90: 1.122950237 | J90: 0.6681431788 | K90: 1.680702989 | L90: 0.2100878736 | M90: 0.7899121264 | N90: 249.9609445 | AP90: 35803100
A91: 59 | B91: =OFFSET(InputPriceData!B$15,CalculationsAndCharts!$A91+$A$11,0,1,1) -> 2017-10-06 | C91: =OFFSET(InputPriceData!G$15,CalculationsAndCharts!$A91+$A$11,IF($C$7,8,0),1,1) -> 80646000 | D91: =OFFSET(InputPriceData!C$15,CalculationsAndCharts!$A91+$A$11,IF($C$7,8,0),1,1) -> 251.85 | E91: =OFFSET(InputPriceData!D$15,CalculationsAndCharts!$A91+$A$11,IF($C$7,8,0),1,1) -> 252.39 | F91: =OFFSET(InputPriceData!E$15,CalculationsAndCharts!$A91+$A$11,IF($C$7,8,0),1,1) -> 251.55 | G91: =OFFSET(InputPriceData!F$15,CalculationsAndCharts!$A91+$A$11,IF($C$7,8,0),1,1) -> 252.07 | H91: 1.2 | I91: 1.094545677 | J91: 0.6487036759 | K91: 1.687281448 | L91: 0.210910181 | M91: 0.789089819 | N91: 249.5117172 | AO91: 80646000
A92: 60 | B92: =OFFSET(InputPriceData!B$15,CalculationsAndCharts!$A92+$A$11,0,1,1) -> 2017-10-05 | C92: =OFFSET(InputPriceData!G$15,CalculationsAndCharts!$A92+$A$11,IF($C$7,8,0),1,1) -> 63522800 | D92: =OFFSET(InputPriceData!C$15,CalculationsAndCharts!$A92+$A$11,IF($C$7,8,0),1,1) -> 251.24 | E92: =OFFSET(InputPriceData!D$15,CalculationsAndCharts!$A92+$A$11,IF($C$7,8,0),1,1) -> 252.37 | F92: =OFFSET(InputPriceData!E$15,CalculationsAndCharts!$A92+$A$11,IF($C$7,8,0),1,1) -> 250.91 | G92: =OFFSET(InputPriceData!F$15,CalculationsAndCharts!$A92+$A$11,IF($C$7,8,0),1,1) -> 252.35 | H92: 1.78 | I92: 0.9462019243 | J92: 0.6255080608 | K92: 1.512693414 | L92: 0.1890866768 | M92: 0.8109133232 | N92: 248.827932 | AO92: 63522800
A93: 61 | B93: =OFFSET(InputPriceData!B$15,CalculationsAndCharts!$A93+$A$11,0,1,1) -> 2017-10-04 | C93: =OFFSET(InputPriceData!G$15,CalculationsAndCharts!$A93+$A$11,IF($C$7,8,0),1,1) -> 55953600 | D93: =OFFSET(InputPriceData!C$15,CalculationsAndCharts!$A93+$A$11,IF($C$7,8,0),1,1) -> 250.4 | E93: =OFFSET(InputPriceData!D$15,CalculationsAndCharts!$A93+$A$11,IF($C$7,8,0),1,1) -> 251.15 | F93: =OFFSET(InputPriceData!E$15,CalculationsAndCharts!$A93+$A$11,IF($C$7,8,0),1,1) -> 250.27 | G93: =OFFSET(InputPriceData!F$15,CalculationsAndCharts!$A93+$A$11,IF($C$7,8,0),1,1) -> 250.87 | H93: 0.83 | I93: 0.7818925307 | J93: 0.6074064202 | K93: 1.287264185 | L93: 0.1609080232 | M93: 0.8390919768 | N93: 248.0066653 | AO93: 55953600
A94: 62 | B94: =OFFSET(InputPriceData!B$15,CalculationsAndCharts!$A94+$A$11,0,1,1) -> 2017-10-03 | C94: =OFFSET(InputPriceData!G$15,CalculationsAndCharts!$A94+$A$11,IF($C$7,8,0),1,1) -> 66810200 | D94: =OFFSET(InputPriceData!C$15,CalculationsAndCharts!$A94+$A$11,IF($C$7,8,0),1,1) -> 250.04 | E94: =OFFSET(InputPriceData!D$15,CalculationsAndCharts!$A94+$A$11,IF($C$7,8,0),1,1) -> 250.6 | F94: =OFFSET(InputPriceData!E$15,CalculationsAndCharts!$A94+$A$11,IF($C$7,8,0),1,1) -> 249.95 | G94: =OFFSET(InputPriceData!F$15,CalculationsAndCharts!$A94+$A$11,IF($C$7,8,0),1,1) -> 250.57 | H94: 1.61 | I94: 0.5901391061 | J94: 0.5947941904 | K94: 0.9921736218 | L94: 0.1240217027 | M94: 0.8759782973 | N94: 247.4575795 | AO94: 66810200
A95: 63 | B95: =OFFSET(InputPriceData!B$15,CalculationsAndCharts!$A95+$A$11,0,1,1) -> 2017-10-02 | C95: =OFFSET(InputPriceData!G$15,CalculationsAndCharts!$A95+$A$11,IF($C$7,8,0),1,1) -> 59023000 | D95: =OFFSET(InputPriceData!C$15,CalculationsAndCharts!$A95+$A$11,IF($C$7,8,0),1,1) -> 249.21 | E95: =OFFSET(InputPriceData!D$15,CalculationsAndCharts!$A95+$A$11,IF($C$7,8,0),1,1) -> 250.04 | F95: =OFFSET(InputPriceData!E$15,CalculationsAndCharts!$A95+$A$11,IF($C$7,8,0),1,1) -> 249.01 | G95: =OFFSET(InputPriceData!F$15,CalculationsAndCharts!$A95+$A$11,IF($C$7,8,0),1,1) -> 250.04 | H95: 1.96 | I95: 0.3687455772 | J95: 0.5874701829 | K95: 0.6276839028 | L95: 0.07846048786 | M95: 0.9215395121 | N95: 247.0169205 | AO95: 59023000
A96: 64 | B96: =OFFSET(InputPriceData!B$15,CalculationsAndCharts!$A96+$A$11,0,1,1) -> 2017-09-29 | C96: =OFFSET(InputPriceData!G$15,CalculationsAndCharts!$A96+$A$11,IF($C$7,8,0),1,1) -> 85578000 | D96: =OFFSET(InputPriceData!C$15,CalculationsAndCharts!$A96+$A$11,IF($C$7,8,0),1,1) -> 248.07 | E96: =OFFSET(InputPriceData!D$15,CalculationsAndCharts!$A96+$A$11,IF($C$7,8,0),1,1) -> 249.04 | F96: =OFFSET(InputPriceData!E$15,CalculationsAndCharts!$A96+$A$11,IF($C$7,8,0),1,1) -> 247.87 | G96: =OFFSET(InputPriceData!F$15,CalculationsAndCharts!$A96+$A$11,IF($C$7,8,0),1,1) -> 248.96 | H96: 1.17 | I96: 0.1980235169 | J96: 0.5846099116 | K96: 0.3387276078 | L96: 0.04234095098 | M96: 0.957659049 | N96: 246.7595335 | AO96: 85578000
A97: 65 | B97: =OFFSET(InputPriceData!B$15,CalculationsAndCharts!$A97+$A$11,0,1,1) -> 2017-09-28 | C97: =OFFSET(InputPriceData!G$15,CalculationsAndCharts!$A97+$A$11,IF($C$7,8,0),1,1) -> 44778800 | D97: =OFFSET(InputPriceData!C$15,CalculationsAndCharts!$A97+$A$11,IF($C$7,8,0),1,1) -> 247.47 | E97: =OFFSET(InputPriceData!D$15,CalculationsAndCharts!$A97+$A$11,IF($C$7,8,0),1,1) -> 248.17 | F97: =OFFSET(InputPriceData!E$15,CalculationsAndCharts!$A97+$A$11,IF($C$7,8,0),1,1) -> 247.37 | G97: =OFFSET(InputPriceData!F$15,CalculationsAndCharts!$A97+$A$11,IF($C$7,8,0),1,1) -> 248.08 | H97: 1.26 | I97: 0.1002408531 | J97: 0.583945622 | K97: 0.1716612803 | L97: 0.02145766003 | M97: 0.97854234 | N97: 246.6622443 | AO97: 44778800
A98: 66 | B98: =OFFSET(InputPriceData!B$15,CalculationsAndCharts!$A98+$A$11,0,1,1) -> 2017-09-27 | C98: =OFFSET(InputPriceData!G$15,CalculationsAndCharts!$A98+$A$11,IF($C$7,8,0),1,1) -> 81001400 | D98: =OFFSET(InputPriceData!C$15,CalculationsAndCharts!$A98+$A$11,IF($C$7,8,0),1,1) -> 247.62 | E98: =OFFSET(InputPriceData!D$15,CalculationsAndCharts!$A98+$A$11,IF($C$7,8,0),1,1) -> 248.22 | F98: =OFFSET(InputPriceData!E$15,CalculationsAndCharts!$A98+$A$11,IF($C$7,8,0),1,1) -> 246.62 | G98: =OFFSET(InputPriceData!F$15,CalculationsAndCharts!$A98+$A$11,IF($C$7,8,0),1,1) -> 247.79 | H98: =G98-G100 -> 1.11 | I98: =$F$21*(H98+H99)/2+$F$19*I99+$F$20*I100 -> 0.08511601825 | J98: 0.5840877006 | K98: 0.1457247228 | L98: =ABS(K98)*5/$A$17 -> 0.01821559035 | M98: =1-L98 -> 0.9817844097 | N98: =L98*G98+M98*N99 -> 246.6311555 | AO98: 81001400
A99: 67 | B99: =OFFSET(InputPriceData!B$15,CalculationsAndCharts!$A99+$A$11,0,1,1) -> 2017-09-26 | C99: =OFFSET(InputPriceData!G$15,CalculationsAndCharts!$A99+$A$11,IF($C$7,8,0),1,1) -> 54082000 | D99: =OFFSET(InputPriceData!C$15,CalculationsAndCharts!$A99+$A$11,IF($C$7,8,0),1,1) -> 247.16 | E99: =OFFSET(InputPriceData!D$15,CalculationsAndCharts!$A99+$A$11,IF($C$7,8,0),1,1) -> 247.44 | F99: =OFFSET(InputPriceData!E$15,CalculationsAndCharts!$A99+$A$11,IF($C$7,8,0),1,1) -> 246.56 | G99: =OFFSET(InputPriceData!F$15,CalculationsAndCharts!$A99+$A$11,IF($C$7,8,0),1,1) -> 246.82 | H99: -0.36 | I99: 0.197044739 | J99: =SQRT(SUMSQ(OFFSET(I99,0,0,$A$17,1))/$A$17) -> 0.5847286295 | K99: 0.3369849346 | L99: 0.04212311682 | M99: 0.9578768832 | N99: 246.6096548 | AP99: 54082000
A100: 68 | B100: =OFFSET(InputPriceData!B$15,CalculationsAndCharts!$A100+$A$11,0,1,1) -> 2017-09-25 | C100: =OFFSET(InputPriceData!G$15,CalculationsAndCharts!$A100+$A$11,IF($C$7,8,0),1,1) -> 57064400 | D100: =OFFSET(InputPriceData!C$15,CalculationsAndCharts!$A100+$A$11,IF($C$7,8,0),1,1) -> 246.89 | E100: =OFFSET(InputPriceData!D$15,CalculationsAndCharts!$A100+$A$11,IF($C$7,8,0),1,1) -> 247.29 | F100: =OFFSET(InputPriceData!E$15,CalculationsAndCharts!$A100+$A$11,IF($C$7,8,0),1,1) -> 245.83 | G100: =OFFSET(InputPriceData!F$15,CalculationsAndCharts!$A100+$A$11,IF($C$7,8,0),1,1) -> 246.68 | H100: -0.45 | I100: 0.3934975562 | J100: 0.5862783912 | K100: 0.6711786791 | L100: 0.08389733489 | M100: 0.9161026651 | N100: 246.6004048 | AP100: 57064400
A101: 69 | B101: =OFFSET(InputPriceData!B$15,CalculationsAndCharts!$A101+$A$11,0,1,1) -> 2017-09-22 | C101: =OFFSET(InputPriceData!G$15,CalculationsAndCharts!$A101+$A$11,IF($C$7,8,0),1,1) -> 51214000 | D101: =OFFSET(InputPriceData!C$15,CalculationsAndCharts!$A101+$A$11,IF($C$7,8,0),1,1) -> 246.8 | E101: =OFFSET(InputPriceData!D$15,CalculationsAndCharts!$A101+$A$11,IF($C$7,8,0),1,1) -> 247.37 | F101: =OFFSET(InputPriceData!E$15,CalculationsAndCharts!$A101+$A$11,IF($C$7,8,0),1,1) -> 246.77 | G101: =OFFSET(InputPriceData!F$15,CalculationsAndCharts!$A101+$A$11,IF($C$7,8,0),1,1) -> 247.18 | H101: -0.62 | I101: 0.6014416523 | J101: 0.5885428368 | K101: 1.021916528 | L101: 0.127739566 | M101: 0.872260434 | N101: 246.5931154 | AO101: 51214000
A102: 70 | B102: =OFFSET(InputPriceData!B$15,CalculationsAndCharts!$A102+$A$11,0,1,1) -> 2017-09-21 | C102: =OFFSET(InputPriceData!G$15,CalculationsAndCharts!$A102+$A$11,IF($C$7,8,0),1,1) -> 48211400 | D102: =OFFSET(InputPriceData!C$15,CalculationsAndCharts!$A102+$A$11,IF($C$7,8,0),1,1) -> 247.62 | E102: =OFFSET(InputPriceData!D$15,CalculationsAndCharts!$A102+$A$11,IF($C$7,8,0),1,1) -> 247.72 | F102: =OFFSET(InputPriceData!E$15,CalculationsAndCharts!$A102+$A$11,IF($C$7,8,0),1,1) -> 246.93 | G102: =OFFSET(InputPriceData!F$15,CalculationsAndCharts!$A102+$A$11,IF($C$7,8,0),1,1) -> 247.13 | H102: -0.58 | I102: 0.7856670113 | J102: 0.590317083 | K102: 1.330923725 | L102: 0.1663654657 | M102: 0.8336345343 | N102: 246.5071682 | AP102: 48211400
A103: 71 | B103: =OFFSET(InputPriceData!B$15,CalculationsAndCharts!$A103+$A$11,0,1,1) -> 2017-09-20 | C103: =OFFSET(InputPriceData!G$15,CalculationsAndCharts!$A103+$A$11,IF($C$7,8,0),1,1) -> 59574100 | D103: =OFFSET(InputPriceData!C$15,CalculationsAndCharts!$A103+$A$11,IF($C$7,8,0),1,1) -> 247.81 | E103: =OFFSET(InputPriceData!D$15,CalculationsAndCharts!$A103+$A$11,IF($C$7,8,0),1,1) -> 247.92 | F103: =OFFSET(InputPriceData!E$15,CalculationsAndCharts!$A103+$A$11,IF($C$7,8,0),1,1) -> 246.67 | G103: =OFFSET(InputPriceData!F$15,CalculationsAndCharts!$A103+$A$11,IF($C$7,8,0),1,1) -> 247.8 | H103: 0.34 | I103: 0.9022022396 | J103: 0.5902557436 | K103: 1.528493792 | L103: 0.191061724 | M103: 0.808938276 | N103: 246.3828718 | AP103: 59574100
A104: 72 | B104: =OFFSET(InputPriceData!B$15,CalculationsAndCharts!$A104+$A$11,0,1,1) -> 2017-09-19 | C104: =OFFSET(InputPriceData!G$15,CalculationsAndCharts!$A104+$A$11,IF($C$7,8,0),1,1) -> 47108100 | D104: =OFFSET(InputPriceData!C$15,CalculationsAndCharts!$A104+$A$11,IF($C$7,8,0),1,1) -> 247.74 | E104: =OFFSET(InputPriceData!D$15,CalculationsAndCharts!$A104+$A$11,IF($C$7,8,0),1,1) -> 247.81 | F104: =OFFSET(InputPriceData!E$15,CalculationsAndCharts!$A104+$A$11,IF($C$7,8,0),1,1) -> 247.34 | G104: =OFFSET(InputPriceData!F$15,CalculationsAndCharts!$A104+$A$11,IF($C$7,8,0),1,1) -> 247.71 | H104: 0.78 | I104: 0.9579710575 | J104: 0.5898764275 | K104: 1.624019901 | L104: 0.2030024877 | M104: 0.7969975123 | N104: 246.0481628 | AP104: 47108100
A105: 73 | B105: =OFFSET(InputPriceData!B$15,CalculationsAndCharts!$A105+$A$11,0,1,1) -> 2017-09-18 | C105: =OFFSET(InputPriceData!G$15,CalculationsAndCharts!$A105+$A$11,IF($C$7,8,0),1,1) -> 46235200 | D105: =OFFSET(InputPriceData!C$15,CalculationsAndCharts!$A105+$A$11,IF($C$7,8,0),1,1) -> 247.35 | E105: =OFFSET(InputPriceData!D$15,CalculationsAndCharts!$A105+$A$11,IF($C$7,8,0),1,1) -> 247.86 | F105: =OFFSET(InputPriceData!E$15,CalculationsAndCharts!$A105+$A$11,IF($C$7,8,0),1,1) -> 247.02 | G105: =OFFSET(InputPriceData!F$15,CalculationsAndCharts!$A105+$A$11,IF($C$7,8,0),1,1) -> 247.46 | H105: 0.86 | I105: 0.9958974783 | J105: 0.5925109947 | K105: 1.680808436 | L105: 0.2101010545 | M105: 0.7898989455 | N105: 245.6248778 | AO105: 46235200
A106: 74 | B106: =OFFSET(InputPriceData!B$15,CalculationsAndCharts!$A106+$A$11,0,1,1) -> 2017-09-15 | C106: =OFFSET(InputPriceData!G$15,CalculationsAndCharts!$A106+$A$11,IF($C$7,8,0),1,1) -> 95432400 | D106: =OFFSET(InputPriceData!C$15,CalculationsAndCharts!$A106+$A$11,IF($C$7,8,0),1,1) -> 246.44 | E106: =OFFSET(InputPriceData!D$15,CalculationsAndCharts!$A106+$A$11,IF($C$7,8,0),1,1) -> 247.03 | F106: =OFFSET(InputPriceData!E$15,CalculationsAndCharts!$A106+$A$11,IF($C$7,8,0),1,1) -> 246.32 | G106: =OFFSET(InputPriceData!F$15,CalculationsAndCharts!$A106+$A$11,IF($C$7,8,0),1,1) -> 246.93 | H106: 0.25 | I106: 1.033363535 | J106: 0.5976455235 | K106: 1.7290576 | L106: 0.2161322001 | M106: 0.7838677999 | N106: 245.1367633 | AO106: 95432400
A107: 75 | B107: =OFFSET(InputPriceData!B$15,CalculationsAndCharts!$A107+$A$11,0,1,1) -> 2017-09-14 | C107: =OFFSET(InputPriceData!G$15,CalculationsAndCharts!$A107+$A$11,IF($C$7,8,0),1,1) -> 95446300 | D107: =OFFSET(InputPriceData!C$15,CalculationsAndCharts!$A107+$A$11,IF($C$7,8,0),1,1) -> 246.32 | E107: =OFFSET(InputPriceData!D$15,CalculationsAndCharts!$A107+$A$11,IF($C$7,8,0),1,1) -> 246.83 | F107: =OFFSET(InputPriceData!E$15,CalculationsAndCharts!$A107+$A$11,IF($C$7,8,0),1,1) -> 246.12 | G107: =OFFSET(InputPriceData!F$15,CalculationsAndCharts!$A107+$A$11,IF($C$7,8,0),1,1) -> 246.6 | H107: 0.04 | I107: 1.032846072 | J107: 0.6003034631 | K107: 1.720539919 | L107: 0.2150674899 | M107: 0.7849325101 | N107: 244.6423226 | AO107: 95446300
A108: 76 | B108: =OFFSET(InputPriceData!B$15,CalculationsAndCharts!$A108+$A$11,0,1,1) -> 2017-09-13 | C108: =OFFSET(InputPriceData!G$15,CalculationsAndCharts!$A108+$A$11,IF($C$7,8,0),1,1) -> 59228000 | D108: =OFFSET(InputPriceData!C$15,CalculationsAndCharts!$A108+$A$11,IF($C$7,8,0),1,1) -> 246.24 | E108: =OFFSET(InputPriceData!D$15,CalculationsAndCharts!$A108+$A$11,IF($C$7,8,0),1,1) -> 246.72 | F108: =OFFSET(InputPriceData!E$15,CalculationsAndCharts!$A108+$A$11,IF($C$7,8,0),1,1) -> 246.11 | G108: =OFFSET(InputPriceData!F$15,CalculationsAndCharts!$A108+$A$11,IF($C$7,8,0),1,1) -> 246.68 | H108: 0.95 | I108: 0.9226510902 | J108: 0.5993407529 | K108: 1.539443273 | L108: 0.1924304091 | M108: 0.8075695909 | N108: 244.105929 | AO108: 59228000
A109: 77 | B109: =OFFSET(InputPriceData!B$15,CalculationsAndCharts!$A109+$A$11,0,1,1) -> 2017-09-12 | C109: =OFFSET(InputPriceData!G$15,CalculationsAndCharts!$A109+$A$11,IF($C$7,8,0),1,1) -> 56896000 | D109: =OFFSET(InputPriceData!C$15,CalculationsAndCharts!$A109+$A$11,IF($C$7,8,0),1,1) -> 246.15 | E109: =OFFSET(InputPriceData!D$15,CalculationsAndCharts!$A109+$A$11,IF($C$7,8,0),1,1) -> 246.6 | F109: =OFFSET(InputPriceData!E$15,CalculationsAndCharts!$A109+$A$11,IF($C$7,8,0),1,1) -> 245.94 | G109: =OFFSET(InputPriceData!F$15,CalculationsAndCharts!$A109+$A$11,IF($C$7,8,0),1,1) -> 246.56 | H109: 3.42 | I109: 0.6981375812 | J109: 0.5997218488 | K109: =I109/J109 -> 1.164102296 | L109: 0.145512787 | M109: 0.854487213 | N109: 243.4925707 | AO109: 56896000
A110: 78 | B110: =OFFSET(InputPriceData!B$15,CalculationsAndCharts!$A110+$A$11,0,1,1) -> 2017-09-11 | C110: =OFFSET(InputPriceData!G$15,CalculationsAndCharts!$A110+$A$11,IF($C$7,8,0),1,1) -> 71364800 | D110: =OFFSET(InputPriceData!C$15,CalculationsAndCharts!$A110+$A$11,IF($C$7,8,0),1,1) -> 244.58 | E110: =OFFSET(InputPriceData!D$15,CalculationsAndCharts!$A110+$A$11,IF($C$7,8,0),1,1) -> 245.82 | F110: =OFFSET(InputPriceData!E$15,CalculationsAndCharts!$A110+$A$11,IF($C$7,8,0),1,1) -> 244.56 | G110: =OFFSET(InputPriceData!F$15,CalculationsAndCharts!$A110+$A$11,IF($C$7,8,0),1,1) -> 245.73 | H110: 2.3 | I110: 0.5312499555 | J110: 0.6026063571 | K110: 0.8815870415 | L110: 0.1101983802 | M110: 0.8898016198 | N110: 242.9702104 | AO110: 71364800
A111: 79 | B111: =OFFSET(InputPriceData!B$15,CalculationsAndCharts!$A111+$A$11,0,1,1) -> 2017-09-08 | C111: =OFFSET(InputPriceData!G$15,CalculationsAndCharts!$A111+$A$11,IF($C$7,8,0),1,1) -> 63832800 | D111: =OFFSET(InputPriceData!C$15,CalculationsAndCharts!$A111+$A$11,IF($C$7,8,0),1,1) -> 243.1 | E111: =OFFSET(InputPriceData!D$15,CalculationsAndCharts!$A111+$A$11,IF($C$7,8,0),1,1) -> 243.66 | F111: =OFFSET(InputPriceData!E$15,CalculationsAndCharts!$A111+$A$11,IF($C$7,8,0),1,1) -> 242.86 | G111: =OFFSET(InputPriceData!F$15,CalculationsAndCharts!$A111+$A$11,IF($C$7,8,0),1,1) -> 243.14 | H111: -0.32 | I111: 0.557942667 | J111: 0.6029699138 | K111: 0.9253242232 | L111: 0.1156655279 | M111: 0.8843344721 | N111: 242.6284215 | AO111: 63832800
A112: 80 | B112: =OFFSET(InputPriceData!B$15,CalculationsAndCharts!$A112+$A$11,0,1,1) -> 2017-09-07 | C112: =OFFSET(InputPriceData!G$15,CalculationsAndCharts!$A112+$A$11,IF($C$7,8,0),1,1) -> 58034700 | D112: =OFFSET(InputPriceData!C$15,CalculationsAndCharts!$A112+$A$11,IF($C$7,8,0),1,1) -> 243.8 | E112: =OFFSET(InputPriceData!D$15,CalculationsAndCharts!$A112+$A$11,IF($C$7,8,0),1,1) -> 243.82 | F112: =OFFSET(InputPriceData!E$15,CalculationsAndCharts!$A112+$A$11,IF($C$7,8,0),1,1) -> 242.96 | G112: =OFFSET(InputPriceData!F$15,CalculationsAndCharts!$A112+$A$11,IF($C$7,8,0),1,1) -> 243.43 | H112: 0.8 | I112: 0.6527960686 | J112: 0.597911013 | K112: 1.091794689 | L112: 0.1364743361 | M112: 0.8635256639 | N112: 242.5615101 | AP112: 58034700
A113: 81 | B113: =OFFSET(InputPriceData!B$15,CalculationsAndCharts!$A113+$A$11,0,1,1) -> 2017-09-06 | C113: =OFFSET(InputPriceData!G$15,CalculationsAndCharts!$A113+$A$11,IF($C$7,8,0),1,1) -> 57916900 | D113: =OFFSET(InputPriceData!C$15,CalculationsAndCharts!$A113+$A$11,IF($C$7,8,0),1,1) -> 243.4 | E113: =OFFSET(InputPriceData!D$15,CalculationsAndCharts!$A113+$A$11,IF($C$7,8,0),1,1) -> 243.83 | F113: =OFFSET(InputPriceData!E$15,CalculationsAndCharts!$A113+$A$11,IF($C$7,8,0),1,1) -> 242.8 | G113: =OFFSET(InputPriceData!F$15,CalculationsAndCharts!$A113+$A$11,IF($C$7,8,0),1,1) -> 243.46 | H113: -0.92 | I113: 0.7498395619 | J113: 0.588937739 | K113: 1.273206847 | L113: 0.1591508559 | M113: 0.8408491441 | N113: 242.4242512 | AO113: 57916900
A114: 82 | B114: =OFFSET(InputPriceData!B$15,CalculationsAndCharts!$A114+$A$11,0,1,1) -> 2017-09-05 | C114: =OFFSET(InputPriceData!G$15,CalculationsAndCharts!$A114+$A$11,IF($C$7,8,0),1,1) -> 91398800 | D114: =OFFSET(InputPriceData!C$15,CalculationsAndCharts!$A114+$A$11,IF($C$7,8,0),1,1) -> 243.81 | E114: =OFFSET(InputPriceData!D$15,CalculationsAndCharts!$A114+$A$11,IF($C$7,8,0),1,1) -> 244.07 | F114: =OFFSET(InputPriceData!E$15,CalculationsAndCharts!$A114+$A$11,IF($C$7,8,0),1,1) -> 241.53 | G114: =OFFSET(InputPriceData!F$15,CalculationsAndCharts!$A114+$A$11,IF($C$7,8,0),1,1) -> 242.63 | H114: -1.41 | I114: 0.8013798015 | J114: 0.5773218433 | K114: 1.388098875 | L114: 0.1735123594 | M114: 0.8264876406 | N114: 242.2282109 | AP114: 91398800
A115: 83 | B115: =OFFSET(InputPriceData!B$15,CalculationsAndCharts!$A115+$A$11,0,1,1) -> 2017-09-01 | C115: =OFFSET(InputPriceData!G$15,CalculationsAndCharts!$A115+$A$11,IF($C$7,8,0),1,1) -> 62007000 | D115: =OFFSET(InputPriceData!C$15,CalculationsAndCharts!$A115+$A$11,IF($C$7,8,0),1,1) -> 244.46 | E115: =OFFSET(InputPriceData!D$15,CalculationsAndCharts!$A115+$A$11,IF($C$7,8,0),1,1) -> 244.87 | F115: =OFFSET(InputPriceData!E$15,CalculationsAndCharts!$A115+$A$11,IF($C$7,8,0),1,1) -> 244.22 | G115: =OFFSET(InputPriceData!F$15,CalculationsAndCharts!$A115+$A$11,IF($C$7,8,0),1,1) -> 244.38 | H115: 1.8 | I115: 0.6394750705 | J115: 0.5647646242 | K115: 1.132285988 | L115: 0.1415357485 | M115: 0.8584642515 | N115: 242.1438596 | AP115: 62007000
A116: 84 | B116: =OFFSET(InputPriceData!B$15,CalculationsAndCharts!$A116+$A$11,0,1,1) -> 2017-08-31 | C116: =OFFSET(InputPriceData!G$15,CalculationsAndCharts!$A116+$A$11,IF($C$7,8,0),1,1) -> 103803900 | D116: =OFFSET(InputPriceData!C$15,CalculationsAndCharts!$A116+$A$11,IF($C$7,8,0),1,1) -> 243.28 | E116: =OFFSET(InputPriceData!D$15,CalculationsAndCharts!$A116+$A$11,IF($C$7,8,0),1,1) -> 244.31 | F116: =OFFSET(InputPriceData!E$15,CalculationsAndCharts!$A116+$A$11,IF($C$7,8,0),1,1) -> 242.62 | G116: =OFFSET(InputPriceData!F$15,CalculationsAndCharts!$A116+$A$11,IF($C$7,8,0),1,1) -> 244.04 | H116: 2.61 | I116: 0.3322590358 | J116: 0.557653635 | K116: 0.5958161392 | L116: 0.0744770174 | M116: 0.9255229826 | N116: 241.7751852 | AO116: 103803900
A117: 85 | B117: =OFFSET(InputPriceData!B$15,CalculationsAndCharts!$A117+$A$11,0,1,1) -> 2017-08-30 | C117: =OFFSET(InputPriceData!G$15,CalculationsAndCharts!$A117+$A$11,IF($C$7,8,0),1,1) -> 62030800 | D117: =OFFSET(InputPriceData!C$15,CalculationsAndCharts!$A117+$A$11,IF($C$7,8,0),1,1) -> 241.42 | E117: =OFFSET(InputPriceData!D$15,CalculationsAndCharts!$A117+$A$11,IF($C$7,8,0),1,1) -> 242.88 | F117: =OFFSET(InputPriceData!E$15,CalculationsAndCharts!$A117+$A$11,IF($C$7,8,0),1,1) -> 241.21 | G117: =OFFSET(InputPriceData!F$15,CalculationsAndCharts!$A117+$A$11,IF($C$7,8,0),1,1) -> 242.58 | H117: 1.42 | I117: 0.08395806596 | J117: 0.5565831656 | K117: 0.1508455001 | L117: 0.01885568751 | M117: 0.9811443125 | N117: 241.5929351 | AO117: 62030800
A118: 86 | B118: =OFFSET(InputPriceData!B$15,CalculationsAndCharts!$A118+$A$11,0,1,1) -> 2017-08-29 | C118: =OFFSET(InputPriceData!G$15,CalculationsAndCharts!$A118+$A$11,IF($C$7,8,0),1,1) -> 51135700 | D118: =OFFSET(InputPriceData!C$15,CalculationsAndCharts!$A118+$A$11,IF($C$7,8,0),1,1) -> 239.67 | E118: =OFFSET(InputPriceData!D$15,CalculationsAndCharts!$A118+$A$11,IF($C$7,8,0),1,1) -> 241.73 | F118: =OFFSET(InputPriceData!E$15,CalculationsAndCharts!$A118+$A$11,IF($C$7,8,0),1,1) -> 239.54 | G118: =OFFSET(InputPriceData!F$15,CalculationsAndCharts!$A118+$A$11,IF($C$7,8,0),1,1) -> 241.43 | H118: 0.28 | I118: -0.06529509006 | J118: 0.5582347535 | K118: -0.1169670818 | L118: 0.01462088522 | M118: 0.9853791148 | N118: 241.5739656 | AO118: 51135700
A119: 87 | B119: =OFFSET(InputPriceData!B$15,CalculationsAndCharts!$A119+$A$11,0,1,1) -> 2017-08-28 | C119: =OFFSET(InputPriceData!G$15,CalculationsAndCharts!$A119+$A$11,IF($C$7,8,0),1,1) -> 40565600 | D119: =OFFSET(InputPriceData!C$15,CalculationsAndCharts!$A119+$A$11,IF($C$7,8,0),1,1) -> 241.75 | E119: =OFFSET(InputPriceData!D$15,CalculationsAndCharts!$A119+$A$11,IF($C$7,8,0),1,1) -> 241.78 | F119: =OFFSET(InputPriceData!E$15,CalculationsAndCharts!$A119+$A$11,IF($C$7,8,0),1,1) -> 240.69 | G119: =OFFSET(InputPriceData!F$15,CalculationsAndCharts!$A119+$A$11,IF($C$7,8,0),1,1) -> 241.16 | H119: 0.57 | I119: -0.1852517679 | J119: 0.5607852584 | K119: -0.3303435051 | L119: 0.04129293814 | M119: 0.9587070619 | N119: 241.5761017 | AP119: 40565600
A120: 88 | B120: =OFFSET(InputPriceData!B$15,CalculationsAndCharts!$A120+$A$11,0,1,1) -> 2017-08-25 | C120: =OFFSET(InputPriceData!G$15,CalculationsAndCharts!$A120+$A$11,IF($C$7,8,0),1,1) -> 64445900 | D120: =OFFSET(InputPriceData!C$15,CalculationsAndCharts!$A120+$A$11,IF($C$7,8,0),1,1) -> 241.48 | E120: =OFFSET(InputPriceData!D$15,CalculationsAndCharts!$A120+$A$11,IF($C$7,8,0),1,1) -> 242.18 | F120: =OFFSET(InputPriceData!E$15,CalculationsAndCharts!$A120+$A$11,IF($C$7,8,0),1,1) -> 240.98 | G120: =OFFSET(InputPriceData!F$15,CalculationsAndCharts!$A120+$A$11,IF($C$7,8,0),1,1) -> 241.15 | H120: 0 | I120: -0.2971104061 | J120: 0.5618234135 | K120: -0.5288323679 | L120: 0.06610404598 | M120: 0.933895954 | N120: 241.5940238 | AP120: 64445900
A121: 89 | B121: =OFFSET(InputPriceData!B$15,CalculationsAndCharts!$A121+$A$11,0,1,1) -> 2017-08-24 | C121: =OFFSET(InputPriceData!G$15,CalculationsAndCharts!$A121+$A$11,IF($C$7,8,0),1,1) -> 49730500 | D121: =OFFSET(InputPriceData!C$15,CalculationsAndCharts!$A121+$A$11,IF($C$7,8,0),1,1) -> 241.58 | E121: =OFFSET(InputPriceData!D$15,CalculationsAndCharts!$A121+$A$11,IF($C$7,8,0),1,1) -> 241.76 | F121: =OFFSET(InputPriceData!E$15,CalculationsAndCharts!$A121+$A$11,IF($C$7,8,0),1,1) -> 240.35 | G121: =OFFSET(InputPriceData!F$15,CalculationsAndCharts!$A121+$A$11,IF($C$7,8,0),1,1) -> 240.59 | H121: -1.43 | I121: -0.3998091647 | J121: 0.5608058106 | K121: -0.7129190839 | L121: 0.08911488549 | M121: 0.9108851145 | N121: 241.6254532 | AP121: 49730500
A122: 90 | B122: =OFFSET(InputPriceData!B$15,CalculationsAndCharts!$A122+$A$11,0,1,1) -> 2017-08-23 | C122: =OFFSET(InputPriceData!G$15,CalculationsAndCharts!$A122+$A$11,IF($C$7,8,0),1,1) -> 50203800 | D122: =OFFSET(InputPriceData!C$15,CalculationsAndCharts!$A122+$A$11,IF($C$7,8,0),1,1) -> 240.92 | E122: =OFFSET(InputPriceData!D$15,CalculationsAndCharts!$A122+$A$11,IF($C$7,8,0),1,1) -> 241.63 | F122: =OFFSET(InputPriceData!E$15,CalculationsAndCharts!$A122+$A$11,IF($C$7,8,0),1,1) -> 240.75 | G122: =OFFSET(InputPriceData!F$15,CalculationsAndCharts!$A122+$A$11,IF($C$7,8,0),1,1) -> 241.15 | H122: 1.64 | I122: -0.5987782046 | J122: 0.5578062294 | K122: -1.073451986 | L122: 0.1341814982 | M122: 0.8658185018 | N122: 241.726755 | AO122: 50203800
A123: 91 | B123: =OFFSET(InputPriceData!B$15,CalculationsAndCharts!$A123+$A$11,0,1,1) -> 2017-08-22 | C123: =OFFSET(InputPriceData!G$15,CalculationsAndCharts!$A123+$A$11,IF($C$7,8,0),1,1) -> 63140100 | D123: =OFFSET(InputPriceData!C$15,CalculationsAndCharts!$A123+$A$11,IF($C$7,8,0),1,1) -> 240.17 | E123: =OFFSET(InputPriceData!D$15,CalculationsAndCharts!$A123+$A$11,IF($C$7,8,0),1,1) -> 242.19 | F123: =OFFSET(InputPriceData!E$15,CalculationsAndCharts!$A123+$A$11,IF($C$7,8,0),1,1) -> 240.15 | G123: =OFFSET(InputPriceData!F$15,CalculationsAndCharts!$A123+$A$11,IF($C$7,8,0),1,1) -> 242.02 | H123: 2.7 | I123: -0.8223157917 | J123: 0.5497826353 | K123: -1.495710739 | L123: 0.1869638424 | M123: 0.8130361576 | N123: 241.8161385 | AO123: 63140100
A124: 92 | B124: =OFFSET(InputPriceData!B$15,CalculationsAndCharts!$A124+$A$11,0,1,1) -> 2017-08-21 | C124: =OFFSET(InputPriceData!G$15,CalculationsAndCharts!$A124+$A$11,IF($C$7,8,0),1,1) -> 65469700 | D124: =OFFSET(InputPriceData!C$15,CalculationsAndCharts!$A124+$A$11,IF($C$7,8,0),1,1) -> 239.26 | E124: =OFFSET(InputPriceData!D$15,CalculationsAndCharts!$A124+$A$11,IF($C$7,8,0),1,1) -> 239.81 | F124: =OFFSET(InputPriceData!E$15,CalculationsAndCharts!$A124+$A$11,IF($C$7,8,0),1,1) -> 238.46 | G124: =OFFSET(InputPriceData!F$15,CalculationsAndCharts!$A124+$A$11,IF($C$7,8,0),1,1) -> 239.51 | H124: -0.19 | I124: -0.802200541 | J124: 0.5341937914 | K124: -1.501703228 | L124: 0.1877129035 | M124: 0.8122870965 | N124: 241.769259 | AO124: 65469700
A125: 93 | B125: =OFFSET(InputPriceData!B$15,CalculationsAndCharts!$A125+$A$11,0,1,1) -> 2017-08-18 | C125: =OFFSET(InputPriceData!G$15,CalculationsAndCharts!$A125+$A$11,IF($C$7,8,0),1,1) -> 136748000 | D125: =OFFSET(InputPriceData!C$15,CalculationsAndCharts!$A125+$A$11,IF($C$7,8,0),1,1) -> 239.51 | E125: =OFFSET(InputPriceData!D$15,CalculationsAndCharts!$A125+$A$11,IF($C$7,8,0),1,1) -> 240.78 | F125: =OFFSET(InputPriceData!E$15,CalculationsAndCharts!$A125+$A$11,IF($C$7,8,0),1,1) -> 238.82 | G125: =OFFSET(InputPriceData!F$15,CalculationsAndCharts!$A125+$A$11,IF($C$7,8,0),1,1) -> 239.32 | H125: -4.18 | I125: -0.5173755359 | J125: 0.5189669227 | K125: -0.9969335486 | L125: 0.1246166936 | M125: 0.8753833064 | N125: 242.2913552 | AP125: 136748000
A126: 94 | B126: =OFFSET(InputPriceData!B$15,CalculationsAndCharts!$A126+$A$11,0,1,1) -> 2017-08-17 | C126: =OFFSET(InputPriceData!G$15,CalculationsAndCharts!$A126+$A$11,IF($C$7,8,0),1,1) -> 128490400 | D126: =OFFSET(InputPriceData!C$15,CalculationsAndCharts!$A126+$A$11,IF($C$7,8,0),1,1) -> 242.81 | E126: =OFFSET(InputPriceData!D$15,CalculationsAndCharts!$A126+$A$11,IF($C$7,8,0),1,1) -> 243.16 | F126: =OFFSET(InputPriceData!E$15,CalculationsAndCharts!$A126+$A$11,IF($C$7,8,0),1,1) -> 239.7 | G126: =OFFSET(InputPriceData!F$15,CalculationsAndCharts!$A126+$A$11,IF($C$7,8,0),1,1) -> 239.7 | H126: -3.37 | I126: -0.2787167151 | J126: 0.5128499623 | K126: -0.5434663852 | L126: 0.06793329815 | M126: 0.9320667019 | N126: 242.7143476 | AP126: 128490400
A127: 95 | B127: =OFFSET(InputPriceData!B$15,CalculationsAndCharts!$A127+$A$11,0,1,1) -> 2017-08-16 | C127: =OFFSET(InputPriceData!G$15,CalculationsAndCharts!$A127+$A$11,IF($C$7,8,0),1,1) -> 56715500 | D127: =OFFSET(InputPriceData!C$15,CalculationsAndCharts!$A127+$A$11,IF($C$7,8,0),1,1) -> 243.66 | E127: =OFFSET(InputPriceData!D$15,CalculationsAndCharts!$A127+$A$11,IF($C$7,8,0),1,1) -> 244.12 | F127: =OFFSET(InputPriceData!E$15,CalculationsAndCharts!$A127+$A$11,IF($C$7,8,0),1,1) -> 243.01 | G127: =OFFSET(InputPriceData!F$15,CalculationsAndCharts!$A127+$A$11,IF($C$7,8,0),1,1) -> 243.5 | H127: 0.4 | I127: -0.3373457129 | J127: 0.5122468498 | K127: -0.6585608344 | L127: 0.0823201043 | M127: 0.9176798957 | N127: 242.9340471 | AP127: 56715500
A128: 96 | B128: =OFFSET(InputPriceData!B$15,CalculationsAndCharts!$A128+$A$11,0,1,1) -> 2017-08-15 | C128: =OFFSET(InputPriceData!G$15,CalculationsAndCharts!$A128+$A$11,IF($C$7,8,0),1,1) -> 55242700 | D128: =OFFSET(InputPriceData!C$15,CalculationsAndCharts!$A128+$A$11,IF($C$7,8,0),1,1) -> 243.54 | E128: =OFFSET(InputPriceData!D$15,CalculationsAndCharts!$A128+$A$11,IF($C$7,8,0),1,1) -> 243.55 | F128: =OFFSET(InputPriceData!E$15,CalculationsAndCharts!$A128+$A$11,IF($C$7,8,0),1,1) -> 242.73 | G128: =OFFSET(InputPriceData!F$15,CalculationsAndCharts!$A128+$A$11,IF($C$7,8,0),1,1) -> 243.07 | H128: 2.35 | I128: -0.5701625207 | J128: 0.5110385849 | K128: -1.115693683 | L128: 0.1394617103 | M128: 0.8605382897 | N128: 242.8832785 | AP128: 55242700
A129: 97 | B129: =OFFSET(InputPriceData!B$15,CalculationsAndCharts!$A129+$A$11,0,1,1) -> 2017-08-14 | C129: =OFFSET(InputPriceData!G$15,CalculationsAndCharts!$A129+$A$11,IF($C$7,8,0),1,1) -> 72139000 | D129: =OFFSET(InputPriceData!C$15,CalculationsAndCharts!$A129+$A$11,IF($C$7,8,0),1,1) -> 242.16 | E129: =OFFSET(InputPriceData!D$15,CalculationsAndCharts!$A129+$A$11,IF($C$7,8,0),1,1) -> 243.35 | F129: =OFFSET(InputPriceData!E$15,CalculationsAndCharts!$A129+$A$11,IF($C$7,8,0),1,1) -> 242.13 | G129: =OFFSET(InputPriceData!F$15,CalculationsAndCharts!$A129+$A$11,IF($C$7,8,0),1,1) -> 243.1 | H129: 2.74 | I129: -0.6935318701 | J129: 0.5038038399 | K129: -1.376591076 | L129: 0.1720738845 | M129: 0.8279261155 | N129: 242.8530178 | AO129: 72139000
A130: 98 | B130: =OFFSET(InputPriceData!B$15,CalculationsAndCharts!$A130+$A$11,0,1,1) -> 2017-08-11 | C130: =OFFSET(InputPriceData!G$15,CalculationsAndCharts!$A130+$A$11,IF($C$7,8,0),1,1) -> 74869900 | D130: =OFFSET(InputPriceData!C$15,CalculationsAndCharts!$A130+$A$11,IF($C$7,8,0),1,1) -> 240.62 | E130: =OFFSET(InputPriceData!D$15,CalculationsAndCharts!$A130+$A$11,IF($C$7,8,0),1,1) -> 241.39 | F130: =OFFSET(InputPriceData!E$15,CalculationsAndCharts!$A130+$A$11,IF($C$7,8,0),1,1) -> 240.35 | G130: =OFFSET(InputPriceData!F$15,CalculationsAndCharts!$A130+$A$11,IF($C$7,8,0),1,1) -> 240.72 | H130: -3.08 | I130: -0.4868914727 | J130: 0.4925907125 | K130: -0.9884300706 | L130: 0.1235537588 | M130: 0.8764462412 | N130: 242.8016857 | AO130: 74869900
A131: 99 | B131: =OFFSET(InputPriceData!B$15,CalculationsAndCharts!$A131+$A$11,0,1,1) -> 2017-08-10 | C131: =OFFSET(InputPriceData!G$15,CalculationsAndCharts!$A131+$A$11,IF($C$7,8,0),1,1) -> 120479500 | D131: =OFFSET(InputPriceData!C$15,CalculationsAndCharts!$A131+$A$11,IF($C$7,8,0),1,1) -> 242.85 | E131: =OFFSET(InputPriceData!D$15,CalculationsAndCharts!$A131+$A$11,IF($C$7,8,0),1,1) -> 243 | F131: =OFFSET(InputPriceData!E$15,CalculationsAndCharts!$A131+$A$11,IF($C$7,8,0),1,1) -> 240.3 | G131: =OFFSET(InputPriceData!F$15,CalculationsAndCharts!$A131+$A$11,IF($C$7,8,0),1,1) -> 240.36 | H131: -3.45 | I131: -0.1256393282 | J131: 0.4884775288 | K131: -0.2572059528 | L131: 0.0321507441 | M131: 0.9678492559 | N131: 243.0951436 | AP131: 120479500
A132: 100 | B132: =OFFSET(InputPriceData!B$15,CalculationsAndCharts!$A132+$A$11,0,1,1) -> 2017-08-09 | C132: =OFFSET(InputPriceData!G$15,CalculationsAndCharts!$A132+$A$11,IF($C$7,8,0),1,1) -> 62632600 | D132: =OFFSET(InputPriceData!C$15,CalculationsAndCharts!$A132+$A$11,IF($C$7,8,0),1,1) -> 243.03 | E132: =OFFSET(InputPriceData!D$15,CalculationsAndCharts!$A132+$A$11,IF($C$7,8,0),1,1) -> 243.86 | F132: =OFFSET(InputPriceData!E$15,CalculationsAndCharts!$A132+$A$11,IF($C$7,8,0),1,1) -> 242.63 | G132: =OFFSET(InputPriceData!F$15,CalculationsAndCharts!$A132+$A$11,IF($C$7,8,0),1,1) -> 243.8 | H132: -0.61 | I132: 0.05086342 | J132: 0.4905301863 | K132: 0.1036907033 | L132: 0.01296133791 | M132: 0.9870386621 | N132: 243.1860017 | AO132: 62632600
A133: 101 | B133: =OFFSET(InputPriceData!B$15,CalculationsAndCharts!$A133+$A$11,0,1,1) -> 2017-08-08 | C133: =OFFSET(InputPriceData!G$15,CalculationsAndCharts!$A133+$A$11,IF($C$7,8,0),1,1) -> 61719400 | D133: =OFFSET(InputPriceData!C$15,CalculationsAndCharts!$A133+$A$11,IF($C$7,8,0),1,1) -> 244.06 | E133: =OFFSET(InputPriceData!D$15,CalculationsAndCharts!$A133+$A$11,IF($C$7,8,0),1,1) -> 245.44 | F133: =OFFSET(InputPriceData!E$15,CalculationsAndCharts!$A133+$A$11,IF($C$7,8,0),1,1) -> 243.39 | G133: =OFFSET(InputPriceData!F$15,CalculationsAndCharts!$A133+$A$11,IF($C$7,8,0),1,1) -> 243.81 | H133: -0.15 | I133: 0.06970448841 | J133: 0.4932674327 | K133: 0.1413117587 | L133: 0.01766396983 | M133: 0.9823360302 | N133: 243.177939 | AP133: 61719400
A134: 102 | B134: =OFFSET(InputPriceData!B$15,CalculationsAndCharts!$A134+$A$11,0,1,1) -> 2017-08-07 | C134: =OFFSET(InputPriceData!G$15,CalculationsAndCharts!$A134+$A$11,IF($C$7,8,0),1,1) -> 31995000 | D134: =OFFSET(InputPriceData!C$15,CalculationsAndCharts!$A134+$A$11,IF($C$7,8,0),1,1) -> 244.04 | E134: =OFFSET(InputPriceData!D$15,CalculationsAndCharts!$A134+$A$11,IF($C$7,8,0),1,1) -> 244.41 | F134: =OFFSET(InputPriceData!E$15,CalculationsAndCharts!$A134+$A$11,IF($C$7,8,0),1,1) -> 243.92 | G134: =OFFSET(InputPriceData!F$15,CalculationsAndCharts!$A134+$A$11,IF($C$7,8,0),1,1) -> 244.41 | H134: 0.89 | I134: 0.04367652293 | J134: 0.4981942693 | K134: 0.08766966144 | L134: 0.01095870768 | M134: 0.9890412923 | N134: 243.1665735 | AO134: 31995000
A135: 103 | B135: =OFFSET(InputPriceData!B$15,CalculationsAndCharts!$A135+$A$11,0,1,1) -> 2017-08-04 | C135: =OFFSET(InputPriceData!G$15,CalculationsAndCharts!$A135+$A$11,IF($C$7,8,0),1,1) -> 60191800 | D135: =OFFSET(InputPriceData!C$15,CalculationsAndCharts!$A135+$A$11,IF($C$7,8,0),1,1) -> 244.07 | E135: =OFFSET(InputPriceData!D$15,CalculationsAndCharts!$A135+$A$11,IF($C$7,8,0),1,1) -> 244.33 | F135: =OFFSET(InputPriceData!E$15,CalculationsAndCharts!$A135+$A$11,IF($C$7,8,0),1,1) -> 243.53 | G135: =OFFSET(InputPriceData!F$15,CalculationsAndCharts!$A135+$A$11,IF($C$7,8,0),1,1) -> 243.96 | H135: -0.03 | I135: 0.04329683907 | J135: 0.5075786779 | K135: 0.08530074439 | L135: 0.01066259305 | M135: 0.989337407 | N135: 243.1527962 | AP135: 60191800
A136: 104 | B136: =OFFSET(InputPriceData!B$15,CalculationsAndCharts!$A136+$A$11,0,1,1) -> 2017-08-03 | C136: =OFFSET(InputPriceData!G$15,CalculationsAndCharts!$A136+$A$11,IF($C$7,8,0),1,1) -> 40856000 | D136: =OFFSET(InputPriceData!C$15,CalculationsAndCharts!$A136+$A$11,IF($C$7,8,0),1,1) -> 243.86 | E136: =OFFSET(InputPriceData!D$15,CalculationsAndCharts!$A136+$A$11,IF($C$7,8,0),1,1) -> 243.89 | F136: =OFFSET(InputPriceData!E$15,CalculationsAndCharts!$A136+$A$11,IF($C$7,8,0),1,1) -> 243.2 | G136: =OFFSET(InputPriceData!F$15,CalculationsAndCharts!$A136+$A$11,IF($C$7,8,0),1,1) -> 243.52 | H136: -0.35 | I136: 0.09034902346 | J136: 0.5216439982 | K136: 0.1732005425 | L136: 0.02165006781 | M136: 0.9783499322 | N136: 243.1440965 | AP136: 40856000
A137: 105 | B137: =OFFSET(InputPriceData!B$15,CalculationsAndCharts!$A137+$A$11,0,1,1) -> 2017-08-02 | C137: =OFFSET(InputPriceData!G$15,CalculationsAndCharts!$A137+$A$11,IF($C$7,8,0),1,1) -> 47211200 | D137: =OFFSET(InputPriceData!C$15,CalculationsAndCharts!$A137+$A$11,IF($C$7,8,0),1,1) -> 244.02 | E137: =OFFSET(InputPriceData!D$15,CalculationsAndCharts!$A137+$A$11,IF($C$7,8,0),1,1) -> 244.15 | F137: =OFFSET(InputPriceData!E$15,CalculationsAndCharts!$A137+$A$11,IF($C$7,8,0),1,1) -> 242.93 | G137: =OFFSET(InputPriceData!F$15,CalculationsAndCharts!$A137+$A$11,IF($C$7,8,0),1,1) -> 243.99 | H137: 0.66 | I137: 0.129175578 | J137: 0.5411599254 | K137: 0.2387013005 | L137: 0.02983766256 | M137: 0.9701623374 | N137: 243.1357781 | AP137: 47211200
A138: 106 | B138: =OFFSET(InputPriceData!B$15,CalculationsAndCharts!$A138+$A$11,0,1,1) -> 2017-08-01 | C138: =OFFSET(InputPriceData!G$15,CalculationsAndCharts!$A138+$A$11,IF($C$7,8,0),1,1) -> 55050400 | D138: =OFFSET(InputPriceData!C$15,CalculationsAndCharts!$A138+$A$11,IF($C$7,8,0),1,1) -> 244.01 | E138: =OFFSET(InputPriceData!D$15,CalculationsAndCharts!$A138+$A$11,IF($C$7,8,0),1,1) -> 244.05 | F138: =OFFSET(InputPriceData!E$15,CalculationsAndCharts!$A138+$A$11,IF($C$7,8,0),1,1) -> 243.28 | G138: =OFFSET(InputPriceData!F$15,CalculationsAndCharts!$A138+$A$11,IF($C$7,8,0),1,1) -> 243.87 | H138: 0.4 | I138: 0.1928985732 | J138: 0.5659701372 | K138: 0.3408281824 | L138: 0.0426035228 | M138: 0.9573964772 | N138: 243.1095062 | AP138: 55050400
A139: 107 | B139: =OFFSET(InputPriceData!B$15,CalculationsAndCharts!$A139+$A$11,0,1,1) -> 2017-07-31 | C139: =OFFSET(InputPriceData!G$15,CalculationsAndCharts!$A139+$A$11,IF($C$7,8,0),1,1) -> 65838700 | D139: =OFFSET(InputPriceData!C$15,CalculationsAndCharts!$A139+$A$11,IF($C$7,8,0),1,1) -> 243.92 | E139: =OFFSET(InputPriceData!D$15,CalculationsAndCharts!$A139+$A$11,IF($C$7,8,0),1,1) -> 244.03 | F139: =OFFSET(InputPriceData!E$15,CalculationsAndCharts!$A139+$A$11,IF($C$7,8,0),1,1) -> 243.09 | G139: =OFFSET(InputPriceData!F$15,CalculationsAndCharts!$A139+$A$11,IF($C$7,8,0),1,1) -> 243.33 | H139: -0.42 | I139: 0.3337932084 | J139: 0.5898061577 | K139: 0.5659371372 | L139: 0.07074214215 | M139: 0.9292578579 | N139: 243.0756647 | AP139: 65838700
A140: 108 | B140: =OFFSET(InputPriceData!B$15,CalculationsAndCharts!$A140+$A$11,0,1,1) -> 2017-07-28 | C140: =OFFSET(InputPriceData!G$15,CalculationsAndCharts!$A140+$A$11,IF($C$7,8,0),1,1) -> 50088400 | D140: =OFFSET(InputPriceData!C$15,CalculationsAndCharts!$A140+$A$11,IF($C$7,8,0),1,1) -> 243.21 | E140: =OFFSET(InputPriceData!D$15,CalculationsAndCharts!$A140+$A$11,IF($C$7,8,0),1,1) -> 243.61 | F140: =OFFSET(InputPriceData!E$15,CalculationsAndCharts!$A140+$A$11,IF($C$7,8,0),1,1) -> 242.7 | G140: =OFFSET(InputPriceData!F$15,CalculationsAndCharts!$A140+$A$11,IF($C$7,8,0),1,1) -> 243.47 | H140: -0.51 | I140: 0.5111292143 | J140: 0.6056775626 | K140: 0.8438965645 | L140: 0.1054870706 | M140: 0.8945129294 | N140: 243.0563028 | AO140: 50088400
A141: 109 | B141: =OFFSET(InputPriceData!B$15,CalculationsAndCharts!$A141+$A$11,0,1,1) -> 2017-07-27 | C141: =OFFSET(InputPriceData!G$15,CalculationsAndCharts!$A141+$A$11,IF($C$7,8,0),1,1) -> 70766600 | D141: =OFFSET(InputPriceData!C$15,CalculationsAndCharts!$A141+$A$11,IF($C$7,8,0),1,1) -> 244.5 | E141: =OFFSET(InputPriceData!D$15,CalculationsAndCharts!$A141+$A$11,IF($C$7,8,0),1,1) -> 244.54 | F141: =OFFSET(InputPriceData!E$15,CalculationsAndCharts!$A141+$A$11,IF($C$7,8,0),1,1) -> 242.25 | G141: =OFFSET(InputPriceData!F$15,CalculationsAndCharts!$A141+$A$11,IF($C$7,8,0),1,1) -> 243.75 | H141: -0.22 | I141: 0.667379632 | J141: 0.6138301592 | K141: 1.087238256 | L141: 0.135904782 | M141: 0.864095218 | N141: 243.0075168 | AP141: 70766600
A142: 110 | B142: =OFFSET(InputPriceData!B$15,CalculationsAndCharts!$A142+$A$11,0,1,1) -> 2017-07-26 | C142: =OFFSET(InputPriceData!G$15,CalculationsAndCharts!$A142+$A$11,IF($C$7,8,0),1,1) -> 47575400 | D142: =OFFSET(InputPriceData!C$15,CalculationsAndCharts!$A142+$A$11,IF($C$7,8,0),1,1) -> 244.29 | E142: =OFFSET(InputPriceData!D$15,CalculationsAndCharts!$A142+$A$11,IF($C$7,8,0),1,1) -> 244.33 | F142: =OFFSET(InputPriceData!E$15,CalculationsAndCharts!$A142+$A$11,IF($C$7,8,0),1,1) -> 243.68 | G142: =OFFSET(InputPriceData!F$15,CalculationsAndCharts!$A142+$A$11,IF($C$7,8,0),1,1) -> 243.98 | H142: 0.6 | I142: 0.7838214254 | J142: 0.6177798313 | K142: 1.268771471 | L142: 0.1585964339 | M142: 0.8414035661 | N142: 242.8907391 | AP142: 47575400
A143: 111 | B143: =OFFSET(InputPriceData!B$15,CalculationsAndCharts!$A143+$A$11,0,1,1) -> 2017-07-25 | C143: =OFFSET(InputPriceData!G$15,CalculationsAndCharts!$A143+$A$11,IF($C$7,8,0),1,1) -> 54915600 | D143: =OFFSET(InputPriceData!C$15,CalculationsAndCharts!$A143+$A$11,IF($C$7,8,0),1,1) -> 244.23 | E143: =OFFSET(InputPriceData!D$15,CalculationsAndCharts!$A143+$A$11,IF($C$7,8,0),1,1) -> 244.34 | F143: =OFFSET(InputPriceData!E$15,CalculationsAndCharts!$A143+$A$11,IF($C$7,8,0),1,1) -> 243.71 | G143: =OFFSET(InputPriceData!F$15,CalculationsAndCharts!$A143+$A$11,IF($C$7,8,0),1,1) -> 243.97 | H143: 0.53 | I143: 0.8922237126 | J143: 0.6176328177 | K143: 1.444585986 | L143: 0.1805732482 | M143: 0.8194267518 | N143: 242.685424 | AP143: 54915600
A144: 112 | B144: =OFFSET(InputPriceData!B$15,CalculationsAndCharts!$A144+$A$11,0,1,1) -> 2017-07-24 | C144: =OFFSET(InputPriceData!G$15,CalculationsAndCharts!$A144+$A$11,IF($C$7,8,0),1,1) -> 46622300 | D144: =OFFSET(InputPriceData!C$15,CalculationsAndCharts!$A144+$A$11,IF($C$7,8,0),1,1) -> 243.35 | E144: =OFFSET(InputPriceData!D$15,CalculationsAndCharts!$A144+$A$11,IF($C$7,8,0),1,1) -> 243.54 | F144: =OFFSET(InputPriceData!E$15,CalculationsAndCharts!$A144+$A$11,IF($C$7,8,0),1,1) -> 242.84 | G144: =OFFSET(InputPriceData!F$15,CalculationsAndCharts!$A144+$A$11,IF($C$7,8,0),1,1) -> 243.38 | H144: -0.27 | I144: 1.020936684 | J144: 0.609226785 | K144: 1.67579087 | L144: 0.2094738587 | M144: 0.7905261413 | N144: 242.402348 | AO144: 46622300
A145: 113 | B145: =OFFSET(InputPriceData!B$15,CalculationsAndCharts!$A145+$A$11,0,1,1) -> 2017-07-21 | C145: =OFFSET(InputPriceData!G$15,CalculationsAndCharts!$A145+$A$11,IF($C$7,8,0),1,1) -> 82340800 | D145: =OFFSET(InputPriceData!C$15,CalculationsAndCharts!$A145+$A$11,IF($C$7,8,0),1,1) -> 243 | E145: =OFFSET(InputPriceData!D$15,CalculationsAndCharts!$A145+$A$11,IF($C$7,8,0),1,1) -> 243.47 | F145: =OFFSET(InputPriceData!E$15,CalculationsAndCharts!$A145+$A$11,IF($C$7,8,0),1,1) -> 242.75 | G145: =OFFSET(InputPriceData!F$15,CalculationsAndCharts!$A145+$A$11,IF($C$7,8,0),1,1) -> 243.44 | H145: -0.11 | I145: 1.111866676 | J145: 0.5899768835 | K145: 1.884593628 | L145: 0.2355742036 | M145: 0.7644257964 | N145: 242.1432895 | AO145: 82340800
A146: 114 | B146: =OFFSET(InputPriceData!B$15,CalculationsAndCharts!$A146+$A$11,0,1,1) -> 2017-07-20 | C146: =OFFSET(InputPriceData!G$15,CalculationsAndCharts!$A146+$A$11,IF($C$7,8,0),1,1) -> 47135200 | D146: =OFFSET(InputPriceData!C$15,CalculationsAndCharts!$A146+$A$11,IF($C$7,8,0),1,1) -> 243.83 | E146: =OFFSET(InputPriceData!D$15,CalculationsAndCharts!$A146+$A$11,IF($C$7,8,0),1,1) -> 243.97 | F146: =OFFSET(InputPriceData!E$15,CalculationsAndCharts!$A146+$A$11,IF($C$7,8,0),1,1) -> 243.03 | G146: =OFFSET(InputPriceData!F$15,CalculationsAndCharts!$A146+$A$11,IF($C$7,8,0),1,1) -> 243.65 | H146: 1.42 | I146: 1.09325351 | J146: 0.5632192763 | K146: 1.941079711 | L146: 0.2426349638 | M146: 0.7573650362 | N146: 241.7436803 | AO146: =IF(G146>=D146,C146,NA()) ->  | AP146: =IF(G146<D146,C146,NA()) -> 47135200
A147: 115 | B147: =OFFSET(InputPriceData!B$15,CalculationsAndCharts!$A147+$A$11,0,1,1) -> 2017-07-19 | C147: =OFFSET(InputPriceData!G$15,CalculationsAndCharts!$A147+$A$11,IF($C$7,8,0),1,1) -> 51034300 | D147: =OFFSET(InputPriceData!C$15,CalculationsAndCharts!$A147+$A$11,IF($C$7,8,0),1,1) -> 242.59 | E147: =OFFSET(InputPriceData!D$15,CalculationsAndCharts!$A147+$A$11,IF($C$7,8,0),1,1) -> 243.55 | F147: =OFFSET(InputPriceData!E$15,CalculationsAndCharts!$A147+$A$11,IF($C$7,8,0),1,1) -> 242.58 | G147: =OFFSET(InputPriceData!F$15,CalculationsAndCharts!$A147+$A$11,IF($C$7,8,0),1,1) -> 243.55 | H147: 1.44 | I147: 1.010234933 | J147: 0.5376114791 | K147: 1.879117117 | L147: 0.2348896396 | M147: 0.7651103604 | N147: 241.1329579 | AO147: 51034300
A148: 116 | B148: =OFFSET(InputPriceData!B$15,CalculationsAndCharts!$A148+$A$11,0,1,1) -> 2017-07-18 | C148: =OFFSET(InputPriceData!G$15,CalculationsAndCharts!$A148+$A$11,IF($C$7,8,0),1,1) -> 42742500 | D148: =OFFSET(InputPriceData!C$15,CalculationsAndCharts!$A148+$A$11,IF($C$7,8,0),1,1) -> 241.64 | E148: =OFFSET(InputPriceData!D$15,CalculationsAndCharts!$A148+$A$11,IF($C$7,8,0),1,1) -> 242.29 | F148: =OFFSET(InputPriceData!E$15,CalculationsAndCharts!$A148+$A$11,IF($C$7,8,0),1,1) -> 241.26 | G148: =OFFSET(InputPriceData!F$15,CalculationsAndCharts!$A148+$A$11,IF($C$7,8,0),1,1) -> 242.23 | H148: 0.1 | I148: 0.9325038062 | J148: 0.5201828119 | K148: 1.792646325 | L148: 0.2240807907 | M148: 0.7759192093 | N148: 240.3909236 | AO148: 42742500
A149: 117 | B149: =OFFSET(InputPriceData!B$15,CalculationsAndCharts!$A149+$A$11,0,1,1) -> 2017-07-17 | C149: =OFFSET(InputPriceData!G$15,CalculationsAndCharts!$A149+$A$11,IF($C$7,8,0),1,1) -> 33531900 | D149: =OFFSET(InputPriceData!C$15,CalculationsAndCharts!$A149+$A$11,IF($C$7,8,0),1,1) -> 242.05 | E149: =OFFSET(InputPriceData!D$15,CalculationsAndCharts!$A149+$A$11,IF($C$7,8,0),1,1) -> 242.48 | F149: =OFFSET(InputPriceData!E$15,CalculationsAndCharts!$A149+$A$11,IF($C$7,8,0),1,1) -> 241.91 | G149: =OFFSET(InputPriceData!F$15,CalculationsAndCharts!$A149+$A$11,IF($C$7,8,0),1,1) -> 242.11 | H149: 1.1 | I149: 0.7912781497 | J149: 0.5083831775 | K149: 1.556460136 | L149: 0.194557517 | M149: 0.805442483 | N149: 239.8598094 | AO149: 33531900
A150: 118 | B150: =OFFSET(InputPriceData!B$15,CalculationsAndCharts!$A150+$A$11,0,1,1) -> 2017-07-14 | C150: =OFFSET(InputPriceData!G$15,CalculationsAndCharts!$A150+$A$11,IF($C$7,8,0),1,1) -> 60262700 | D150: =OFFSET(InputPriceData!C$15,CalculationsAndCharts!$A150+$A$11,IF($C$7,8,0),1,1) -> 241.01 | E150: =OFFSET(InputPriceData!D$15,CalculationsAndCharts!$A150+$A$11,IF($C$7,8,0),1,1) -> 242.54 | F150: =OFFSET(InputPriceData!E$15,CalculationsAndCharts!$A150+$A$11,IF($C$7,8,0),1,1) -> 240.9 | G150: =OFFSET(InputPriceData!F$15,CalculationsAndCharts!$A150+$A$11,IF($C$7,8,0),1,1) -> 242.13 | H150: 1.52 | I150: 0.5475018973 | J150: 0.4960757742 | K150: 1.103665863 | L150: 0.1379582328 | M150: 0.8620417672 | N150: 239.3162678 | AO150: 60262700
A151: 119 | B151: =OFFSET(InputPriceData!B$15,CalculationsAndCharts!$A151+$A$11,0,1,1) -> 2017-07-13 | C151: =OFFSET(InputPriceData!G$15,CalculationsAndCharts!$A151+$A$11,IF($C$7,8,0),1,1) -> 39471600 | D151: =OFFSET(InputPriceData!C$15,CalculationsAndCharts!$A151+$A$11,IF($C$7,8,0),1,1) -> 240.62 | E151: =OFFSET(InputPriceData!D$15,CalculationsAndCharts!$A151+$A$11,IF($C$7,8,0),1,1) -> 241.14 | F151: =OFFSET(InputPriceData!E$15,CalculationsAndCharts!$A151+$A$11,IF($C$7,8,0),1,1) -> 240.36 | G151: =OFFSET(InputPriceData!F$15,CalculationsAndCharts!$A151+$A$11,IF($C$7,8,0),1,1) -> 241.01 | H151: 2.2 | I151: 0.2613322077 | J151: 0.4884924453 | K151: 0.5349769689 | L151: 0.06687212111 | M151: 0.9331278789 | N151: 238.8659676 | AO151: 39471600
A152: 120 | B152: =OFFSET(InputPriceData!B$15,CalculationsAndCharts!$A152+$A$11,0,1,1) -> 2017-07-12 | C152: =OFFSET(InputPriceData!G$15,CalculationsAndCharts!$A152+$A$11,IF($C$7,8,0),1,1) -> 59610400 | D152: =OFFSET(InputPriceData!C$15,CalculationsAndCharts!$A152+$A$11,IF($C$7,8,0),1,1) -> 239.91 | E152: =OFFSET(InputPriceData!D$15,CalculationsAndCharts!$A152+$A$11,IF($C$7,8,0),1,1) -> 240.79 | F152: =OFFSET(InputPriceData!E$15,CalculationsAndCharts!$A152+$A$11,IF($C$7,8,0),1,1) -> 239.91 | G152: =OFFSET(InputPriceData!F$15,CalculationsAndCharts!$A152+$A$11,IF($C$7,8,0),1,1) -> 240.61 | H152: 1.62 | I152: 0.01208076682 | J152: 0.4875318352 | K152: 0.02477944197 | L152: 0.003097430246 | M152: 0.9969025698 | N152: 238.7123167 | AO152: 59610400
A153: 121 | B153: =OFFSET(InputPriceData!B$15,CalculationsAndCharts!$A153+$A$11,0,1,1) -> 2017-07-11 | C153: =OFFSET(InputPriceData!G$15,CalculationsAndCharts!$A153+$A$11,IF($C$7,8,0),1,1) -> 50354600 | D153: =OFFSET(InputPriceData!C$15,CalculationsAndCharts!$A153+$A$11,IF($C$7,8,0),1,1) -> 238.99 | E153: =OFFSET(InputPriceData!D$15,CalculationsAndCharts!$A153+$A$11,IF($C$7,8,0),1,1) -> 239.17 | F153: =OFFSET(InputPriceData!E$15,CalculationsAndCharts!$A153+$A$11,IF($C$7,8,0),1,1) -> 237.49 | G153: =OFFSET(InputPriceData!F$15,CalculationsAndCharts!$A153+$A$11,IF($C$7,8,0),1,1) -> 238.81 | H153: 0.08 | I153: -0.1427353558 | J153: 0.488278003 | K153: -0.2923239527 | L153: 0.03654049409 | M153: 0.9634595059 | N153: 238.7064205 | AP153: 50354600
A154: 122 | B154: =OFFSET(InputPriceData!B$15,CalculationsAndCharts!$A154+$A$11,0,1,1) -> 2017-07-10 | C154: =OFFSET(InputPriceData!G$15,CalculationsAndCharts!$A154+$A$11,IF($C$7,8,0),1,1) -> 36663300 | D154: =OFFSET(InputPriceData!C$15,CalculationsAndCharts!$A154+$A$11,IF($C$7,8,0),1,1) -> 238.73 | E154: =OFFSET(InputPriceData!D$15,CalculationsAndCharts!$A154+$A$11,IF($C$7,8,0),1,1) -> 239.41 | F154: =OFFSET(InputPriceData!E$15,CalculationsAndCharts!$A154+$A$11,IF($C$7,8,0),1,1) -> 238.39 | G154: =OFFSET(InputPriceData!F$15,CalculationsAndCharts!$A154+$A$11,IF($C$7,8,0),1,1) -> 238.99 | H154: 1.8 | I154: -0.2618251086 | J154: 0.4895544416 | K154: -0.5348232727 | L154: 0.06685290908 | M154: 0.9331470909 | N154: 238.7024921 | AO154: 36663300
A155: 123 | B155: =OFFSET(InputPriceData!B$15,CalculationsAndCharts!$A155+$A$11,0,1,1) -> 2017-07-07 | C155: =OFFSET(InputPriceData!G$15,CalculationsAndCharts!$A155+$A$11,IF($C$7,8,0),1,1) -> 57972300 | D155: =OFFSET(InputPriceData!C$15,CalculationsAndCharts!$A155+$A$11,IF($C$7,8,0),1,1) -> 237.85 | E155: =OFFSET(InputPriceData!D$15,CalculationsAndCharts!$A155+$A$11,IF($C$7,8,0),1,1) -> 238.9 | F155: =OFFSET(InputPriceData!E$15,CalculationsAndCharts!$A155+$A$11,IF($C$7,8,0),1,1) -> 237.2 | G155: =OFFSET(InputPriceData!F$15,CalculationsAndCharts!$A155+$A$11,IF($C$7,8,0),1,1) -> 238.73 | H155: -0.65 | I155: -0.2994464861 | J155: 0.4914942287 | K155: -0.60925738 | L155: 0.0761571725 | M155: 0.9238428275 | N155: 238.6818943 | AO155: 57972300
A156: 124 | B156: =OFFSET(InputPriceData!B$15,CalculationsAndCharts!$A156+$A$11,0,1,1) -> 2017-07-06 | C156: =OFFSET(InputPriceData!G$15,CalculationsAndCharts!$A156+$A$11,IF($C$7,8,0),1,1) -> 65400800 | D156: =OFFSET(InputPriceData!C$15,CalculationsAndCharts!$A156+$A$11,IF($C$7,8,0),1,1) -> 238.52 | E156: =OFFSET(InputPriceData!D$15,CalculationsAndCharts!$A156+$A$11,IF($C$7,8,0),1,1) -> 238.65 | F156: =OFFSET(InputPriceData!E$15,CalculationsAndCharts!$A156+$A$11,IF($C$7,8,0),1,1) -> 236.99 | G156: =OFFSET(InputPriceData!F$15,CalculationsAndCharts!$A156+$A$11,IF($C$7,8,0),1,1) -> 237.19 | H156: -1.64 | I156: -0.2503713475 | J156: 0.4944898414 | K156: -0.50632253 | L156: 0.06329031625 | M156: 0.9367096838 | N156: 238.6779287 | AP156: 65400800
A157: 125 | B157: =OFFSET(InputPriceData!B$15,CalculationsAndCharts!$A157+$A$11,0,1,1) -> 2017-07-05 | C157: =OFFSET(InputPriceData!G$15,CalculationsAndCharts!$A157+$A$11,IF($C$7,8,0),1,1) -> 54427600 | D157: =OFFSET(InputPriceData!C$15,CalculationsAndCharts!$A157+$A$11,IF($C$7,8,0),1,1) -> 239.25 | E157: =OFFSET(InputPriceData!D$15,CalculationsAndCharts!$A157+$A$11,IF($C$7,8,0),1,1) -> 239.62 | F157: =OFFSET(InputPriceData!E$15,CalculationsAndCharts!$A157+$A$11,IF($C$7,8,0),1,1) -> 238.33 | G157: =OFFSET(InputPriceData!F$15,CalculationsAndCharts!$A157+$A$11,IF($C$7,8,0),1,1) -> 239.38 | H157: 0.95 | I157: -0.2840734928 | J157: 0.4999039371 | K157: -0.5682561622 | L157: 0.07103202027 | M157: 0.9289679797 | N157: 238.778463 | AO157: 54427600
A158: 126 | B158: =OFFSET(InputPriceData!B$15,CalculationsAndCharts!$A158+$A$11,0,1,1) -> 2017-07-03 | C158: =OFFSET(InputPriceData!G$15,CalculationsAndCharts!$A158+$A$11,IF($C$7,8,0),1,1) -> 39153800 | D158: =OFFSET(InputPriceData!C$15,CalculationsAndCharts!$A158+$A$11,IF($C$7,8,0),1,1) -> 239.49 | E158: =OFFSET(InputPriceData!D$15,CalculationsAndCharts!$A158+$A$11,IF($C$7,8,0),1,1) -> 239.99 | F158: =OFFSET(InputPriceData!E$15,CalculationsAndCharts!$A158+$A$11,IF($C$7,8,0),1,1) -> 238.83 | G158: =OFFSET(InputPriceData!F$15,CalculationsAndCharts!$A158+$A$11,IF($C$7,8,0),1,1) -> 238.83 | H158: 0.85 | I158: -0.3441309194 | J158: 0.505990705 | K158: -0.6801131247 | L158: 0.08501414059 | M158: 0.9149858594 | N158: 238.7324675 | AP158: 39153800
A159: 127 | B159: =OFFSET(InputPriceData!B$15,CalculationsAndCharts!$A159+$A$11,0,1,1) -> 2017-06-30 | C159: =OFFSET(InputPriceData!G$15,CalculationsAndCharts!$A159+$A$11,IF($C$7,8,0),1,1) -> 86820700 | D159: =OFFSET(InputPriceData!C$15,CalculationsAndCharts!$A159+$A$11,IF($C$7,8,0),1,1) -> 238.9 | E159: =OFFSET(InputPriceData!D$15,CalculationsAndCharts!$A159+$A$11,IF($C$7,8,0),1,1) -> 239.32 | F159: =OFFSET(InputPriceData!E$15,CalculationsAndCharts!$A159+$A$11,IF($C$7,8,0),1,1) -> 238.21 | G159: =OFFSET(InputPriceData!F$15,CalculationsAndCharts!$A159+$A$11,IF($C$7,8,0),1,1) -> 238.43 | H159: -1.66 | I159: -0.2844923429 | J159: 0.5121023335 | K159: -0.5555380717 | L159: 0.06944225897 | M159: 0.930557741 | N159: 238.7234054 | AP159: 86820700
A160: 128 | B160: =OFFSET(InputPriceData!B$15,CalculationsAndCharts!$A160+$A$11,0,1,1) -> 2017-06-29 | C160: =OFFSET(InputPriceData!G$15,CalculationsAndCharts!$A160+$A$11,IF($C$7,8,0),1,1) -> 106949700 | D160: =OFFSET(InputPriceData!C$15,CalculationsAndCharts!$A160+$A$11,IF($C$7,8,0),1,1) -> 240.26 | E160: =OFFSET(InputPriceData!D$15,CalculationsAndCharts!$A160+$A$11,IF($C$7,8,0),1,1) -> 240.32 | F160: =OFFSET(InputPriceData!E$15,CalculationsAndCharts!$A160+$A$11,IF($C$7,8,0),1,1) -> 236.61 | G160: =OFFSET(InputPriceData!F$15,CalculationsAndCharts!$A160+$A$11,IF($C$7,8,0),1,1) -> 237.98 | H160: 0.02 | I160: -0.2063467018 | J160: 0.5224929779 | K160: -0.3949272249 | L160: 0.04936590312 | M160: 0.9506340969 | N160: 238.7453006 | AP160: 106949700
A161: 129 | B161: =OFFSET(InputPriceData!B$15,CalculationsAndCharts!$A161+$A$11,0,1,1) -> 2017-06-28 | C161: =OFFSET(InputPriceData!G$15,CalculationsAndCharts!$A161+$A$11,IF($C$7,8,0),1,1) -> 70042600 | D161: =OFFSET(InputPriceData!C$15,CalculationsAndCharts!$A161+$A$11,IF($C$7,8,0),1,1) -> 239.12 | E161: =OFFSET(InputPriceData!D$15,CalculationsAndCharts!$A161+$A$11,IF($C$7,8,0),1,1) -> 240.32 | F161: =OFFSET(InputPriceData!E$15,CalculationsAndCharts!$A161+$A$11,IF($C$7,8,0),1,1) -> 238.85 | G161: =OFFSET(InputPriceData!F$15,CalculationsAndCharts!$A161+$A$11,IF($C$7,8,0),1,1) -> 240.09 | H161: 0.19 | I161: -0.1601020482 | J161: 0.5392950286 | K161: -0.2968728427 | L161: 0.03710910533 | M161: 0.9628908947 | N161: 238.7850423 | AO161: 70042600
A162: 130 | B162: =OFFSET(InputPriceData!B$15,CalculationsAndCharts!$A162+$A$11,0,1,1) -> 2017-06-27 | C162: =OFFSET(InputPriceData!G$15,CalculationsAndCharts!$A162+$A$11,IF($C$7,8,0),1,1) -> 82247700 | D162: =OFFSET(InputPriceData!C$15,CalculationsAndCharts!$A162+$A$11,IF($C$7,8,0),1,1) -> 239.65 | E162: =OFFSET(InputPriceData!D$15,CalculationsAndCharts!$A162+$A$11,IF($C$7,8,0),1,1) -> 239.99 | F162: =OFFSET(InputPriceData!E$15,CalculationsAndCharts!$A162+$A$11,IF($C$7,8,0),1,1) -> 237.94 | G162: =OFFSET(InputPriceData!F$15,CalculationsAndCharts!$A162+$A$11,IF($C$7,8,0),1,1) -> 237.96 | H162: =G162-G164 -> -1.78 | I162: =$F$21*(H162+H163)/2+$F$19*I163+$F$20*I164 -> -0.05533171787 | J162: 0.5610205973 | K162: -0.09862689202 | L162: =ABS(K162)*5/$A$17 -> 0.0123283615 | M162: =1-L162 -> 0.9876716385 | N162: =L162*G162+M162*N163 -> 238.7347502 | AP162: 82247700
A163: 131 | B163: =OFFSET(InputPriceData!B$15,CalculationsAndCharts!$A163+$A$11,0,1,1) -> 2017-06-26 | C163: =OFFSET(InputPriceData!G$15,CalculationsAndCharts!$A163+$A$11,IF($C$7,8,0),1,1) -> 56700500 | D163: =OFFSET(InputPriceData!C$15,CalculationsAndCharts!$A163+$A$11,IF($C$7,8,0),1,1) -> 240.5 | E163: =OFFSET(InputPriceData!D$15,CalculationsAndCharts!$A163+$A$11,IF($C$7,8,0),1,1) -> 240.97 | F163: =OFFSET(InputPriceData!E$15,CalculationsAndCharts!$A163+$A$11,IF($C$7,8,0),1,1) -> 239.66 | G163: =OFFSET(InputPriceData!F$15,CalculationsAndCharts!$A163+$A$11,IF($C$7,8,0),1,1) -> 239.9 | H163: 0.45 | I163: 0.01690231843 | J163: =SQRT(SUMSQ(OFFSET(I163,0,0,$A$17,1))/$A$17) -> 0.5867134902 | K163: 0.02880847077 | L163: 0.003601058846 | M163: 0.9963989412 | N163: 238.7444208 | AP163: 56700500
A164: 132 | B164: =OFFSET(InputPriceData!B$15,CalculationsAndCharts!$A164+$A$11,0,1,1) -> 2017-06-23 | C164: =OFFSET(InputPriceData!G$15,CalculationsAndCharts!$A164+$A$11,IF($C$7,8,0),1,1) -> 66986800 | D164: =OFFSET(InputPriceData!C$15,CalculationsAndCharts!$A164+$A$11,IF($C$7,8,0),1,1) -> 239.52 | E164: =OFFSET(InputPriceData!D$15,CalculationsAndCharts!$A164+$A$11,IF($C$7,8,0),1,1) -> 240.11 | F164: =OFFSET(InputPriceData!E$15,CalculationsAndCharts!$A164+$A$11,IF($C$7,8,0),1,1) -> 239.09 | G164: =OFFSET(InputPriceData!F$15,CalculationsAndCharts!$A164+$A$11,IF($C$7,8,0),1,1) -> 239.74 | H164: 0.18 | I164: 0.04552045541 | J164: 0.6142818743 | K164: 0.07410353018 | L164: 0.009262941273 | M164: 0.9907370587 | N164: 238.7402444 | AO164: 66986800
A165: 133 | B165: =OFFSET(InputPriceData!B$15,CalculationsAndCharts!$A165+$A$11,0,1,1) -> 2017-06-22 | C165: =OFFSET(InputPriceData!G$15,CalculationsAndCharts!$A165+$A$11,IF($C$7,8,0),1,1) -> 44148100 | D165: =OFFSET(InputPriceData!C$15,CalculationsAndCharts!$A165+$A$11,IF($C$7,8,0),1,1) -> 239.57 | E165: =OFFSET(InputPriceData!D$15,CalculationsAndCharts!$A165+$A$11,IF($C$7,8,0),1,1) -> 240.13 | F165: =OFFSET(InputPriceData!E$15,CalculationsAndCharts!$A165+$A$11,IF($C$7,8,0),1,1) -> 239.26 | G165: =OFFSET(InputPriceData!F$15,CalculationsAndCharts!$A165+$A$11,IF($C$7,8,0),1,1) -> 239.45 | H165: -0.17 | I165: 0.1233455375 | J165: 0.6381280219 | K165: 0.193292777 | L165: 0.02416159713 | M165: 0.9758384029 | N165: 238.7308972 | AP165: 44148100
A166: 134 | B166: =OFFSET(InputPriceData!B$15,CalculationsAndCharts!$A166+$A$11,0,1,1) -> 2017-06-21 | C166: =OFFSET(InputPriceData!G$15,CalculationsAndCharts!$A166+$A$11,IF($C$7,8,0),1,1) -> 55977600 | D166: =OFFSET(InputPriceData!C$15,CalculationsAndCharts!$A166+$A$11,IF($C$7,8,0),1,1) -> 240.06 | E166: =OFFSET(InputPriceData!D$15,CalculationsAndCharts!$A166+$A$11,IF($C$7,8,0),1,1) -> 240.19 | F166: =OFFSET(InputPriceData!E$15,CalculationsAndCharts!$A166+$A$11,IF($C$7,8,0),1,1) -> 239.03 | G166: =OFFSET(InputPriceData!F$15,CalculationsAndCharts!$A166+$A$11,IF($C$7,8,0),1,1) -> 239.56 | H166: -1.69 | I166: 0.2301153243 | J166: 0.6519738214 | K166: 0.3529517854 | L166: 0.04411897317 | M166: 0.9558810268 | N166: 238.7130923 | AP166: 55977600
A167: 135 | B167: =OFFSET(InputPriceData!B$15,CalculationsAndCharts!$A167+$A$11,0,1,1) -> 2017-06-20 | C167: =OFFSET(InputPriceData!G$15,CalculationsAndCharts!$A167+$A$11,IF($C$7,8,0),1,1) -> 56906400 | D167: =OFFSET(InputPriceData!C$15,CalculationsAndCharts!$A167+$A$11,IF($C$7,8,0),1,1) -> 240.84 | E167: =OFFSET(InputPriceData!D$15,CalculationsAndCharts!$A167+$A$11,IF($C$7,8,0),1,1) -> 240.85 | F167: =OFFSET(InputPriceData!E$15,CalculationsAndCharts!$A167+$A$11,IF($C$7,8,0),1,1) -> 239.6 | G167: =OFFSET(InputPriceData!F$15,CalculationsAndCharts!$A167+$A$11,IF($C$7,8,0),1,1) -> 239.62 | H167: 0.36 | I167: 0.2536653924 | J167: 0.654873311 | K167: 0.3873503289 | L167: 0.04841879112 | M167: 0.9515812089 | N167: 238.674003 | AP167: 56906400
A168: 136 | B168: =OFFSET(InputPriceData!B$15,CalculationsAndCharts!$A168+$A$11,0,1,1) -> 2017-06-19 | C168: =OFFSET(InputPriceData!G$15,CalculationsAndCharts!$A168+$A$11,IF($C$7,8,0),1,1) -> 65123800 | D168: =OFFSET(InputPriceData!C$15,CalculationsAndCharts!$A168+$A$11,IF($C$7,8,0),1,1) -> 240.19 | E168: =OFFSET(InputPriceData!D$15,CalculationsAndCharts!$A168+$A$11,IF($C$7,8,0),1,1) -> 241.32 | F168: =OFFSET(InputPriceData!E$15,CalculationsAndCharts!$A168+$A$11,IF($C$7,8,0),1,1) -> 240.08 | G168: =OFFSET(InputPriceData!F$15,CalculationsAndCharts!$A168+$A$11,IF($C$7,8,0),1,1) -> 241.25 | H168: 2.05 | I168: 0.177201174 | J168: 0.6537745496 | K168: 0.2710432429 | L168: 0.03388040536 | M168: 0.9661195946 | N168: 238.6258684 | AO168: 65123800
A169: 137 | B169: =OFFSET(InputPriceData!B$15,CalculationsAndCharts!$A169+$A$11,0,1,1) -> 2017-06-16 | C169: =OFFSET(InputPriceData!G$15,CalculationsAndCharts!$A169+$A$11,IF($C$7,8,0),1,1) -> 84553100 | D169: =OFFSET(InputPriceData!C$15,CalculationsAndCharts!$A169+$A$11,IF($C$7,8,0),1,1) -> 239.38 | E169: =OFFSET(InputPriceData!D$15,CalculationsAndCharts!$A169+$A$11,IF($C$7,8,0),1,1) -> 239.44 | F169: =OFFSET(InputPriceData!E$15,CalculationsAndCharts!$A169+$A$11,IF($C$7,8,0),1,1) -> 238.26 | G169: =OFFSET(InputPriceData!F$15,CalculationsAndCharts!$A169+$A$11,IF($C$7,8,0),1,1) -> 239.26 | H169: -0.4 | I169: 0.1846036052 | J169: 0.6536271851 | K169: 0.2824295093 | L169: 0.03530368867 | M169: 0.9646963113 | N169: 238.5338439 | AP169: 84553100
A170: 138 | B170: =OFFSET(InputPriceData!B$15,CalculationsAndCharts!$A170+$A$11,0,1,1) -> 2017-06-15 | C170: =OFFSET(InputPriceData!G$15,CalculationsAndCharts!$A170+$A$11,IF($C$7,8,0),1,1) -> 66464900 | D170: =OFFSET(InputPriceData!C$15,CalculationsAndCharts!$A170+$A$11,IF($C$7,8,0),1,1) -> 238.13 | E170: =OFFSET(InputPriceData!D$15,CalculationsAndCharts!$A170+$A$11,IF($C$7,8,0),1,1) -> 239.34 | F170: =OFFSET(InputPriceData!E$15,CalculationsAndCharts!$A170+$A$11,IF($C$7,8,0),1,1) -> 237.82 | G170: =OFFSET(InputPriceData!F$15,CalculationsAndCharts!$A170+$A$11,IF($C$7,8,0),1,1) -> 239.2 | H170: -0.77 | I170: 0.2750468172 | J170: 0.6549735944 | K170: 0.4199357341 | L170: 0.05249196676 | M170: 0.9475080332 | N170: 238.5072698 | AO170: 66464900
A171: 139 | B171: =OFFSET(InputPriceData!B$15,CalculationsAndCharts!$A171+$A$11,0,1,1) -> 2017-06-14 | C171: =OFFSET(InputPriceData!G$15,CalculationsAndCharts!$A171+$A$11,IF($C$7,8,0),1,1) -> 78602300 | D171: =OFFSET(InputPriceData!C$15,CalculationsAndCharts!$A171+$A$11,IF($C$7,8,0),1,1) -> 240.27 | E171: =OFFSET(InputPriceData!D$15,CalculationsAndCharts!$A171+$A$11,IF($C$7,8,0),1,1) -> 240.28 | F171: =OFFSET(InputPriceData!E$15,CalculationsAndCharts!$A171+$A$11,IF($C$7,8,0),1,1) -> 238.73 | G171: =OFFSET(InputPriceData!F$15,CalculationsAndCharts!$A171+$A$11,IF($C$7,8,0),1,1) -> 239.66 | H171: 0.86 | I171: 0.3101095609 | J171: 0.6564215882 | K171: 0.4724243786 | L171: 0.05905304733 | M171: 0.9409469527 | N171: 238.4688925 | AP171: 78602300
A172: 140 | B172: =OFFSET(InputPriceData!B$15,CalculationsAndCharts!$A172+$A$11,0,1,1) -> 2017-06-13 | C172: =OFFSET(InputPriceData!G$15,CalculationsAndCharts!$A172+$A$11,IF($C$7,8,0),1,1) -> 60067000 | D172: =OFFSET(InputPriceData!C$15,CalculationsAndCharts!$A172+$A$11,IF($C$7,8,0),1,1) -> 239.41 | E172: =OFFSET(InputPriceData!D$15,CalculationsAndCharts!$A172+$A$11,IF($C$7,8,0),1,1) -> 240.03 | F172: =OFFSET(InputPriceData!E$15,CalculationsAndCharts!$A172+$A$11,IF($C$7,8,0),1,1) -> 239.02 | G172: =OFFSET(InputPriceData!F$15,CalculationsAndCharts!$A172+$A$11,IF($C$7,8,0),1,1) -> 239.97 | H172: 1.12 | I172: 0.3321188789 | J172: 0.6580118458 | K172: 0.504730851 | L172: 0.06309135637 | M172: 0.9369086436 | N172: 238.3941396 | AO172: 60067000
A173: 141 | B173: =OFFSET(InputPriceData!B$15,CalculationsAndCharts!$A173+$A$11,0,1,1) -> 2017-06-12 | C173: =OFFSET(InputPriceData!G$15,CalculationsAndCharts!$A173+$A$11,IF($C$7,8,0),1,1) -> 86108100 | D173: =OFFSET(InputPriceData!C$15,CalculationsAndCharts!$A173+$A$11,IF($C$7,8,0),1,1) -> 238.58 | E173: =OFFSET(InputPriceData!D$15,CalculationsAndCharts!$A173+$A$11,IF($C$7,8,0),1,1) -> 238.86 | F173: =OFFSET(InputPriceData!E$15,CalculationsAndCharts!$A173+$A$11,IF($C$7,8,0),1,1) -> 237.84 | G173: =OFFSET(InputPriceData!F$15,CalculationsAndCharts!$A173+$A$11,IF($C$7,8,0),1,1) -> 238.8 | H173: -0.41 | I173: 0.4474924672 | J173: 0.6591338818 | K173: =I173/J173 -> 0.6789098233 | L173: 0.08486372791 | M173: 0.9151362721 | N173: 238.2880212 | AO173: 86108100
A174: 142 | B174: =OFFSET(InputPriceData!B$15,CalculationsAndCharts!$A174+$A$11,0,1,1) -> 2017-06-09 | C174: =OFFSET(InputPriceData!G$15,CalculationsAndCharts!$A174+$A$11,IF($C$7,8,0),1,1) -> 132256400 | D174: =OFFSET(InputPriceData!C$15,CalculationsAndCharts!$A174+$A$11,IF($C$7,8,0),1,1) -> 239.52 | E174: =OFFSET(InputPriceData!D$15,CalculationsAndCharts!$A174+$A$11,IF($C$7,8,0),1,1) -> 240.42 | F174: =OFFSET(InputPriceData!E$15,CalculationsAndCharts!$A174+$A$11,IF($C$7,8,0),1,1) -> 237.42 | G174: =OFFSET(InputPriceData!F$15,CalculationsAndCharts!$A174+$A$11,IF($C$7,8,0),1,1) -> 238.85 | H174: -0.25 | I174: 0.6159959506 | J174: 0.6563019218 | K174: 0.9385862362 | L174: 0.1173232795 | M174: 0.8826767205 | N174: 238.2405437 | AP174: 132256400
A175: 143 | B175: =OFFSET(InputPriceData!B$15,CalculationsAndCharts!$A175+$A$11,0,1,1) -> 2017-06-08 | C175: =OFFSET(InputPriceData!G$15,CalculationsAndCharts!$A175+$A$11,IF($C$7,8,0),1,1) -> 63989800 | D175: =OFFSET(InputPriceData!C$15,CalculationsAndCharts!$A175+$A$11,IF($C$7,8,0),1,1) -> 239.2 | E175: =OFFSET(InputPriceData!D$15,CalculationsAndCharts!$A175+$A$11,IF($C$7,8,0),1,1) -> 239.75 | F175: =OFFSET(InputPriceData!E$15,CalculationsAndCharts!$A175+$A$11,IF($C$7,8,0),1,1) -> 238.61 | G175: =OFFSET(InputPriceData!F$15,CalculationsAndCharts!$A175+$A$11,IF($C$7,8,0),1,1) -> 239.21 | H175: 0.56 | I175: 0.7621866429 | J175: 0.6490538496 | K175: 1.174304171 | L175: 0.1467880214 | M175: 0.8532119786 | N175: 238.1595362 | AO175: 63989800
A176: 144 | B176: =OFFSET(InputPriceData!B$15,CalculationsAndCharts!$A176+$A$11,0,1,1) -> 2017-06-07 | C176: =OFFSET(InputPriceData!G$15,CalculationsAndCharts!$A176+$A$11,IF($C$7,8,0),1,1) -> 54144300 | D176: =OFFSET(InputPriceData!C$15,CalculationsAndCharts!$A176+$A$11,IF($C$7,8,0),1,1) -> 239.04 | E176: =OFFSET(InputPriceData!D$15,CalculationsAndCharts!$A176+$A$11,IF($C$7,8,0),1,1) -> 239.35 | F176: =OFFSET(InputPriceData!E$15,CalculationsAndCharts!$A176+$A$11,IF($C$7,8,0),1,1) -> 238.28 | G176: =OFFSET(InputPriceData!F$15,CalculationsAndCharts!$A176+$A$11,IF($C$7,8,0),1,1) -> 239.1 | H176: -0.32 | I176: 0.9153289603 | J176: 0.6378031475 | K176: 1.435127694 | L176: 0.1793909618 | M176: 0.8206090382 | N176: 237.9788127 | AO176: 54144300
A177: 145 | B177: =OFFSET(InputPriceData!B$15,CalculationsAndCharts!$A177+$A$11,0,1,1) -> 2017-06-06 | C177: =OFFSET(InputPriceData!G$15,CalculationsAndCharts!$A177+$A$11,IF($C$7,8,0),1,1) -> 50375400 | D177: =OFFSET(InputPriceData!C$15,CalculationsAndCharts!$A177+$A$11,IF($C$7,8,0),1,1) -> 238.78 | E177: =OFFSET(InputPriceData!D$15,CalculationsAndCharts!$A177+$A$11,IF($C$7,8,0),1,1) -> 239.41 | F177: =OFFSET(InputPriceData!E$15,CalculationsAndCharts!$A177+$A$11,IF($C$7,8,0),1,1) -> 238.57 | G177: =OFFSET(InputPriceData!F$15,CalculationsAndCharts!$A177+$A$11,IF($C$7,8,0),1,1) -> 238.65 | H177: -0.95 | I177: 1.056130477 | J177: 0.6212535184 | K177: 1.699999188 | L177: 0.2124998985 | M177: 0.7875001015 | N177: 237.7337132 | AP177: 50375400
A178: 146 | B178: =OFFSET(InputPriceData!B$15,CalculationsAndCharts!$A178+$A$11,0,1,1) -> 2017-06-05 | C178: =OFFSET(InputPriceData!G$15,CalculationsAndCharts!$A178+$A$11,IF($C$7,8,0),1,1) -> 44698800 | D178: =OFFSET(InputPriceData!C$15,CalculationsAndCharts!$A178+$A$11,IF($C$7,8,0),1,1) -> 239.4 | E178: =OFFSET(InputPriceData!D$15,CalculationsAndCharts!$A178+$A$11,IF($C$7,8,0),1,1) -> 239.72 | F178: =OFFSET(InputPriceData!E$15,CalculationsAndCharts!$A178+$A$11,IF($C$7,8,0),1,1) -> 239.19 | G178: =OFFSET(InputPriceData!F$15,CalculationsAndCharts!$A178+$A$11,IF($C$7,8,0),1,1) -> 239.42 | H178: 0.62 | I178: 1.067321019 | J178: 0.5985244867 | K178: 1.783253723 | L178: 0.2229067154 | M178: 0.7770932846 | N178: 237.4864613 | AO178: 44698800
A179: 147 | B179: =OFFSET(InputPriceData!B$15,CalculationsAndCharts!$A179+$A$11,0,1,1) -> 2017-06-02 | C179: =OFFSET(InputPriceData!G$15,CalculationsAndCharts!$A179+$A$11,IF($C$7,8,0),1,1) -> 88666100 | D179: =OFFSET(InputPriceData!C$15,CalculationsAndCharts!$A179+$A$11,IF($C$7,8,0),1,1) -> 238.86 | E179: =OFFSET(InputPriceData!D$15,CalculationsAndCharts!$A179+$A$11,IF($C$7,8,0),1,1) -> 239.77 | F179: =OFFSET(InputPriceData!E$15,CalculationsAndCharts!$A179+$A$11,IF($C$7,8,0),1,1) -> 238.53 | G179: =OFFSET(InputPriceData!F$15,CalculationsAndCharts!$A179+$A$11,IF($C$7,8,0),1,1) -> 239.6 | H179: 2.68 | I179: 0.9329405951 | J179: 0.5745120577 | K179: 1.623883402 | L179: 0.2029854253 | M179: 0.7970145747 | N179: 236.9318319 | AO179: 88666100
A180: 148 | B180: =OFFSET(InputPriceData!B$15,CalculationsAndCharts!$A180+$A$11,0,1,1) -> 2017-06-01 | C180: =OFFSET(InputPriceData!G$15,CalculationsAndCharts!$A180+$A$11,IF($C$7,8,0),1,1) -> 68962000 | D180: =OFFSET(InputPriceData!C$15,CalculationsAndCharts!$A180+$A$11,IF($C$7,8,0),1,1) -> 237.44 | E180: =OFFSET(InputPriceData!D$15,CalculationsAndCharts!$A180+$A$11,IF($C$7,8,0),1,1) -> 238.82 | F180: =OFFSET(InputPriceData!E$15,CalculationsAndCharts!$A180+$A$11,IF($C$7,8,0),1,1) -> 237.11 | G180: =OFFSET(InputPriceData!F$15,CalculationsAndCharts!$A180+$A$11,IF($C$7,8,0),1,1) -> 238.8 | H180: 1.82 | I180: 0.811750733 | J180: 0.5559005179 | K180: 1.460244606 | L180: 0.1825305758 | M180: 0.8174694242 | N180: 236.252297 | AO180: 68962000
A181: 149 | B181: =OFFSET(InputPriceData!B$15,CalculationsAndCharts!$A181+$A$11,0,1,1) -> 2017-05-31 | C181: =OFFSET(InputPriceData!G$15,CalculationsAndCharts!$A181+$A$11,IF($C$7,8,0),1,1) -> 91796000 | D181: =OFFSET(InputPriceData!C$15,CalculationsAndCharts!$A181+$A$11,IF($C$7,8,0),1,1) -> 237.31 | E181: =OFFSET(InputPriceData!D$15,CalculationsAndCharts!$A181+$A$11,IF($C$7,8,0),1,1) -> 237.35 | F181: =OFFSET(InputPriceData!E$15,CalculationsAndCharts!$A181+$A$11,IF($C$7,8,0),1,1) -> 236.13 | G181: =OFFSET(InputPriceData!F$15,CalculationsAndCharts!$A181+$A$11,IF($C$7,8,0),1,1) -> 236.92 | H181: -0.26 | I181: 0.7999836235 | J181: 0.5418390632 | K181: 1.476422941 | L181: 0.1845528677 | M181: 0.8154471323 | N181: 235.6834272 | AP181: 91796000
A182: 150 | B182: =OFFSET(InputPriceData!B$15,CalculationsAndCharts!$A182+$A$11,0,1,1) -> 2017-05-30 | C182: =OFFSET(InputPriceData!G$15,CalculationsAndCharts!$A182+$A$11,IF($C$7,8,0),1,1) -> 35201900 | D182: =OFFSET(InputPriceData!C$15,CalculationsAndCharts!$A182+$A$11,IF($C$7,8,0),1,1) -> 236.82 | E182: =OFFSET(InputPriceData!D$15,CalculationsAndCharts!$A182+$A$11,IF($C$7,8,0),1,1) -> 237.26 | F182: =OFFSET(InputPriceData!E$15,CalculationsAndCharts!$A182+$A$11,IF($C$7,8,0),1,1) -> 236.64 | G182: =OFFSET(InputPriceData!F$15,CalculationsAndCharts!$A182+$A$11,IF($C$7,8,0),1,1) -> 236.98 | H182: -0.25 | I182: 0.7791733607 | J182: 0.5276612568 | K182: 1.476654484 | L182: 0.1845818105 | M182: 0.8154181895 | N182: 235.4035647 | AO182: 35201900
A183: 151 | B183: =OFFSET(InputPriceData!B$15,CalculationsAndCharts!$A183+$A$11,0,1,1) -> 2017-05-26 | C183: =OFFSET(InputPriceData!G$15,CalculationsAndCharts!$A183+$A$11,IF($C$7,8,0),1,1) -> 46629900 | D183: =OFFSET(InputPriceData!C$15,CalculationsAndCharts!$A183+$A$11,IF($C$7,8,0),1,1) -> 237.02 | E183: =OFFSET(InputPriceData!D$15,CalculationsAndCharts!$A183+$A$11,IF($C$7,8,0),1,1) -> 237.37 | F183: =OFFSET(InputPriceData!E$15,CalculationsAndCharts!$A183+$A$11,IF($C$7,8,0),1,1) -> 236.93 | G183: =OFFSET(InputPriceData!F$15,CalculationsAndCharts!$A183+$A$11,IF($C$7,8,0),1,1) -> 237.18 | H183: 1.08 | I183: 0.6193079027 | J183: 0.5131500644 | K183: 1.206874842 | L183: 0.1508593552 | M183: 0.8491406448 | N183: 235.0467156 | AO183: 46629900
A184: 152 | B184: =OFFSET(InputPriceData!B$15,CalculationsAndCharts!$A184+$A$11,0,1,1) -> 2017-05-25 | C184: =OFFSET(InputPriceData!G$15,CalculationsAndCharts!$A184+$A$11,IF($C$7,8,0),1,1) -> 64071700 | D184: =OFFSET(InputPriceData!C$15,CalculationsAndCharts!$A184+$A$11,IF($C$7,8,0),1,1) -> 236.68 | E184: =OFFSET(InputPriceData!D$15,CalculationsAndCharts!$A184+$A$11,IF($C$7,8,0),1,1) -> 237.55 | F184: =OFFSET(InputPriceData!E$15,CalculationsAndCharts!$A184+$A$11,IF($C$7,8,0),1,1) -> 236.45 | G184: =OFFSET(InputPriceData!F$15,CalculationsAndCharts!$A184+$A$11,IF($C$7,8,0),1,1) -> 237.23 | H184: 1.68 | I184: 0.344861732 | J184: 0.5046975019 | K184: 0.6833038219 | L184: 0.08541297774 | M184: 0.9145870223 | N184: 234.6677137 | AO184: 64071700
A185: 153 | B185: =OFFSET(InputPriceData!B$15,CalculationsAndCharts!$A185+$A$11,0,1,1) -> 2017-05-24 | C185: =OFFSET(InputPriceData!G$15,CalculationsAndCharts!$A185+$A$11,IF($C$7,8,0),1,1) -> 46927700 | D185: =OFFSET(InputPriceData!C$15,CalculationsAndCharts!$A185+$A$11,IF($C$7,8,0),1,1) -> 235.82 | E185: =OFFSET(InputPriceData!D$15,CalculationsAndCharts!$A185+$A$11,IF($C$7,8,0),1,1) -> 236.22 | F185: =OFFSET(InputPriceData!E$15,CalculationsAndCharts!$A185+$A$11,IF($C$7,8,0),1,1) -> 235.44 | G185: =OFFSET(InputPriceData!F$15,CalculationsAndCharts!$A185+$A$11,IF($C$7,8,0),1,1) -> 236.1 | H185: 1.07 | I185: 0.04446016335 | J185: 0.5078939395 | K185: 0.08753828289 | L185: 0.01094228536 | M185: 0.9890577146 | N185: 234.4284226 | AO185: 46927700
A186: 154 | B186: =OFFSET(InputPriceData!B$15,CalculationsAndCharts!$A186+$A$11,0,1,1) -> 2017-05-23 | C186: =OFFSET(InputPriceData!G$15,CalculationsAndCharts!$A186+$A$11,IF($C$7,8,0),1,1) -> 48341700 | D186: =OFFSET(InputPriceData!C$15,CalculationsAndCharts!$A186+$A$11,IF($C$7,8,0),1,1) -> 235.45 | E186: =OFFSET(InputPriceData!D$15,CalculationsAndCharts!$A186+$A$11,IF($C$7,8,0),1,1) -> 235.74 | F186: =OFFSET(InputPriceData!E$15,CalculationsAndCharts!$A186+$A$11,IF($C$7,8,0),1,1) -> 235.02 | G186: =OFFSET(InputPriceData!F$15,CalculationsAndCharts!$A186+$A$11,IF($C$7,8,0),1,1) -> 235.55 | H186: 1.7 | I186: -0.2600177064 | J186: 0.5207842715 | K186: -0.4992810279 | L186: 0.06241012848 | M186: 0.9375898715 | N186: 234.4099294 | AO186: 48341700
A187: 155 | B187: =OFFSET(InputPriceData!B$15,CalculationsAndCharts!$A187+$A$11,0,1,1) -> 2017-05-22 | C187: =OFFSET(InputPriceData!G$15,CalculationsAndCharts!$A187+$A$11,IF($C$7,8,0),1,1) -> 61010600 | D187: =OFFSET(InputPriceData!C$15,CalculationsAndCharts!$A187+$A$11,IF($C$7,8,0),1,1) -> 234.42 | E187: =OFFSET(InputPriceData!D$15,CalculationsAndCharts!$A187+$A$11,IF($C$7,8,0),1,1) -> 235.22 | F187: =OFFSET(InputPriceData!E$15,CalculationsAndCharts!$A187+$A$11,IF($C$7,8,0),1,1) -> 234.35 | G187: =OFFSET(InputPriceData!F$15,CalculationsAndCharts!$A187+$A$11,IF($C$7,8,0),1,1) -> 235.03 | H187: 2.7 | I187: -0.5321060354 | J187: 0.5341895749 | K187: -0.9960996252 | L187: 0.1245124532 | M187: 0.8754875468 | N187: 234.3340413 | AO187: 61010600
A188: 156 | B188: =OFFSET(InputPriceData!B$15,CalculationsAndCharts!$A188+$A$11,0,1,1) -> 2017-05-19 | C188: =OFFSET(InputPriceData!G$15,CalculationsAndCharts!$A188+$A$11,IF($C$7,8,0),1,1) -> 115011400 | D188: =OFFSET(InputPriceData!C$15,CalculationsAndCharts!$A188+$A$11,IF($C$7,8,0),1,1) -> 232.88 | E188: =OFFSET(InputPriceData!D$15,CalculationsAndCharts!$A188+$A$11,IF($C$7,8,0),1,1) -> 234.6 | F188: =OFFSET(InputPriceData!E$15,CalculationsAndCharts!$A188+$A$11,IF($C$7,8,0),1,1) -> 232.83 | G188: =OFFSET(InputPriceData!F$15,CalculationsAndCharts!$A188+$A$11,IF($C$7,8,0),1,1) -> 233.85 | H188: 2.45 | I188: -0.6197541796 | J188: 0.5402768556 | K188: -1.14710481 | L188: 0.1433881012 | M188: 0.8566118988 | N188: 234.2350615 | AO188: 115011400
A189: 157 | B189: =OFFSET(InputPriceData!B$15,CalculationsAndCharts!$A189+$A$11,0,1,1) -> 2017-05-18 | C189: =OFFSET(InputPriceData!G$15,CalculationsAndCharts!$A189+$A$11,IF($C$7,8,0),1,1) -> 107047700 | D189: =OFFSET(InputPriceData!C$15,CalculationsAndCharts!$A189+$A$11,IF($C$7,8,0),1,1) -> 231.31 | E189: =OFFSET(InputPriceData!D$15,CalculationsAndCharts!$A189+$A$11,IF($C$7,8,0),1,1) -> 233.3 | F189: =OFFSET(InputPriceData!E$15,CalculationsAndCharts!$A189+$A$11,IF($C$7,8,0),1,1) -> 231.02 | G189: =OFFSET(InputPriceData!F$15,CalculationsAndCharts!$A189+$A$11,IF($C$7,8,0),1,1) -> 232.33 | H189: -3.25 | I189: -0.3628082897 | J189: 0.5399330841 | K189: -0.6719504701 | L189: 0.08399380876 | M189: 0.9160061912 | N189: 234.2995169 | AO189: 107047700
A190: 158 | B190: =OFFSET(InputPriceData!B$15,CalculationsAndCharts!$A190+$A$11,0,1,1) -> 2017-05-17 | C190: =OFFSET(InputPriceData!G$15,CalculationsAndCharts!$A190+$A$11,IF($C$7,8,0),1,1) -> 172174100 | D190: =OFFSET(InputPriceData!C$15,CalculationsAndCharts!$A190+$A$11,IF($C$7,8,0),1,1) -> 235.58 | E190: =OFFSET(InputPriceData!D$15,CalculationsAndCharts!$A190+$A$11,IF($C$7,8,0),1,1) -> 235.58 | F190: =OFFSET(InputPriceData!E$15,CalculationsAndCharts!$A190+$A$11,IF($C$7,8,0),1,1) -> 231.33 | G190: =OFFSET(InputPriceData!F$15,CalculationsAndCharts!$A190+$A$11,IF($C$7,8,0),1,1) -> 231.4 | H190: -4.4 | I190: 0.03325870712 | J190: 0.5395021913 | K190: 0.06164702879 | L190: 0.007705878599 | M190: 0.9922941214 | N190: 234.4801131 | AP190: 172174100
A191: 159 | B191: =OFFSET(InputPriceData!B$15,CalculationsAndCharts!$A191+$A$11,0,1,1) -> 2017-05-16 | C191: =OFFSET(InputPriceData!G$15,CalculationsAndCharts!$A191+$A$11,IF($C$7,8,0),1,1) -> 51241800 | D191: =OFFSET(InputPriceData!C$15,CalculationsAndCharts!$A191+$A$11,IF($C$7,8,0),1,1) -> 236.13 | E191: =OFFSET(InputPriceData!D$15,CalculationsAndCharts!$A191+$A$11,IF($C$7,8,0),1,1) -> 236.16 | F191: =OFFSET(InputPriceData!E$15,CalculationsAndCharts!$A191+$A$11,IF($C$7,8,0),1,1) -> 235.14 | G191: =OFFSET(InputPriceData!F$15,CalculationsAndCharts!$A191+$A$11,IF($C$7,8,0),1,1) -> 235.58 | H191: 1.08 | I191: 0.175474702 | J191: 0.5394768174 | K191: 0.3252682901 | L191: 0.04065853627 | M191: 0.9593414637 | N191: 234.5040324 | AP191: 51241800
A192: 160 | B192: =OFFSET(InputPriceData!B$15,CalculationsAndCharts!$A192+$A$11,0,1,1) -> 2017-05-15 | C192: =OFFSET(InputPriceData!G$15,CalculationsAndCharts!$A192+$A$11,IF($C$7,8,0),1,1) -> 61918900 | D192: =OFFSET(InputPriceData!C$15,CalculationsAndCharts!$A192+$A$11,IF($C$7,8,0),1,1) -> 234.98 | E192: =OFFSET(InputPriceData!D$15,CalculationsAndCharts!$A192+$A$11,IF($C$7,8,0),1,1) -> 235.94 | F192: =OFFSET(InputPriceData!E$15,CalculationsAndCharts!$A192+$A$11,IF($C$7,8,0),1,1) -> 234.96 | G192: =OFFSET(InputPriceData!F$15,CalculationsAndCharts!$A192+$A$11,IF($C$7,8,0),1,1) -> 235.8 | H192: 0.9 | I192: 0.1710867051 | J192: 0.5394035548 | K192: 0.3171775631 | L192: 0.03964719539 | M192: 0.9603528046 | N192: 234.458431 | AO192: 61918900
A193: 161 | B193: =OFFSET(InputPriceData!B$15,CalculationsAndCharts!$A193+$A$11,0,1,1) -> 2017-05-12 | C193: =OFFSET(InputPriceData!G$15,CalculationsAndCharts!$A193+$A$11,IF($C$7,8,0),1,1) -> 53912700 | D193: =OFFSET(InputPriceData!C$15,CalculationsAndCharts!$A193+$A$11,IF($C$7,8,0),1,1) -> 234.61 | E193: =OFFSET(InputPriceData!D$15,CalculationsAndCharts!$A193+$A$11,IF($C$7,8,0),1,1) -> 234.94 | F193: =OFFSET(InputPriceData!E$15,CalculationsAndCharts!$A193+$A$11,IF($C$7,8,0),1,1) -> 234.2 | G193: =OFFSET(InputPriceData!F$15,CalculationsAndCharts!$A193+$A$11,IF($C$7,8,0),1,1) -> 234.5 | H193: -0.88 | I193: 0.2651397838 | J193: 0.5393889659 | K193: 0.491555817 | L193: 0.06144447712 | M193: 0.9385555229 | N193: 234.4030457 | AP193: 53912700
A194: 162 | B194: =OFFSET(InputPriceData!B$15,CalculationsAndCharts!$A194+$A$11,0,1,1) -> 2017-05-11 | C194: =OFFSET(InputPriceData!G$15,CalculationsAndCharts!$A194+$A$11,IF($C$7,8,0),1,1) -> 62358300 | D194: =OFFSET(InputPriceData!C$15,CalculationsAndCharts!$A194+$A$11,IF($C$7,8,0),1,1) -> 234.87 | E194: =OFFSET(InputPriceData!D$15,CalculationsAndCharts!$A194+$A$11,IF($C$7,8,0),1,1) -> 235.08 | F194: =OFFSET(InputPriceData!E$15,CalculationsAndCharts!$A194+$A$11,IF($C$7,8,0),1,1) -> 233.67 | G194: =OFFSET(InputPriceData!F$15,CalculationsAndCharts!$A194+$A$11,IF($C$7,8,0),1,1) -> 234.9 | H194: -0.05 | I194: 0.3803595812 | J194: 0.5378361399 | K194: 0.707203464 | L194: 0.088400433 | M194: 0.911599567 | N194: 234.3966984 | AO194: 62358300
A195: 163 | B195: =OFFSET(InputPriceData!B$15,CalculationsAndCharts!$A195+$A$11,0,1,1) -> 2017-05-10 | C195: =OFFSET(InputPriceData!G$15,CalculationsAndCharts!$A195+$A$11,IF($C$7,8,0),1,1) -> 54293800 | D195: =OFFSET(InputPriceData!C$15,CalculationsAndCharts!$A195+$A$11,IF($C$7,8,0),1,1) -> 234.91 | E195: =OFFSET(InputPriceData!D$15,CalculationsAndCharts!$A195+$A$11,IF($C$7,8,0),1,1) -> 235.38 | F195: =OFFSET(InputPriceData!E$15,CalculationsAndCharts!$A195+$A$11,IF($C$7,8,0),1,1) -> 234.67 | G195: =OFFSET(InputPriceData!F$15,CalculationsAndCharts!$A195+$A$11,IF($C$7,8,0),1,1) -> 235.38 | H195: 0.21 | I195: 0.4558653877 | J195: 0.5346157956 | K195: 0.8526971921 | L195: 0.106587149 | M195: 0.893412851 | N195: 234.3478918 | AO195: 54293800
A196: 164 | B196: =OFFSET(InputPriceData!B$15,CalculationsAndCharts!$A196+$A$11,0,1,1) -> 2017-05-09 | C196: =OFFSET(InputPriceData!G$15,CalculationsAndCharts!$A196+$A$11,IF($C$7,8,0),1,1) -> 51363200 | D196: =OFFSET(InputPriceData!C$15,CalculationsAndCharts!$A196+$A$11,IF($C$7,8,0),1,1) -> 235.46 | E196: =OFFSET(InputPriceData!D$15,CalculationsAndCharts!$A196+$A$11,IF($C$7,8,0),1,1) -> 235.69 | F196: =OFFSET(InputPriceData!E$15,CalculationsAndCharts!$A196+$A$11,IF($C$7,8,0),1,1) -> 234.56 | G196: =OFFSET(InputPriceData!F$15,CalculationsAndCharts!$A196+$A$11,IF($C$7,8,0),1,1) -> 234.95 | H196: -0.26 | I196: 0.5272907519 | J196: 0.5300956437 | K196: 0.9947087062 | L196: 0.1243385883 | M196: 0.8756614117 | N196: 234.2247578 | AP196: 51363200
A197: 165 | B197: =OFFSET(InputPriceData!B$15,CalculationsAndCharts!$A197+$A$11,0,1,1) -> 2017-05-08 | C197: =OFFSET(InputPriceData!G$15,CalculationsAndCharts!$A197+$A$11,IF($C$7,8,0),1,1) -> 48385700 | D197: =OFFSET(InputPriceData!C$15,CalculationsAndCharts!$A197+$A$11,IF($C$7,8,0),1,1) -> 235.26 | E197: =OFFSET(InputPriceData!D$15,CalculationsAndCharts!$A197+$A$11,IF($C$7,8,0),1,1) -> 235.43 | F197: =OFFSET(InputPriceData!E$15,CalculationsAndCharts!$A197+$A$11,IF($C$7,8,0),1,1) -> 234.69 | G197: =OFFSET(InputPriceData!F$15,CalculationsAndCharts!$A197+$A$11,IF($C$7,8,0),1,1) -> 235.17 | H197: 0.88 | I197: 0.5706168917 | J197: 0.5240632877 | K197: 1.088832027 | L197: 0.1361040033 | M197: 0.8638959967 | N197: 234.1217778 | AP197: 48385700
A198: 166 | B198: =OFFSET(InputPriceData!B$15,CalculationsAndCharts!$A198+$A$11,0,1,1) -> 2017-05-05 | C198: =OFFSET(InputPriceData!G$15,CalculationsAndCharts!$A198+$A$11,IF($C$7,8,0),1,1) -> 62001300 | D198: =OFFSET(InputPriceData!C$15,CalculationsAndCharts!$A198+$A$11,IF($C$7,8,0),1,1) -> 234.71 | E198: =OFFSET(InputPriceData!D$15,CalculationsAndCharts!$A198+$A$11,IF($C$7,8,0),1,1) -> 235.23 | F198: =OFFSET(InputPriceData!E$15,CalculationsAndCharts!$A198+$A$11,IF($C$7,8,0),1,1) -> 234.21 | G198: =OFFSET(InputPriceData!F$15,CalculationsAndCharts!$A198+$A$11,IF($C$7,8,0),1,1) -> 235.21 | H198: 1.2 | I198: 0.6060646393 | J198: 0.5169598781 | K198: 1.172363011 | L198: 0.1465453764 | M198: 0.8534546236 | N198: 233.9566338 | AO198: 62001300
A199: 167 | B199: =OFFSET(InputPriceData!B$15,CalculationsAndCharts!$A199+$A$11,0,1,1) -> 2017-05-04 | C199: =OFFSET(InputPriceData!G$15,CalculationsAndCharts!$A199+$A$11,IF($C$7,8,0),1,1) -> 61462700 | D199: =OFFSET(InputPriceData!C$15,CalculationsAndCharts!$A199+$A$11,IF($C$7,8,0),1,1) -> 234.36 | E199: =OFFSET(InputPriceData!D$15,CalculationsAndCharts!$A199+$A$11,IF($C$7,8,0),1,1) -> 234.44 | F199: =OFFSET(InputPriceData!E$15,CalculationsAndCharts!$A199+$A$11,IF($C$7,8,0),1,1) -> 233.33 | G199: =OFFSET(InputPriceData!F$15,CalculationsAndCharts!$A199+$A$11,IF($C$7,8,0),1,1) -> 234.29 | H199: -0.01 | I199: 0.7148009323 | J199: 0.5080768274 | K199: 1.406875681 | L199: 0.1758594601 | M199: 0.8241405399 | N199: 233.7414203 | AP199: 61462700
A200: 168 | B200: =OFFSET(InputPriceData!B$15,CalculationsAndCharts!$A200+$A$11,0,1,1) -> 2017-05-03 | C200: =OFFSET(InputPriceData!G$15,CalculationsAndCharts!$A200+$A$11,IF($C$7,8,0),1,1) -> 73137700 | D200: =OFFSET(InputPriceData!C$15,CalculationsAndCharts!$A200+$A$11,IF($C$7,8,0),1,1) -> 234.3 | E200: =OFFSET(InputPriceData!D$15,CalculationsAndCharts!$A200+$A$11,IF($C$7,8,0),1,1) -> 234.41 | F200: =OFFSET(InputPriceData!E$15,CalculationsAndCharts!$A200+$A$11,IF($C$7,8,0),1,1) -> 233.25 | G200: =OFFSET(InputPriceData!F$15,CalculationsAndCharts!$A200+$A$11,IF($C$7,8,0),1,1) -> 234.01 | H200: -0.2 | I200: 0.8695904771 | J200: 0.4962961393 | K200: 1.752160471 | L200: 0.2190200589 | M200: 0.7809799411 | N200: 233.6243614 | AP200: 73137700
A201: 169 | B201: =OFFSET(InputPriceData!B$15,CalculationsAndCharts!$A201+$A$11,0,1,1) -> 2017-05-02 | C201: =OFFSET(InputPriceData!G$15,CalculationsAndCharts!$A201+$A$11,IF($C$7,8,0),1,1) -> 57375700 | D201: =OFFSET(InputPriceData!C$15,CalculationsAndCharts!$A201+$A$11,IF($C$7,8,0),1,1) -> 234.37 | E201: =OFFSET(InputPriceData!D$15,CalculationsAndCharts!$A201+$A$11,IF($C$7,8,0),1,1) -> 234.5 | F201: =OFFSET(InputPriceData!E$15,CalculationsAndCharts!$A201+$A$11,IF($C$7,8,0),1,1) -> 233.84 | G201: =OFFSET(InputPriceData!F$15,CalculationsAndCharts!$A201+$A$11,IF($C$7,8,0),1,1) -> 234.3 | H201: 0.68 | I201: 0.9908743487 | J201: 0.4829176761 | K201: 2.05184941 | L201: 0.2564811762 | M201: 0.7435188238 | N201: 233.5162119 | AP201: 57375700
A202: 170 | B202: =OFFSET(InputPriceData!B$15,CalculationsAndCharts!$A202+$A$11,0,1,1) -> 2017-05-01 | C202: =OFFSET(InputPriceData!G$15,CalculationsAndCharts!$A202+$A$11,IF($C$7,8,0),1,1) -> 66882500 | D202: =OFFSET(InputPriceData!C$15,CalculationsAndCharts!$A202+$A$11,IF($C$7,8,0),1,1) -> 234.21 | E202: =OFFSET(InputPriceData!D$15,CalculationsAndCharts!$A202+$A$11,IF($C$7,8,0),1,1) -> 234.69 | F202: =OFFSET(InputPriceData!E$15,CalculationsAndCharts!$A202+$A$11,IF($C$7,8,0),1,1) -> 233.74 | G202: =OFFSET(InputPriceData!F$15,CalculationsAndCharts!$A202+$A$11,IF($C$7,8,0),1,1) -> 234.21 | H202: 0.08 | I202: 1.087476877 | J202: 0.4706166352 | K202: 2.31074891 | L202: 0.2888436137 | M202: 0.7111563863 | N202: 233.2458397 | AO202: 66882500
A203: 171 | B203: =OFFSET(InputPriceData!B$15,CalculationsAndCharts!$A203+$A$11,0,1,1) -> 2017-04-28 | C203: =OFFSET(InputPriceData!G$15,CalculationsAndCharts!$A203+$A$11,IF($C$7,8,0),1,1) -> 53247400 | D203: =OFFSET(InputPriceData!C$15,CalculationsAndCharts!$A203+$A$11,IF($C$7,8,0),1,1) -> 234.42 | E203: =OFFSET(InputPriceData!D$15,CalculationsAndCharts!$A203+$A$11,IF($C$7,8,0),1,1) -> 234.45 | F203: =OFFSET(InputPriceData!E$15,CalculationsAndCharts!$A203+$A$11,IF($C$7,8,0),1,1) -> 233.47 | G203: =OFFSET(InputPriceData!F$15,CalculationsAndCharts!$A203+$A$11,IF($C$7,8,0),1,1) -> 233.62 | H203: -0.31 | I203: 1.150941245 | J203: 0.4593602342 | K203: 2.505530865 | L203: 0.3131913581 | M203: 0.6868086419 | N203: 232.8542358 | AP203: 53247400
A204: 172 | B204: =OFFSET(InputPriceData!B$15,CalculationsAndCharts!$A204+$A$11,0,1,1) -> 2017-04-27 | C204: =OFFSET(InputPriceData!G$15,CalculationsAndCharts!$A204+$A$11,IF($C$7,8,0),1,1) -> 57410300 | D204: =OFFSET(InputPriceData!C$15,CalculationsAndCharts!$A204+$A$11,IF($C$7,8,0),1,1) -> 234.3 | E204: =OFFSET(InputPriceData!D$15,CalculationsAndCharts!$A204+$A$11,IF($C$7,8,0),1,1) -> 234.47 | F204: =OFFSET(InputPriceData!E$15,CalculationsAndCharts!$A204+$A$11,IF($C$7,8,0),1,1) -> 233.52 | G204: =OFFSET(InputPriceData!F$15,CalculationsAndCharts!$A204+$A$11,IF($C$7,8,0),1,1) -> 234.13 | H204: 0.05 | I204: 1.09392786 | J204: 0.4450083737 | K204: 2.458218596 | L204: 0.3072773245 | M204: 0.6927226755 | N204: 232.50504 | AP204: 57410300
A205: 173 | B205: =OFFSET(InputPriceData!B$15,CalculationsAndCharts!$A205+$A$11,0,1,1) -> 2017-04-26 | C205: =OFFSET(InputPriceData!G$15,CalculationsAndCharts!$A205+$A$11,IF($C$7,8,0),1,1) -> 84702500 | D205: =OFFSET(InputPriceData!C$15,CalculationsAndCharts!$A205+$A$11,IF($C$7,8,0),1,1) -> 234.04 | E205: =OFFSET(InputPriceData!D$15,CalculationsAndCharts!$A205+$A$11,IF($C$7,8,0),1,1) -> 235.04 | F205: =OFFSET(InputPriceData!E$15,CalculationsAndCharts!$A205+$A$11,IF($C$7,8,0),1,1) -> 233.88 | G205: =OFFSET(InputPriceData!F$15,CalculationsAndCharts!$A205+$A$11,IF($C$7,8,0),1,1) -> 233.93 | H205: 1.2 | I205: 0.8542328605 | J205: 0.431454725 | K205: 1.979889919 | L205: 0.2474862399 | M205: 0.7525137601 | N205: 231.7842417 | AP205: 84702500
A206: 174 | B206: =OFFSET(InputPriceData!B$15,CalculationsAndCharts!$A206+$A$11,0,1,1) -> 2017-04-25 | C206: =OFFSET(InputPriceData!G$15,CalculationsAndCharts!$A206+$A$11,IF($C$7,8,0),1,1) -> 76698300 | D206: =OFFSET(InputPriceData!C$15,CalculationsAndCharts!$A206+$A$11,IF($C$7,8,0),1,1) -> 233.45 | E206: =OFFSET(InputPriceData!D$15,CalculationsAndCharts!$A206+$A$11,IF($C$7,8,0),1,1) -> 234.47 | F206: =OFFSET(InputPriceData!E$15,CalculationsAndCharts!$A206+$A$11,IF($C$7,8,0),1,1) -> 233.36 | G206: =OFFSET(InputPriceData!F$15,CalculationsAndCharts!$A206+$A$11,IF($C$7,8,0),1,1) -> 234.08 | H206: 3.88 | I206: 0.4522395914 | J206: 0.4358034876 | K206: 1.037714484 | L206: 0.1297143106 | M206: 0.8702856894 | N206: 231.078546 | AO206: 76698300
... 826 more rows

Sheet Follow
A1: Stocks and Indexes I wish to follow
A3: To ease following a stock, enter a Yahoo Finance acceptable symbol in column "A" anywhere below cell "A9".
A4: Thereafter you may doubleclick the cell containing a symbol of interest to initiate data retrieval and charting for that symbol.
A7: Symbol
A8: To | B8: Description | C8: Last Trade as of most recent check
A9: Follow | C9: Date | D9: Time | E9: Open | F9: High | G9: Low | H9: Close | I9: Volume | J9: Change
A10: A | B10: Agilent Technolog (A) -NYSE (Daily) | C10: 2015-02-02 | D10: 16:03:00 | E10: 37.9 | F10: 38.76 | G10: 37.71 | H10: 38.69 | I10: 2508493 | J10: 0.92
A11: AAL | B11: American Airlines Group Inc. (AAL) -NasdaqGS (Daily) | C11: 2017-12-07 | D11: 16:00:00 | E11: 49.529999 | F11: 50.920502 | G11: 49.299999 | H11: 50.880001 | I11: 3046954 | J11: 1.27
A12: ADM | B12: Archer-Daniels-Midland Company (ADM) -NYQ (Daily) | C12: 2016-03-07 | D12: 13:18:00 | E12: 37.17 | F12: 37.29 | G12: 36.85 | H12: 37.09 | I12: 2069198 | J12: -0.56
A13: AMC | B13: AMC Entertainment Holdings, Inc. (AMC) -NYSE (Daily) | C13: 2017-12-07 | D13: 16:02:00 | E13: 14.15 | F13: 14.5 | G13: 14.05 | H13: 14.35 | I13: 1931228 | J13: 0.1
A14: BSX | B14: Boston Scientific Corporation C (BSX) -NYQ (Daily) | C14: 2015-03-13 | D14: 16:01:00 | E14: 16.84 | F14: 16.91 | G14: 16.44 | H14: 16.61 | I14: 7262460 | J14: -0.28
A15: CASY | B15: Casey's General Stores, Inc. (CASY) -NasdaqGS (Daily) | C15: 2018-04-13 | D15: 16:00:00 | E15: 106.57 | F15: 106.800003 | G15: 100.419998 | H15: 101.57 | I15: 894700 | J15: -5.470001
A16: CAT | B16: Caterpillar Inc. (CAT) -NYSE (Daily) | C16: 2018-04-16 | D16: 13:16:00 | E16: 151.740005 | F16: 153.401596 | G16: 150.279999 | H16: 153.050003 | I16: 1789751 | J16: 2.820007
A17: CSCO | B17: Cisco Systems, In (CSCO) -NasdaqNM (Daily) | C17: 2015-02-19 | D17: 16:00:00 | E17: 29.32 | F17: 29.39 | G17: 29.13 | H17: 29.31 | I17: 21469012 | J17: -0.18
A18: CVS | B18: CVS Health Corpor (CVS) -NYSE (Daily) | C18: 2015-02-02 | D18: 16:01:00 | E18: 98.34 | F18: 99.22 | G18: 97.06 | H18: 99.11 | I18: 4416094 | J18: 0.95
A19: DIS | B19: Walt Disney Compa (DIS) -NYSE (Daily) | C19: 2015-02-26 | D19: 16:00:00 | E19: 105.5 | F19: 105.71 | G19: 104.14 | H19: 104.56 | I19: 5044969 | J19: -1.01
A20: F | B20: Ford Motor Company (F) -NYSE (Daily) | C20: 2018-04-16 | D20: 13:20:00 | E20: 11.36 | F20: 11.4375 | G20: 11.27 | H20: 11.425 | I20: 13144677 | J20: 0.145
A21: FAS | B21: Direxion Daily Financial Bull 3X ETF (FAS) -NYSEArca (Daily) | C21: 2017-10-13 | D21: 16:00:00 | E21: 58.099998 | F21: 58.939999 | G21: 57.43 | H21: 58.450001 | I21: 1709300 | J21: 0.07
A22: GSK | B22: GlaxoSmithKline P (GSK) -NYSE (Daily) | C22: 2015-02-02 | D22: 16:01:00 | E22: 44.11 | F22: 44.12 | G22: 43.71 | H22: 43.96 | I22: 3654466 | J22: -0.04
A23: GDX | B23: VanEck Vectors Gold Miners ETF (GDX) -PCX (Daily) | C23: 2017-02-10 | D23: 20:00:00 | E23: 24.67 | F23: 25.36 | G23: 24.6 | H23: 25.29 | I23: 65396107 | J23: 0.38
A24: HSY | B24: The Hershey Compa (HSY) -NYSE (Daily) | C24: 2015-02-19 | D24: 16:02:00 | E24: 106.97 | F24: 107.31 | G24: 105.42 | H24: 105.95 | I24: 1448321 | J24: -1
A25: HTLD | B25: Heartland Express, Inc. (HTLD) -NasdaqGS (Daily) | C25: 2018-04-16 | D25: 13:57:00 | E25: 18.17 | F25: 18.620001 | G25: 18.129999 | H25: 18.540001 | I25: 202134 | J25: 0.540001
A26: IBM | B26: International Bus (IBM) -NYSE (Daily) | C26: 2015-02-02 | D26: 16:01:00 | E26: 154 | F26: 154.66 | G26: 151.51 | H26: 154.66 | I26: 4712247 | J26: 1.35
A27: INTC | B27: Intel Corporation (INTC) -NasdaqNM (Daily) | C27: 2015-02-19 | D27: 16:00:00 | E27: 34.25 | F27: 34.42 | G27: 34.05 | H27: 34.21 | I27: 11017541 | J27: -0.055
A28: JAH | B28: Jarden Corporation Common Stock (JAH) -NYQ (Daily) | C28: 2016-01-08 | D28: 16:02:00 | E28: 53.82 | F28: 53.88 | G28: 52.65 | H28: 52.73 | I28: 4519480 | J28: -0.81
A29: JNJ | B29: Johnson & Johnson Common Stock (JNJ) -NYQ (Daily) | C29: 2016-01-08 | D29: 11:37:00 | E29: 99.88 | F29: 99.94 | G29: 98.87 | H29: 98.88 | I29: 2448879 | J29: -0.34
A30: KO | B30: The Coca-Cola Company (KO) -NYSE (Daily) | C30: 2018-04-16 | D30: 11:45:00 | E30: 44.650002 | F30: 44.790001 | G30: 44.400002 | H30: 44.605 | I30: 3134784 | J30: 0.095002
A31: LHO | B31: LaSalle Hotel Pro (LHO) -NYSE (Daily) | C31: 2015-02-02 | D31: 16:06:00 | E31: 40.51 | F31: 40.74 | G31: 39.46 | H31: 40.26 | I31: 1034675 | J31: -0.2
A32: LINE | B32: Linn Energy, LLC (LINE) -NasdaqNM (Daily) | C32: 2015-02-02 | D32: 16:00:00 | E32: 10.4 | F32: 10.78 | G32: 10.25 | H32: 10.77 | I32: 3766537 | J32: 0.51
A33: LO | B33: Lorillard, Inc Co (LO) -NYSE (Daily) | C33: 2015-02-02 | D33: 16:03:00 | E33: 65.71 | F33: 66.29 | G33: 65.43 | H33: 66.29 | I33: 1563618 | J33: 0.68
A34: MCD | B34: McDonald's Corporation (MCD) -NYSE (Daily) | C34: 2018-04-16 | D34: 14:57:00 | E34: 161.300003 | F34: 162.429993 | G34: 160.860001 | H34: 161.699997 | I34: 2261078 | J34: -0.029999
A35: MDT | B35: Medtronic plc. Or (MDT) -NYSE (Daily) | C35: 2015-02-19 | D35: 16:01:00 | E35: 78.59 | F35: 78.59 | G35: 77.85 | H35: 78.13 | I35: 6900528 | J35: -0.37
A36: MGM | B36: MGM Resorts Inter (MGM) -NYSE (Daily) | C36: 2015-02-02 | D36: 16:00:00 | E36: 19.44 | F36: 19.75 | G36: 19.12 | H36: 19.74 | I36: 7570281 | J36: 0.26
A37: MO | B37: Altria Group, Inc (MO) -NYSE (Daily) | C37: 2015-02-02 | D37: 16:01:00 | E37: 53.25 | F37: 53.84 | G37: 52.98 | H37: 53.8 | I37: 9183582 | J37: 0.7
A38: MSFT | B38: Microsoft Corporation (MSFT) -NasdaqGS (Daily) | C38: 2018-04-13 | D38: 16:00:00 | E38: 94.050003 | F38: 94.18 | G38: 92.440002 | H38: 93.080002 | I38: 23318600 | J38: -0.5
A39: NUGT | B39: Direxion Daily Gold Miners Inde (NUGT) -PCX (Daily) | C39: 2016-04-13 | D39: 14:18:00 | E39: 81.48 | F39: 84.97 | G39: 79.59 | H39: 80.5352 | I39: 4380827 | J39: -5.6148
A40: NVS | B40: Novartis AG (NVS) -NYSE (Daily) | C40: 2018-04-13 | D40: 16:02:00 | E40: 81.150002 | F40: 81.269997 | G40: 80.699997 | H40: 81.040001 | I40: 1037000 | J40: -0.400001
A41: NVDA | B41: NVIDIA Corporation (NVDA) -NasdaqGS (Daily) | C41: 2018-05-14 | D41: 13:42:00 | E41: 256.070007 | F41: 258.48999 | G41: 255.100006 | H41: 256.150085 | I41: 8989344 | J41: 1.620086
A42: PRU | B42: Prudential Financ (PRU) -NYSE (Daily) | C42: 2015-02-23 | D42: 12:22:00 | E42: 80.25 | F42: 80.4499 | G42: 79.8 | H42: 80.12 | I42: 1604052 | J42: -0.69
A43: PSEC | B43: Prospect Capital Corporation (PSEC) -NasdaqGS (Daily) | C43: 2018-04-13 | D43: 16:00:00 | E43: 6.48 | F43: 6.5 | G43: 6.42 | H43: 6.45 | I43: 1289100 | J43: -0.03
A44: RAI | B44: Reynolds American (RAI) -NYSE (Daily) | C44: 2015-02-02 | D44: 16:03:00 | E44: 68.12 | F44: 69.06 | G44: 67.4346 | H44: 69.05 | I44: 1822013 | J44: 1.1
A45: RPM | B45: RPM International Inc. (RPM) -NYSE (Daily) | C45: 2018-04-13 | D45: 16:02:00 | E45: 49.52 | F45: 49.52 | G45: 48.970001 | H45: 49.240002 | I45: 908200 | J45: 0.010002 | K45: Owns the Rust-Oleum brand
A46: RSP | B46: Guggenheim S&P 500 Equal Weight (RSP) -PCX (Daily) | C46: 2016-01-08 | D46: 11:33:00 | E46: 73.24 | F46: 73.47 | G46: 72.41 | H46: 72.41 | I46: 754279 | J46: -0.48
A47: SONC | B47: Sonic Corp. (SONC) -NasdaqGS (Daily) | C47: 2018-04-13 | D47: 16:00:00 | E47: 26.440001 | F47: 26.709999 | G47: 26.040001 | H47: 26.23 | I47: 701900 | J47: -0.03
A48: SPR | B48: Spirit Aerosystems Holdings, In (SPR) -NYQ (Daily) | C48: 2017-02-08 | D48: 16:02:00 | E48: 56.31 | F48: 56.53 | G48: 55.13 | H48: 56.41 | I48: 849196 | J48: 0.06
A49: SWKS | B49: Skyworks Solution (SWKS) -NasdaqNM (Daily) | C49: 2015-02-02 | D49: 16:00:00 | E49: 83.07 | F49: 83.73 | G49: 80.15 | H49: 82.02 | I49: 4119001 | J49: -1.03
A50: TOL | B50: Toll Brothers, Inc. (TOL) -NYSE (Daily) | C50: 2018-04-13 | D50: 16:03:00 | E50: 42.560001 | F50: 42.799999 | G50: 42.040001 | H50: 42.349998 | I50: 1490800 | J50: 0.09
A51: UNP | B51: Union Pacific Cor (UNP) -NYSE (Daily) | C51: 2015-02-02 | D51: 16:10:00 | E51: 118.13 | F51: 119.06 | G51: 116.7 | H51: 119.01 | I51: 3259594 | J51: 1.8
A52: VZ | B52: Verizon Communica (VZ) -NYSE (Daily) | C52: 2015-02-23 | D52: 12:22:00 | E52: 48.94 | F52: 49 | G52: 48.54 | H52: 48.825 | I52: 4204644 | J52: -0.145
A53: WBA | B53: (WBA) -NasdaqNM (Daily) | C53: 2015-02-02 | D53: 16:00:00 | E53: 73.06 | F53: 74.98 | G53: 73 | H53: 74.89 | I53: 4247395 | J53: 1.14
A54: WMT | B54: Wal-Mart Stores, Inc. (WMT) -NYSE (Daily) | C54: 2017-12-07 | D54: 16:00:00 | E54: 97.059998 | F54: 97.580002 | G54: 96.650002 | H54: 96.779999 | I54: 7502463 | J54: -0.5
A56: ^NDX | B56: NASDAQ-100 (^NDX) -NIM (Daily) | C56: 2015-08-10 | D56: 17:15:00 | E56: 4558.68 | F56: 4583.63 | G56: 4554.63 | H56: 4573.11 | I56: 0 | J56: 53.03
A57: ^FTSE | B57: FTSE 100 (^FTSE) -FTSE (Daily) | C57: 2018-02-14 | D57: 15:51:00 | E57: 7168.009766 | F57: 7243.149902 | G57: 7145.72998 | H57: 7222.319824 | I57: 0 | J57: 54.319824
A58: ^DJI | B58: Dow Jones Industrial Average (^DJI) -DJI (Daily) | C58: 2018-02-14 | D58: 13:58:00 | E58: 24535.82031 | F58: 24835.44922 | G58: 24490.35938 | H58: 24816.16016 | I58: 254641020 | J58: 175.710937
A59: SPY | B59: SPDR S&P 500 ETF (SPY) -NYSEArca (Daily) | C59: 2018-05-14 | D59: 15:01:00 | E59: 273.339996 | F59: 274.079987 | G59: 272.369995 | H59: 272.950012 | I59: 30754165 | J59: 0.100006
A60: ^GSPC | B60: S&P 500 (^GSPC) -SNP (Daily) | C60: 2018-03-13 | D60: 15:20:00 | E60: 2792.310059 | F60: 2801.899902 | G60: 2764.639893 | H60: 2765.600098 | I60: 1702774839 | J60: -17.419922
A61: IWM | B61: iShares Russell 2000 ETF (IWM) -NYSEArca (Daily) | C61: 2018-04-13 | D61: 16:00:00 | E61: 155.289993 | F61: 155.330002 | G61: 153.509995 | H61: 153.949997 | I61: 19710100 | J61: -0.809998
A62: QQQ | B62: PowerShares QQQ ETF (QQQ) -NasdaqGM (Daily) | C62: 2018-04-13 | D62: 16:00:00 | E62: 163.020004 | F62: 163.259995 | G62: 160.669998 | H62: 161.369995 | I62: 44450700 | J62: -0.840012
A63: ^RUT | B63: Russell 2000 (^RUT) -Chicago Options (Daily) | C63: 2018-02-12 | D63: 16:30:00 | E63: 1479.109985 | F63: 1498.109985 | G63: 1466.880005 | H63: 1490.97998 | I63: 40557900 | J63: -0.001465
A64: ^VIX | B64: VOLATILITY S&P 500 (^VIX) -WCB (Daily) | C64: 2015-12-04 | D64: 16:14:00 | E64: 17.43 | F64: 17.65 | G64: 14.69 | H64: 14.81 | I64: 0 | J64: -3.3
A65: ^NYA | B65: NYSE COMPOSITE (DJ) (^NYA) -NYSE (Daily) | C65: 2017-10-13 | D65: 17:38:00 | E65: 12360.87012 | F65: 12377.88965 | G65: 12350.03027 | H65: 12352.01953 | I65: 3149440000 | J65: 13.279297
A67: ACAD | B67: ACADIA Pharmaceut (ACAD) -NasdaqNM (Daily) | C67: 2014-07-21 | D67: 16:00:00 | E67: 20.13 | F67: 20.55 | G67: 19.8101 | H67: 20.31 | I67: 691016
A68: CLDX | B68: Celldex Therapeut (CLDX) -NasdaqNM (Daily) | C68: 2015-02-02 | D68: 16:00:00 | E68: 21.47 | F68: 21.69 | G68: 20.11 | H68: 21.02 | I68: 1570418 | J68: -0.4
A69: ICPT | B69: Intercept Pharmac (ICPT) -NasdaqNM (Daily) | C69: 2014-07-21 | D69: 16:00:00 | E69: 215.97 | F69: 218.43 | G69: 213.05 | H69: 218.14 | I69: 191276
A70: INO | B70: Inovio Pharmaceut (INO) -AMEX (Daily) | C70: 2014-07-21 | D70: 16:00:00 | E70: 10.3 | F70: 11.08 | G70: 10.1 | H70: 11.01 | I70: 1800796
A71: JCP | B71: J. C. Penney Company, Inc. (JCP) -NYSE (Daily) | C71: 2017-12-07 | D71: 16:01:00 | E71: 3.34 | F71: 3.4 | G71: 3.25 | H71: 3.27 | I71: 14485464 | J71: -0.07
A72: LCI | B72: Lannett Co Inc Co (LCI) -NYSE (Daily) | C72: 2014-07-21 | D72: 16:02:00 | E72: 38.09 | F72: 38.803 | G72: 36.5101 | H72: 37.76 | I72: 611367
A73: NPSP | B73: NPS Pharmaceutica (NPSP) -NasdaqNM (Daily) | C73: 2014-07-21 | D73: 15:59:00 | E73: 28.75 | F73: 29.43 | G73: 28.31 | H73: 29.29 | I73: 1126758
A74: PBYI | B74: Puma Biotechnolog (PBYI) -NYSE (Daily) | C74: 2014-07-21 | D74: 16:02:00 | E74: 58.27 | F74: 59.46 | G74: 57.39 | H74: 58.98 | I74: 348030
